Workbook

Sheet Náklady
B2: cena panelů | C2: =5000*Náklady!O2*10^3/250 -> 50000 | F2: NPV přes ADCF | G2: =H42 -> -376265.8152 | N2: Instalovaný výkon | O2: 2.5 | P2: kWp
B3: cena konstrukce | C3: =1000*O2*10^3/250 -> 10000 | F3: NPV fcí | G3: =NPV(C13,F18:F42)+F17 -> -376265.8152
B4: životnost | C4: 25 | N4: Akumulace | O4: 3.24 | P4: kWh
B5: cena měniče | C5: =D5 -> 50000 | D5: =IF(O4>0,10000*O2+25000,IF(O2>0,ROUND(3000*O2 + 20000,-2),0)) -> 50000
B6: cena baterii | C6: =O4*O12 -> 50696.99993
B7: živostnost baterii | C7: =O14 -> 5000 | F7: Roční výroba | G7: Minimální míra využití vyrobené elektřiny 70% | H7: Využitý energetický zisk | I7: Měrná kapacita akumulátorů | J7: Nárok na dotace | K7: Max. výše dotace | L7: Vyše dotace | N7: nominální napětí | O7: 12 | P7: V
B8: investice bez dot. | C8: =C6+C5+C2+C3 -> 160696.9999 | N8: účinnost akumulace | O8: 0.9
B9: dotace | C9: 0 | N9: DOD | O9: 0.8
B10: investice | C10: =C8-C9 -> 160696.9999 | F10: =MakroSOUHRN!C6 -> 2363.375 | G10: =MakroSOUHRN!C6*0.7 -> 1654.3625 | H10: =MakroSOUHRN!C6-MakroSOUHRN!N6 -> 1770.432778 | I10: =IFERROR(O4/O2,0) -> 1.296 | J10: =IF(H10>G10,IF(O4/O2>1.25,TRUE,FALSE),FALSE) -> TRUE | K10: =IF(J10=TRUE,IF(H10>3000,100000,IF(H10>1700,70000,0)),0) -> 70000 | L10: =IF(0.5*C8>K10,K10,0.5*C8) -> 70000 | N10: kapacita baterii | O10: =1000*O4/O7 -> 270 | P10: Ah
B11: cena elektřiny | C11: =Cenaelektriny!B30 -> 3.35887 | D11: za kWh | N11: typ akumulátoru | O11: LiFePo4
B12: inflace | C12: 0.02 | N12: cena za jednotku | O12: =K14 -> 15647.2222 | P12: Kč/KWh
B13: diskont | C13: 0.03 | J13: typ baterii | K13: LiFePo4 | N13: min měr. Kapacita | O13: 1.25 | P13: kWp/kWh
B14: cena přebytků | C14: 0.4 | D14: za kWh | J14: cena za jednotku | K14: 15647.2222 | N14: počet cyklu | O14: 5000
J15: kapacita Ah | K15: 90
B16: rok | C16: investice | D16: výdaje na spotřebu | E16: prodej přebytků | F16: CF | G16: DCF | H16: ADCF | J16: nominální napětí | K16: 12
B17: 0 | C17: =-C10 -> -160696.9999 | F17: =C17+D17+E17 -> -160696.9999 | G17: =F17*(1+$C$13)^B17 -> -160696.9999 | H17: =SUM($G$17:G17) -> -160696.9999 | J17: zivotnost při 80 | K17: 5000
B18: 1 | C18: =-IF(MakroSOUHRN!P6>Náklady!$O$14,$C$6*((1+$C$12)^B18),0) -> 0 | D18: =((MakroSOUHRN!$M$6*Náklady!$C$11-Cenaelektriny!$D$31))*((1+Náklady!$C$12)^Náklady!B18)*1.21 -> -5806.710438 | E18: =MakroSOUHRN!N6*Náklady!$C$14*((1+Náklady!$C$12)^Náklady!B18) -> 241.9204265 | F18: -5564.790011 | G18: =F18/(1+$C$13)^B18 -> -5402.708749 | H18: =SUM($G$17:G18) -> -166099.7087 | J18: zivotnost při 50 | K18: 7000
B19: 2 | C19: =-IF(MakroSOUHRN!P7>Náklady!$O$14,$C$6*((1+$C$12)^B19),0) -> 0 | D19: =((MakroSOUHRN!M7*Náklady!$C$11-Cenaelektriny!$D$31))*((1+Náklady!$C$12)^Náklady!B19)*1.21 -> -5942.710576 | E19: =MakroSOUHRN!N7*Náklady!$C$14*((1+Náklady!$C$12)^Náklady!B19) -> 240.8456939 | F19: -5701.864882 | G19: -5374.554512 | H19: =SUM($G$17:G19) -> -171474.2632 | J19: min. měr.kap | K19: 1.25
B20: 3 | C20: =-IF(MakroSOUHRN!P8>Náklady!$O$14,$C$6*((1+$C$12)^B20),0) -> 0 | D20: =((MakroSOUHRN!M8*Náklady!$C$11-Cenaelektriny!$D$31))*((1+Náklady!$C$12)^Náklady!B20)*1.21 -> -6092.918336 | E20: =MakroSOUHRN!N8*Náklady!$C$14*((1+Náklady!$C$12)^Náklady!B20) -> 240.7227064 | F20: -5852.195629 | G20: -5355.588019 | H20: =SUM($G$17:G20) -> -176829.8512
B21: 4 | C21: =-IF(MakroSOUHRN!P9>Náklady!$O$14,$C$6*((1+$C$12)^B21),0) -> 0 | D21: =((MakroSOUHRN!M9*Náklady!$C$11-Cenaelektriny!$D$31))*((1+Náklady!$C$12)^Náklady!B21)*1.21 -> -6236.955279 | E21: =MakroSOUHRN!N9*Náklady!$C$14*((1+Náklady!$C$12)^Náklady!B21) -> 239.5337484 | F21: -5997.421531 | G21: -5328.631351 | H21: =SUM($G$17:G21) -> -182158.4826
B22: 5 | C22: =-IF(MakroSOUHRN!P10>Náklady!$O$14,$C$6*((1+$C$12)^B22),0) -> 0 | D22: =((MakroSOUHRN!M10*Náklady!$C$11-Cenaelektriny!$D$31))*((1+Náklady!$C$12)^Náklady!B22)*1.21 -> -6385.00047 | E22: =MakroSOUHRN!N10*Náklady!$C$14*((1+Náklady!$C$12)^Náklady!B22) -> 238.2682557 | F22: -6146.732214 | G22: -5302.225203 | H22: =SUM($G$17:G22) -> -187460.7078
B23: 6 | C23: =-IF(MakroSOUHRN!P11>Náklady!$O$14,$C$6*((1+$C$12)^B23),0) -> 0 | D23: =((MakroSOUHRN!M11*Náklady!$C$11-Cenaelektriny!$D$31))*((1+Náklady!$C$12)^Náklady!B23)*1.21 -> -6536.935069 | E23: =MakroSOUHRN!N11*Náklady!$C$14*((1+Náklady!$C$12)^Náklady!B23) -> 236.9018374 | F23: -6300.033231 | G23: -5276.178648 | H23: =SUM($G$17:G23) -> -192736.8864
B24: 7 | C24: =-IF(MakroSOUHRN!P12>Náklady!$O$14,$C$6*((1+$C$12)^B24),0) -> 0 | D24: =((MakroSOUHRN!M12*Náklady!$C$11-Cenaelektriny!$D$31))*((1+Náklady!$C$12)^Náklady!B24)*1.21 -> -6705.637581 | E24: =MakroSOUHRN!N12*Náklady!$C$14*((1+Náklady!$C$12)^Náklady!B24) -> 236.6889758 | F24: -6468.948605 | G24: -5259.847198 | H24: =SUM($G$17:G24) -> -197996.7336
B25: 8 | C25: =-IF(MakroSOUHRN!P13>Náklady!$O$14,$C$6*((1+$C$12)^B25),0) -> 0 | D25: =((MakroSOUHRN!M13*Náklady!$C$11-Cenaelektriny!$D$31))*((1+Náklady!$C$12)^Náklady!B25)*1.21 -> -6866.89311 | E25: =MakroSOUHRN!N13*Náklady!$C$14*((1+Náklady!$C$12)^Náklady!B25) -> 235.23311 | F25: -6631.66 | G25: -5235.093643 | H25: =SUM($G$17:G25) -> -203231.8273
B26: 9 | C26: =-IF(MakroSOUHRN!P14>Náklady!$O$14,$C$6*((1+$C$12)^B26),0) -> 0 | D26: =((MakroSOUHRN!M14*Náklady!$C$11-Cenaelektriny!$D$31))*((1+Náklady!$C$12)^Náklady!B26)*1.21 -> -7031.916605 | E26: =MakroSOUHRN!N14*Náklady!$C$14*((1+Náklady!$C$12)^Náklady!B26) -> 233.6243339 | F26: -6798.292271 | G26: -5210.324948 | H26: =SUM($G$17:G26) -> -208442.1522
B27: 10 | C27: =-IF(MakroSOUHRN!P15>Náklady!$O$14,$C$6*((1+$C$12)^B27),0) -> 0 | D27: =((MakroSOUHRN!M15*Náklady!$C$11-Cenaelektriny!$D$31))*((1+Náklady!$C$12)^Náklady!B27)*1.21 -> -7200.853033 | E27: =MakroSOUHRN!N15*Náklady!$C$14*((1+Náklady!$C$12)^Náklady!B27) -> 231.8628958 | F27: -6968.990137 | G27: -5185.583154 | H27: =SUM($G$17:G27) -> -213627.7354
B28: 11 | C28: =-IF(MakroSOUHRN!P16>Náklady!$O$14,$C$6*((1+$C$12)^B28),0) -> 0 | D28: =((MakroSOUHRN!M16*Náklady!$C$11-Cenaelektriny!$D$31))*((1+Náklady!$C$12)^Náklady!B28)*1.21 -> -7373.790759 | E28: =MakroSOUHRN!N16*Náklady!$C$14*((1+Náklady!$C$12)^Náklady!B28) -> 229.9431217 | F28: -7143.847637 | G28: -5160.86753 | H28: =SUM($G$17:G28) -> -218788.6029
B29: 12 | C29: =-IF(MakroSOUHRN!P17>Náklady!$O$14,$C$6*((1+$C$12)^B29),0) -> 0 | D29: =((MakroSOUHRN!M17*Náklady!$C$11-Cenaelektriny!$D$31))*((1+Náklady!$C$12)^Náklady!B29)*1.21 -> -7585.124264 | E29: =MakroSOUHRN!N17*Náklady!$C$14*((1+Náklady!$C$12)^Náklady!B29) -> 231.2353709 | F29: -7353.888893 | G29: -5157.869711 | H29: =SUM($G$17:G29) -> -223946.4726
B30: 13 | C30: =-IF(MakroSOUHRN!P18>Náklady!$O$14,$C$6*((1+$C$12)^B30),0) -> 0 | D30: =((MakroSOUHRN!M18*Náklady!$C$11-Cenaelektriny!$D$31))*((1+Náklady!$C$12)^Náklady!B30)*1.21 -> -7770.191254 | E30: =MakroSOUHRN!N18*Náklady!$C$14*((1+Náklady!$C$12)^Náklady!B30) -> 229.3605101 | F30: -7540.830744 | G30: -5134.9388 | H30: =SUM($G$17:G30) -> -229081.4114
B31: 14 | C31: =-IF(MakroSOUHRN!P19>Náklady!$O$14,$C$6*((1+$C$12)^B31),0) -> 0 | D31: =((MakroSOUHRN!M19*Náklady!$C$11-Cenaelektriny!$D$31))*((1+Náklady!$C$12)^Náklady!B31)*1.21 -> -7960.590021 | E31: =MakroSOUHRN!N19*Náklady!$C$14*((1+Náklady!$C$12)^Náklady!B31) -> 227.4129531 | F31: -7733.177068 | G31: -5112.541055 | H31: =SUM($G$17:G31) -> -234193.9524
B32: 15 | C32: =-IF(MakroSOUHRN!P20>Náklady!$O$14,$C$6*((1+$C$12)^B32),0)-$D$5*((1+$C$12)^B32) -> -135524.904 | D32: =((MakroSOUHRN!M20*Náklady!$C$11-Cenaelektriny!$D$31))*((1+Náklady!$C$12)^Náklady!B32)*1.21 -> -8155.618309 | E32: =MakroSOUHRN!N20*Náklady!$C$14*((1+Náklady!$C$12)^Náklady!B32) -> 225.3077221 | F32: -143455.2146 | G32: -92078.44338 | H32: =SUM($G$17:G32) -> -326272.3958
B33: 16 | C33: =-IF(MakroSOUHRN!P21>Náklady!$O$14,$C$6*((1+$C$12)^B33),0) -> 0 | D33: =((MakroSOUHRN!M21*Náklady!$C$11-Cenaelektriny!$D$31))*((1+Náklady!$C$12)^Náklady!B33)*1.21 -> -8388.903429 | E33: =MakroSOUHRN!N21*Náklady!$C$14*((1+Náklady!$C$12)^Náklady!B33) -> 226.3381445 | F33: -8162.565284 | G33: -5086.640825 | H33: =SUM($G$17:G33) -> -331359.0367
B34: 17 | C34: =-IF(MakroSOUHRN!P22>Náklady!$O$14,$C$6*((1+$C$12)^B34),0) -> 0 | D34: =((MakroSOUHRN!M22*Náklady!$C$11-Cenaelektriny!$D$31))*((1+Náklady!$C$12)^Náklady!B34)*1.21 -> -8598.371668 | E34: =MakroSOUHRN!N22*Náklady!$C$14*((1+Náklady!$C$12)^Náklady!B34) -> 224.3782899 | F34: -8373.993378 | G34: -5066.403711 | H34: =SUM($G$17:G34) -> -336425.4404
B35: 18 | C35: =-IF(MakroSOUHRN!P23>Náklady!$O$14,$C$6*((1+$C$12)^B35),0) -> 0 | D35: =((MakroSOUHRN!M23*Náklady!$C$11-Cenaelektriny!$D$31))*((1+Náklady!$C$12)^Náklady!B35)*1.21 -> -8813.445073 | E35: =MakroSOUHRN!N23*Náklady!$C$14*((1+Náklady!$C$12)^Náklady!B35) -> 222.3067857 | F35: -8591.138287 | G35: -5046.388303 | H35: =SUM($G$17:G35) -> -341471.8287
B36: 19 | C36: =-IF(MakroSOUHRN!P24>Náklady!$O$14,$C$6*((1+$C$12)^B36),0) -> 0 | D36: =((MakroSOUHRN!M24*Náklady!$C$11-Cenaelektriny!$D$31))*((1+Náklady!$C$12)^Náklady!B36)*1.21 -> -9036.31218 | E36: =MakroSOUHRN!N24*Náklady!$C$14*((1+Náklady!$C$12)^Náklady!B36) -> 220.3215248 | F36: -8815.990655 | G36: -5027.636283 | H36: =SUM($G$17:G36) -> -346499.4649
B37: 20 | C37: =-IF(MakroSOUHRN!P25>Náklady!$O$14,$C$6*((1+$C$12)^B37),0) -> 0 | D37: =((MakroSOUHRN!M25*Náklady!$C$11-Cenaelektriny!$D$31))*((1+Náklady!$C$12)^Náklady!B37)*1.21 -> -9264.568593 | E37: =MakroSOUHRN!N25*Náklady!$C$14*((1+Náklady!$C$12)^Náklady!B37) -> 218.1679308 | F37: -9046.400662 | G37: -5008.772709 | H37: =SUM($G$17:G37) -> -351508.2377
B38: 21 | C38: =-IF(MakroSOUHRN!P26>Náklady!$O$14,$C$6*((1+$C$12)^B38),0) -> 0 | D38: =((MakroSOUHRN!M26*Náklady!$C$11-Cenaelektriny!$D$31))*((1+Náklady!$C$12)^Náklady!B38)*1.21 -> -9498.340737 | E38: =MakroSOUHRN!N26*Náklady!$C$14*((1+Náklady!$C$12)^Náklady!B38) -> 215.8400644 | F38: -9282.500673 | G38: -4989.801515 | H38: =SUM($G$17:G38) -> -356498.0392
B39: 22 | C39: =-IF(MakroSOUHRN!P27>Náklady!$O$14,$C$6*((1+$C$12)^B39),0) -> 0 | D39: =((MakroSOUHRN!M27*Náklady!$C$11-Cenaelektriny!$D$31))*((1+Náklady!$C$12)^Náklady!B39)*1.21 -> -9737.75794 | E39: =MakroSOUHRN!N27*Náklady!$C$14*((1+Náklady!$C$12)^Náklady!B39) -> 213.3318162 | F39: -9524.426124 | G39: -4970.726569 | H39: =SUM($G$17:G39) -> -361468.7657
B40: 23 | C40: =-IF(MakroSOUHRN!P28>Náklady!$O$14,$C$6*((1+$C$12)^B40),0) -> 0 | D40: =((MakroSOUHRN!M28*Náklady!$C$11-Cenaelektriny!$D$31))*((1+Náklady!$C$12)^Náklady!B40)*1.21 -> -9982.952495 | E40: =MakroSOUHRN!N28*Náklady!$C$14*((1+Náklady!$C$12)^Náklady!B40) -> 210.636902 | F40: -9772.315593 | G40: -4951.551674 | H40: =SUM($G$17:G40) -> -366420.3174
B41: 24 | C41: =-IF(MakroSOUHRN!P29>Náklady!$O$14,$C$6*((1+$C$12)^B41),0) -> 0 | D41: =((MakroSOUHRN!M29*Náklady!$C$11-Cenaelektriny!$D$31))*((1+Náklady!$C$12)^Náklady!B41)*1.21 -> -10234.08147 | E41: =MakroSOUHRN!N29*Náklady!$C$14*((1+Náklady!$C$12)^Náklady!B41) -> 207.7509986 | F41: -10026.33048 | G41: -4932.290213 | H41: =SUM($G$17:G41) -> -371352.6076
B42: 25 | C42: =-IF(MakroSOUHRN!P30>Náklady!$O$14,$C$6*((1+$C$12)^B42),0) -> 0 | D42: =((MakroSOUHRN!M30*Náklady!$C$11-Cenaelektriny!$D$31))*((1+Náklady!$C$12)^Náklady!B42)*1.21 -> -10491.89305 | E42: =MakroSOUHRN!N30*Náklady!$C$14*((1+Náklady!$C$12)^Náklady!B42) -> 204.7274694 | F42: -10287.16558 | G42: -4913.207572 | H42: =SUM($G$17:G42) -> -376265.8152

Sheet solver
C1: Instalovaný výkon FVE [kWp]
C2: 0 | D2: 0.5 | E2: 1 | F2: 1.5 | G2: 2 | H2: 2.5 | I2: 3 | J2: 3.5 | K2: 4 | L2: 4.5 | M2: 5 | Z2: Výsledky solvru bez dotační podpory
A3: Akumulační systém [kWh] | B3: 0 | C3: -284530.1791 | D3: -301207.4755 | E3: -293548.6248 | F3: -290954.1923 | G3: -291790.4036 | H3: -294530.9679 | I3: -300098.7259 | J3: -307683.2533 | K3: -316030.6355 | L3: -324969.5281 | M3: -334318.4632
B4: 0.5 | D4: -329193.8279 | E4: -322767.3408 | F4: -325279.0095 | G4: -331688.0948 | H4: -340293.3857 | I4: -352109.4138 | J4: -366157.2692 | K4: -380867.0645 | L4: -396118.9855 | M4: -411808.6387 | O4: min NPV | P4: -290954.19
B5: 1 | D5: -343581.0117 | E5: -332948.766 | F5: -332425.4948 | G5: -337919.1107 | H5: -345953.6948 | I5: -356816.9019 | J5: -370261.0748 | K5: -384615.7093 | L5: -399623.782 | M5: -415122.8108 | O5: FVE | P5: 1.5 | Q5: kWp | AA5: Instalovaný výkon FVE [kWp]
B6: 1.5 | D6: -357968.1955 | E6: -345522.3204 | F6: -341044.7947 | G6: -344990.0903 | H6: -352226.1683 | I6: -362833.1221 | J6: -375846.5744 | K6: -389448.285 | L6: -403904.9456 | M6: -418933.8078 | O6: Bat | P6: 0 | Q6: kWh | AA6: 0 | AB6: 0.5 | AC6: 1 | AD6: 1.5 | AE6: 2 | AF6: 2.5 | AG6: 3 | AH6: 3.5 | AI6: 4 | AJ6: 4.5 | AK6: 5 | AQ6: Instalovaný výkon FVE [kWp]
B7: 2 | D7: -372355.3793 | E7: -360171.872 | F7: -351597.2258 | G7: -352987.7553 | H7: -359337.8964 | I7: -369155.742 | J7: -381888.4377 | K7: -395358.2616 | L7: -409411.8831 | M7: -423850.8615 | Y7: Akumulační systém [kWh] | Z7: 0 | AA7: -284530.1791 | AB7: -301207.4755 | AC7: -293548.6248 | AD7: -290954.1923 | AE7: -291790.4036 | AF7: -294530.9679 | AG7: -300098.7259 | AH7: -307683.2533 | AI7: -316030.6355 | AJ7: -324969.5281 | AK7: -334318.4632 | AQ7: 0 | AR7: 0.5 | AS7: 1 | AT7: 1.5 | AU7: 2 | AV7: 2.5 | AW7: 3 | AX7: 3.5 | AY7: 4 | AZ7: 4.5 | BA7: 5
B8: 2.5 | D8: -386742.5631 | E8: -374688.3842 | F8: -363750.9068 | G8: -361635.7501 | H8: -367033.7625 | I8: -376237.1582 | J8: -388369.3354 | K8: -401388.4267 | L8: -415302.3705 | M8: -429693.9428 | Z8: 0.5 | AB8: -329193.8279 | AC8: -322767.3408 | AD8: -325279.0095 | AE8: -331688.0948 | AF8: -340293.3857 | AG8: -352109.4138 | AH8: -366157.2692 | AI8: -380867.0645 | AJ8: -396118.9855 | AK8: -411808.6387 | AO8: Akumulační systém [kWh] | AP8: 0 | AQ8: -284530.1791 | AR8: -301207.4755 | AS8: -293548.6248 | AT8: -290954.1923 | AU8: -291790.4036 | AV8: -294530.9679 | AW8: -300098.7259 | AX8: -307683.2533 | AY8: -316030.6355 | AZ8: -324969.5281 | BA8: -334318.4632
B9: 3 | D9: -401129.747 | E9: -389204.8964 | F9: -378192.7725 | G9: -371769.5517 | H9: -374972.4876 | I9: -383864.0078 | J9: -395419.4018 | K9: -407941.6419 | L9: -421360.0862 | M9: -435539.1769 | Z9: 1 | AB9: -343581.0117 | AC9: -332948.766 | AD9: -332425.4948 | AE9: -337919.1107 | AF9: -345953.6948 | AG9: -356816.9019 | AH9: -370261.0748 | AI9: -384615.7093 | AJ9: -399623.782 | AK9: -415122.8108 | AP9: 0.5 | AR9: -329193.8279 | AS9: -322767.3408 | AT9: -325279.0095 | AU9: -331688.0948 | AV9: -340293.3857 | AW9: -352109.4138 | AX9: -366157.2692 | AY9: -380867.0645 | AZ9: -396118.9855 | BA9: -411808.6387
B10: 3.5 | D10: -415516.9308 | E10: -403721.4085 | F10: -392895.7745 | G10: -383036.6491 | H10: -313848.5222 | I10: -391573.146 | J10: -403012.5936 | K10: -414935.244 | L10: -427928.208 | M10: -441617.3379 | Z10: 1.5 | AB10: -357968.1955 | AC10: -345522.3204 | AD10: -341044.7947 | AE10: -344990.0903 | AF10: -352226.1683 | AG10: -362833.1221 | AH10: -375846.5744 | AI10: -389448.285 | AJ10: -403904.9456 | AK10: -418933.8078 | AP10: 1 | AR10: -343581.0117 | AS10: -332948.766 | AT10: -332425.4948 | AU10: -337919.1107 | AV10: -345953.6948 | AW10: -356816.9019 | AX10: -370261.0748 | AY10: -384615.7093 | AZ10: -399623.782 | BA10: -415122.8108
B11: 4 | D11: -429904.1146 | E11: -418237.9207 | F11: -407477.9033 | G11: -396643.1497 | H11: -323719.6096 | I11: -399644.9484 | J11: -410829.6414 | K11: -422308.5647 | L11: -434806.376 | M11: -448103.0981 | Z11: 2 | AB11: -372355.3793 | AC11: -360171.872 | AD11: -351597.2258 | AE11: -352987.7553 | AF11: -359337.8964 | AG11: -369155.742 | AH11: -381888.4377 | AI11: -395358.2616 | AJ11: -409411.8831 | AK11: -423850.8615 | AP11: 1.5 | AR11: -357968.1955 | AS11: -345522.3204 | AT11: -341044.7947 | AU11: -344990.0903 | AV11: -352226.1683 | AW11: -362833.1221 | AX11: -375846.5744 | AY11: -389448.285 | AZ11: -403904.9456 | BA11: -418933.8078
B12: 4.5 | D12: -444291.2984 | E12: -432754.4329 | F12: -422060.0322 | G12: -411637.2541 | H12: -334154.9167 | I12: -338534.0141 | J12: -418563.2951 | K12: -430057.7203 | L12: -441965.9729 | M12: -454895.2292 | Z12: 2.5 | AB12: -386742.5631 | AC12: -374688.3842 | AD12: -363750.9068 | AE12: -361635.7501 | AF12: -367033.7625 | AG12: -376237.1582 | AH12: -388369.3354 | AI12: -401388.4267 | AJ12: -415302.3705 | AK12: -429693.9428 | AP12: 2 | AR12: -372355.3793 | AS12: -360171.872 | AT12: -351597.2258 | AU12: -352987.7553 | AV12: -359337.8964 | AW12: -369155.742 | AX12: -381888.4377 | AY12: -395358.2616 | AZ12: -409411.8831 | BA12: -423850.8615
B13: 5 | D13: -458678.4822 | E13: -447270.9451 | F13: -436642.1611 | G13: -426308.9287 | H13: -346356.2342 | I13: -348126.1865 | J13: -426634.4754 | K13: -437853.4647 | L13: -449479.2835 | M13: -461883.4067 | Z13: 3 | AB13: -401129.747 | AC13: -389204.8964 | AD13: -378192.7725 | AE13: -371769.5517 | AF13: -374972.4876 | AG13: -383864.0078 | AH13: -395419.4018 | AI13: -407941.6419 | AJ13: -421360.0862 | AK13: -435539.1769 | AP13: 2.5 | AR13: -386742.5631 | AS13: -374688.3842 | AT13: -363750.9068 | AU13: -361635.7501 | AV13: -367033.7625 | AW13: -376237.1582 | AX13: -388369.3354 | AY13: -401388.4267 | AZ13: -415302.3705 | BA13: -429693.9428
B14: 5.5 | D14: -473065.6661 | E14: -461787.4573 | F14: -451224.2899 | G14: -440891.0576 | H14: -360274.3112 | I14: -358099.7635 | J14: -435393.2351 | K14: -445577.3384 | L14: -457309.4091 | M14: -469200.9839 | Z14: 3.5 | AB14: -415516.9308 | AC14: -403721.4085 | AD14: -392895.7745 | AE14: -383036.6491 | AF14: -383848.5222 | AG14: -391573.146 | AH14: -403012.5936 | AI14: -414935.244 | AJ14: -427928.208 | AK14: -441617.3379 | AP14: 3 | AR14: -401129.747 | AS14: -389204.8964 | AT14: -378192.7725 | AU14: -371769.5517 | AV14: -374972.4876 | AW14: -383864.0078 | AX14: -395419.4018 | AY14: -407941.6419 | AZ14: -421360.0862 | BA14: -435539.1769
B15: 6 | D15: -487452.8499 | E15: -476303.9695 | F15: -465806.4188 | G15: -455473.1865 | H15: -375416.0514 | I15: -368920.2732 | J15: -374667.6972 | K15: -453518.4127 | L15: -465098.5078 | M15: -476833.8812 | Z15: 4 | AB15: -429904.1146 | AC15: -418237.9207 | AD15: -407477.9033 | AE15: -396643.1497 | AF15: -393719.6096 | AG15: -399644.9484 | AH15: -410829.6414 | AI15: -422308.5647 | AJ15: -434806.376 | AK15: -448103.0981 | AP15: 3.5 | AR15: -415516.9308 | AS15: -403721.4085 | AT15: -392895.7745 | AU15: -383036.6491 | AV15: -383848.5222 | AW15: -391573.146 | AX15: -403012.5936 | AY15: -414935.244 | AZ15: -427928.208 | BA15: -441617.3379
B16: 6.5 | D16: -501840.0337 | E16: -490820.4817 | F16: -480388.5477 | G16: -470055.3153 | H16: -390254.4349 | I16: -381231.678 | J16: -384617.1337 | K16: -462105.539 | L16: -472822.3814 | M16: -484707.7437 | Z16: 4.5 | AB16: -444291.2984 | AC16: -432754.4329 | AD16: -422060.0322 | AE16: -411637.2541 | AF16: -404154.9167 | AG16: -408534.0141 | AH16: -418563.2951 | AI16: -430057.7203 | AJ16: -441965.9729 | AK16: -454895.2292 | AP16: 4 | AR16: -429904.1146 | AS16: -418237.9207 | AT16: -407477.9033 | AU16: -396643.1497 | AV16: -393719.6096 | AW16: -399644.9484 | AX16: -410829.6414 | AY16: -422308.5647 | AZ16: -434806.376 | BA16: -448103.0981
B17: 7 | D17: -516227.2175 | E17: -505336.9939 | F17: -494970.6765 | G17: -484637.4442 | H17: -404836.5638 | I17: -394704.5066 | J17: -394689.5621 | K17: -471167.6508 | L17: -480699.015 | M17: -492472.5311 | Z17: 5 | AB17: -458678.4822 | AC17: -447270.9451 | AD17: -436642.1611 | AE17: -426308.9287 | AF17: -416356.2342 | AG17: -418126.1865 | AH17: -426634.4754 | AI17: -437853.4647 | AJ17: -449479.2835 | AK17: -461883.4067 | AP17: 4.5 | AR17: -444291.2984 | AS17: -432754.4329 | AT17: -422060.0322 | AU17: -411637.2541 | AV17: -404154.9167 | AW17: -408534.0141 | AX17: -418563.2951 | AY17: -430057.7203 | AZ17: -441965.9729 | BA17: -454895.2292
B18: 7.5 | D18: -530614.4013 | E18: -519853.5061 | F18: -509552.8054 | G18: -499219.5731 | H18: -419418.6927 | I18: -409543.729 | J18: -405571.0593 | K18: -410748.2648 | L18: -489069.8984 | M18: -500196.4048 | Z18: 5.5 | AB18: -473065.6661 | AC18: -461787.4573 | AD18: -451224.2899 | AE18: -440891.0576 | AF18: -430274.3112 | AG18: -428099.7635 | AH18: -435393.2351 | AI18: -445577.3384 | AJ18: -457309.4091 | AK18: -469200.9839 | AP18: 5 | AR18: -458678.4822 | AS18: -447270.9451 | AT18: -436642.1611 | AU18: -426308.9287 | AV18: -416356.2342 | AW18: -418126.1865 | AX18: -426634.4754 | AY18: -437853.4647 | AZ18: -449479.2835 | BA18: -461883.4067
B19: 8 | D19: -545001.5852 | E19: -534370.0183 | F19: -524134.9343 | G19: -513801.702 | H19: -434000.8216 | I19: -424865.0028 | J19: -417810.939 | K19: -420758.4991 | L19: -497935.0869 | M19: -508002.1872 | Z19: 6 | AB19: -487452.8499 | AC19: -476303.9695 | AD19: -465806.4188 | AE19: -455473.1865 | AF19: -445416.0514 | AG19: -438920.2732 | AH19: -444667.6972 | AI19: -453518.4127 | AJ19: -465098.5078 | AK19: -476833.8812 | AP19: 5.5 | AR19: -473065.6661 | AS19: -461787.4573 | AT19: -451224.2899 | AU19: -440891.0576 | AV19: -430274.3112 | AW19: -428099.7635 | AX19: -435393.2351 | AY19: -445577.3384 | AZ19: -457309.4091 | BA19: -469200.9839
B20: 8.5 | D20: -559388.769 | E20: -548886.5305 | F20: -538717.0632 | G20: -528383.8308 | H20: -448582.9504 | I20: -439573.6843 | J20: -430981.3901 | K20: -430908.8143 | L20: -507267.5473 | M20: -516269.6244 | Z20: 6.5 | AB20: -501840.0337 | AC20: -490820.4817 | AD20: -480388.5477 | AE20: -470055.3153 | AF20: -460254.4349 | AG20: -451231.678 | AH20: -454617.1337 | AI20: -462105.539 | AJ20: -472822.3814 | AK20: -484707.7437 | AP20: 6 | AR20: -487452.8499 | AS20: -476303.9695 | AT20: -465806.4188 | AU20: -455473.1865 | AV20: -445416.0514 | AW20: -438920.2732 | AX20: -444667.6972 | AY20: -453518.4127 | AZ20: -465098.5078 | BA20: -476833.8812
B21: 9 | D21: -573775.9528 | E21: -563403.0427 | F21: -553299.192 | G21: -542965.9597 | H21: -463165.0793 | I21: -454155.8131 | J21: -445396.8015 | K21: -441766.1617 | L21: -417074.0904 | M21: -524963.6399 | Z21: 7 | AB21: -516227.2175 | AC21: -505336.9939 | AD21: -494970.6765 | AE21: -484637.4442 | AF21: -474836.5638 | AG21: -464704.5066 | AH21: -464689.5621 | AI21: -471167.6508 | AJ21: -480699.015 | AK21: -492472.5311 | AP21: 6.5 | AR21: -501840.0337 | AS21: -490820.4817 | AT21: -480388.5477 | AU21: -470055.3153 | AV21: -460254.4349 | AW21: -451231.678 | AX21: -454617.1337 | AY21: -462105.539 | AZ21: -472822.3814 | BA21: -484707.7437
Z22: 7.5 | AB22: -530614.4013 | AC22: -519853.5061 | AD22: -509552.8054 | AE22: -499219.5731 | AF22: -489418.6927 | AG22: -479543.729 | AH22: -475571.0593 | AI22: -480748.2648 | AJ22: -489069.8984 | AK22: -500196.4048 | AP22: 7 | AR22: -516227.2175 | AS22: -505336.9939 | AT22: -494970.6765 | AU22: -484637.4442 | AV22: -474836.5638 | AW22: -464704.5066 | AX22: -464689.5621 | AY22: -471167.6508 | AZ22: -480699.015 | BA22: -492472.5311
Z23: 8 | AB23: -545001.5852 | AC23: -534370.0183 | AD23: -524134.9343 | AE23: -513801.702 | AF23: -504000.8216 | AG23: -494865.0028 | AH23: -487810.939 | AI23: -490758.4991 | AJ23: -497935.0869 | AK23: -508002.1872 | AP23: 7.5 | AR23: -530614.4013 | AS23: -519853.5061 | AT23: -509552.8054 | AU23: -499219.5731 | AV23: -489418.6927 | AW23: -479543.729 | AX23: -475571.0593 | AY23: -480748.2648 | AZ23: -489069.8984 | BA23: -500196.4048
Z24: 8.5 | AB24: -559388.769 | AC24: -548886.5305 | AD24: -538717.0632 | AE24: -528383.8308 | AF24: -518582.9504 | AG24: -509573.6843 | AH24: -500981.3901 | AI24: -500908.8143 | AJ24: -507267.5473 | AK24: -516269.6244 | AP24: 8 | AR24: -545001.5852 | AS24: -534370.0183 | AT24: -524134.9343 | AU24: -513801.702 | AV24: -504000.8216 | AW24: -494865.0028 | AX24: -487810.939 | AY24: -490758.4991 | AZ24: -497935.0869 | BA24: -508002.1872
Z25: 9 | AB25: -573775.9528 | AC25: -563403.0427 | AD25: -553299.192 | AE25: -542965.9597 | AF25: -533165.0793 | AG25: -524155.8131 | AH25: -515396.8015 | AI25: -511766.1617 | AJ25: -517074.0904 | AK25: -524963.6399 | AP25: 8.5 | AR25: -559388.769 | AS25: -548886.5305 | AT25: -538717.0632 | AU25: -528383.8308 | AV25: -518582.9504 | AW25: -509573.6843 | AX25: -500981.3901 | AY25: -500908.8143 | AZ25: -507267.5473 | BA25: -516269.6244
AP26: 9 | AR26: -573775.9528 | AS26: -563403.0427 | AT26: -553299.192 | AU26: -542965.9597 | AV26: -533165.0793 | AW26: -524155.8131 | AX26: -515396.8015 | AY26: -511766.1617 | AZ26: -517074.0904 | BA26: -524963.6399
Z28: Výsledky solvru s dotační podporou
AA31: Instalovaný výkon FVE [kWp] | AQ31: Instalovaný výkon FVE [kWp]
AA32: 0 | AB32: 0.5 | AC32: 1 | AD32: 1.5 | AE32: 2 | AF32: 2.5 | AG32: 3 | AH32: 3.5 | AI32: 4 | AJ32: 4.5 | AK32: 5 | AQ32: 0 | AR32: 0.5 | AS32: 1 | AT32: 1.5 | AU32: 2 | AV32: 2.5 | AW32: 3 | AX32: 3.5 | AY32: 4 | AZ32: 4.5 | BA32: 5
Y33: Velikost akumulačního systému [kWh] | Z33: 0 | AA33: -284530.1791 | AB33: -301207.4755 | AC33: -293548.6248 | AD33: -290954.1923 | AE33: -291790.4036 | AF33: -294530.9679 | AG33: -300098.7259 | AH33: -307683.2533 | AI33: -316030.6355 | AJ33: -324969.5281 | AK33: -334318.4632 | AO33: Velikost akumulačního systému [kWh] | AP33: 0 | AQ33: -284530.1791 | AR33: -301207.4755 | AS33: -293548.6248 | AT33: -290954.1923 | AU33: -291790.4036 | AV33: -294530.9679 | AW33: -300098.7259 | AX33: -307683.2533 | AY33: -316030.6355 | AZ33: -324969.5281 | BA33: -334318.4632
Z34: 0.5 | AB34: -329193.8279 | AC34: -322767.3408 | AD34: -325279.0095 | AE34: -331688.0948 | AF34: -340293.3857 | AG34: -352109.4138 | AH34: -366157.2692 | AI34: -380867.0645 | AJ34: -396118.9855 | AK34: -411808.6387 | AP34: 0.5 | AR34: -329193.8279 | AS34: -322767.3408 | AT34: -325279.0095 | AU34: -331688.0948 | AV34: -340293.3857 | AW34: -352109.4138 | AX34: -366157.2692 | AY34: -380867.0645 | AZ34: -396118.9855 | BA34: -411808.6387
Z35: 1 | AB35: -343581.0117 | AC35: -332948.766 | AD35: -332425.4948 | AE35: -337919.1107 | AF35: -345953.6948 | AG35: -356816.9019 | AH35: -370261.0748 | AI35: -384615.7093 | AJ35: -399623.782 | AK35: -415122.8108 | AP35: 1 | AR35: -343581.0117 | AS35: -332948.766 | AT35: -332425.4948 | AU35: -337919.1107 | AV35: -345953.6948 | AW35: -356816.9019 | AX35: -370261.0748 | AY35: -384615.7093 | AZ35: -399623.782 | BA35: -415122.8108
Z36: 1.5 | AB36: -357968.1955 | AC36: -345522.3204 | AD36: -341044.7947 | AE36: -344990.0903 | AF36: -352226.1683 | AG36: -362833.1221 | AH36: -375846.5744 | AI36: -389448.285 | AJ36: -403904.9456 | AK36: -418933.8078 | AP36: 1.5 | AR36: -357968.1955 | AS36: -345522.3204 | AT36: -341044.7947 | AU36: -344990.0903 | AV36: -352226.1683 | AW36: -362833.1221 | AX36: -375846.5744 | AY36: -389448.285 | AZ36: -403904.9456 | BA36: -418933.8078
Z37: 2 | AB37: -372355.3793 | AC37: -360171.872 | AD37: -351597.2258 | AE37: -352987.7553 | AF37: -359337.8964 | AG37: -369155.742 | AH37: -381888.4377 | AI37: -395358.2616 | AJ37: -409411.8831 | AK37: -423850.8615 | AP37: 2 | AR37: -372355.3793 | AS37: -360171.872 | AT37: -351597.2258 | AU37: -352987.7553 | AV37: -359337.8964 | AW37: -369155.742 | AX37: -381888.4377 | AY37: -395358.2616 | AZ37: -409411.8831 | BA37: -423850.8615
Z38: 2.5 | AB38: -386742.5631 | AC38: -374688.3842 | AD38: -363750.9068 | AE38: -361635.7501 | AF38: -367033.7625 | AG38: -376237.1582 | AH38: -388369.3354 | AI38: -401388.4267 | AJ38: -415302.3705 | AK38: -429693.9428 | AP38: 2.5 | AR38: -386742.5631 | AS38: -374688.3842 | AT38: -363750.9068 | AU38: -361635.7501 | AV38: -367033.7625 | AW38: -376237.1582 | AX38: -388369.3354 | AY38: -401388.4267 | AZ38: -415302.3705 | BA38: -429693.9428
Z39: 3 | AB39: -401129.747 | AC39: -389204.8964 | AD39: -378192.7725 | AE39: -371769.5517 | AF39: -374972.4876 | AG39: -383864.0078 | AH39: -395419.4018 | AI39: -407941.6419 | AJ39: -421360.0862 | AK39: -435539.1769 | AP39: 3 | AR39: -401129.747 | AS39: -389204.8964 | AT39: -378192.7725 | AU39: -371769.5517 | AV39: -374972.4876 | AW39: -383864.0078 | AX39: -395419.4018 | AY39: -407941.6419 | AZ39: -421360.0862 | BA39: -435539.1769
Z40: 3.5 | AB40: -415516.9308 | AC40: -403721.4085 | AD40: -392895.7745 | AE40: -383036.6491 | AF40: -313848.5222 | AG40: -391573.146 | AH40: -403012.5936 | AI40: -414935.244 | AJ40: -427928.208 | AK40: -441617.3379 | AP40: 3.5 | AR40: -415516.9308 | AS40: -403721.4085 | AT40: -392895.7745 | AU40: -383036.6491 | AV40: -313848.5222 | AW40: -391573.146 | AX40: -403012.5936 | AY40: -414935.244 | AZ40: -427928.208 | BA40: -441617.3379
Z41: 4 | AB41: -429904.1146 | AC41: -418237.9207 | AD41: -407477.9033 | AE41: -396643.1497 | AF41: -323719.6096 | AG41: -399644.9484 | AH41: -410829.6414 | AI41: -422308.5647 | AJ41: -434806.376 | AK41: -448103.0981 | AP41: 4 | AR41: -429904.1146 | AS41: -418237.9207 | AT41: -407477.9033 | AU41: -396643.1497 | AV41: -323719.6096 | AW41: -399644.9484 | AX41: -410829.6414 | AY41: -422308.5647 | AZ41: -434806.376 | BA41: -448103.0981
Z42: 4.5 | AB42: -444291.2984 | AC42: -432754.4329 | AD42: -422060.0322 | AE42: -411637.2541 | AF42: -334154.9167 | AG42: -338534.0141 | AH42: -418563.2951 | AI42: -430057.7203 | AJ42: -441965.9729 | AK42: -454895.2292 | AP42: 4.5 | AR42: -444291.2984 | AS42: -432754.4329 | AT42: -422060.0322 | AU42: -411637.2541 | AV42: -334154.9167 | AW42: -338534.0141 | AX42: -418563.2951 | AY42: -430057.7203 | AZ42: -441965.9729 | BA42: -454895.2292
Z43: 5 | AB43: -458678.4822 | AC43: -447270.9451 | AD43: -436642.1611 | AE43: -426308.9287 | AF43: -346356.2342 | AG43: -348126.1865 | AH43: -426634.4754 | AI43: -437853.4647 | AJ43: -449479.2835 | AK43: -461883.4067 | AP43: 5 | AR43: -458678.4822 | AS43: -447270.9451 | AT43: -436642.1611 | AU43: -426308.9287 | AV43: -346356.2342 | AW43: -348126.1865 | AX43: -426634.4754 | AY43: -437853.4647 | AZ43: -449479.2835 | BA43: -461883.4067
Z44: 5.5 | AB44: -473065.6661 | AC44: -461787.4573 | AD44: -451224.2899 | AE44: -440891.0576 | AF44: -360274.3112 | AG44: -358099.7635 | AH44: -435393.2351 | AI44: -445577.3384 | AJ44: -457309.4091 | AK44: -469200.9839 | AP44: 5.5 | AR44: -473065.6661 | AS44: -461787.4573 | AT44: -451224.2899 | AU44: -440891.0576 | AV44: -360274.3112 | AW44: -358099.7635 | AX44: -435393.2351 | AY44: -445577.3384 | AZ44: -457309.4091 | BA44: -469200.9839
Z45: 6 | AB45: -487452.8499 | AC45: -476303.9695 | AD45: -465806.4188 | AE45: -455473.1865 | AF45: -375416.0514 | AG45: -368920.2732 | AH45: -374667.6972 | AI45: -453518.4127 | AJ45: -465098.5078 | AK45: -476833.8812 | AP45: 6 | AR45: -487452.8499 | AS45: -476303.9695 | AT45: -465806.4188 | AU45: -455473.1865 | AV45: -375416.0514 | AW45: -368920.2732 | AX45: -374667.6972 | AY45: -453518.4127 | AZ45: -465098.5078 | BA45: -476833.8812
Z46: 6.5 | AB46: -501840.0337 | AC46: -490820.4817 | AD46: -480388.5477 | AE46: -470055.3153 | AF46: -390254.4349 | AG46: -381231.678 | AH46: -384617.1337 | AI46: -462105.539 | AJ46: -472822.3814 | AK46: -484707.7437 | AP46: 6.5 | AR46: -501840.0337 | AS46: -490820.4817 | AT46: -480388.5477 | AU46: -470055.3153 | AV46: -390254.4349 | AW46: -381231.678 | AX46: -384617.1337 | AY46: -462105.539 | AZ46: -472822.3814 | BA46: -484707.7437
Z47: 7 | AB47: -516227.2175 | AC47: -505336.9939 | AD47: -494970.6765 | AE47: -484637.4442 | AF47: -404836.5638 | AG47: -394704.5066 | AH47: -394689.5621 | AI47: -471167.6508 | AJ47: -480699.015 | AK47: -492472.5311 | AP47: 7 | AR47: -516227.2175 | AS47: -505336.9939 | AT47: -494970.6765 | AU47: -484637.4442 | AV47: -404836.5638 | AW47: -394704.5066 | AX47: -394689.5621 | AY47: -471167.6508 | AZ47: -480699.015 | BA47: -492472.5311
Z48: 7.5 | AB48: -530614.4013 | AC48: -519853.5061 | AD48: -509552.8054 | AE48: -499219.5731 | AF48: -419418.6927 | AG48: -409543.729 | AH48: -405571.0593 | AI48: -410748.2648 | AJ48: -489069.8984 | AK48: -500196.4048 | AP48: 7.5 | AR48: -530614.4013 | AS48: -519853.5061 | AT48: -509552.8054 | AU48: -499219.5731 | AV48: -419418.6927 | AW48: -409543.729 | AX48: -405571.0593 | AY48: -410748.2648 | AZ48: -489069.8984 | BA48: -500196.4048
Z49: 8 | AB49: -545001.5852 | AC49: -534370.0183 | AD49: -524134.9343 | AE49: -513801.702 | AF49: -434000.8216 | AG49: -424865.0028 | AH49: -417810.939 | AI49: -420758.4991 | AJ49: -497935.0869 | AK49: -508002.1872 | AP49: 8 | AR49: -545001.5852 | AS49: -534370.0183 | AT49: -524134.9343 | AU49: -513801.702 | AV49: -434000.8216 | AW49: -424865.0028 | AX49: -417810.939 | AY49: -420758.4991 | AZ49: -497935.0869 | BA49: -508002.1872
Z50: 8.5 | AB50: -559388.769 | AC50: -548886.5305 | AD50: -538717.0632 | AE50: -528383.8308 | AF50: -448582.9504 | AG50: -439573.6843 | AH50: -430981.3901 | AI50: -430908.8143 | AJ50: -507267.5473 | AK50: -516269.6244 | AP50: 8.5 | AR50: -559388.769 | AS50: -548886.5305 | AT50: -538717.0632 | AU50: -528383.8308 | AV50: -448582.9504 | AW50: -439573.6843 | AX50: -430981.3901 | AY50: -430908.8143 | AZ50: -507267.5473 | BA50: -516269.6244
Z51: 9 | AB51: -573775.9528 | AC51: -563403.0427 | AD51: -553299.192 | AE51: -542965.9597 | AF51: -463165.0793 | AG51: -454155.8131 | AH51: -445396.8015 | AI51: -441766.1617 | AJ51: -417074.0904 | AK51: -524963.6399 | AP51: 9 | AR51: -573775.9528 | AS51: -563403.0427 | AT51: -553299.192 | AU51: -542965.9597 | AV51: -463165.0793 | AW51: -454155.8131 | AX51: -445396.8015 | AY51: -441766.1617 | AZ51: -417074.0904 | BA51: -524963.6399

Sheet CitlivostniAnalyza
A1: Nutné předem nastavit do listu volený instalovaný výkon a kapacitu systému
A2: Citlivostní analýza
A3: cena elektřiny | B3: FVE s aku | C3: FVE s aku bez dotace | D3: pouze FVE | E3: bez FVE
A4: 1 | B4: -251922.8977 | C4: -321922.8977 | D4: -197584.2946 | E4: -123473.1373
A5: 1.5 | B5: -263441.743 | C5: -333441.743 | D5: -218133.6833 | E5: -157611.738
A6: 2 | B6: -274960.5884 | C6: -344960.5884 | D6: -238683.0721 | E6: -191750.3386
A7: 2.5 | B7: -286479.4338 | C7: -356479.4338 | D7: -259232.4609 | E7: -225888.9392
A8: 3 | B8: -297998.2791 | C8: -367998.2791 | D8: -279781.8496 | E8: -260027.5399
A9: 3.5 | B9: -309517.1245 | C9: -379517.1245 | D9: -300331.2384 | E9: -294166.1405
A10: 4 | B10: -321035.9699 | C10: -391035.9699 | D10: -320880.6272 | E10: -328304.7411
A11: 4.5 | B11: -332554.8152 | C11: -402554.8152 | D11: -341430.0159 | E11: -362443.3418
A12: 5 | B12: -344073.6606 | C12: -414073.6606 | D12: -361979.4047 | E12: -396581.9424
A13: 5.5 | B13: -355592.5059 | C13: -425592.5059 | D13: -382528.7935 | E13: -430720.543
A14: 6 | B14: -367111.3513 | C14: -437111.3513 | D14: -403078.1822 | E14: -464859.1437
A15: 6.5 | B15: -378630.1967 | C15: -448630.1967 | D15: -423627.571 | E15: -498997.7443
A16: 7 | B16: -390149.042 | C16: -460149.042 | D16: -444176.9598 | E16: -533136.3449
A17: 7.5 | B17: -401667.8874 | C17: -471667.8874 | D17: -464726.3485 | E17: -567274.9456
A18: 8 | B18: -413186.7327 | C18: -483186.7327 | D18: -485275.7373 | E18: -601413.5462
A19: 8.5 | B19: -424705.5781 | C19: -494705.5781 | D19: -505825.1261 | E19: -635552.1468
A20: 9 | B20: -436224.4235 | C20: -506224.4235 | D20: -526374.5148 | E20: -669690.7475
A21: 9.5 | B21: -447743.2688 | C21: -517743.2688 | D21: -546923.9036 | E21: -703829.3481
A22: 10 | B22: -459262.1142 | C22: -529262.1142 | D22: -567473.2923 | E22: -737967.9487
A23: 3.36 | F23: 0
A24: 3.36 | F24: -800000
A25: diskont | B25: FVE s aku | C25: FVE s aku bez dotace | D25: pouze FVE | E25: bez FVE
A26: 0.02 | B26: -337437.9561 | C26: -407437.9561 | D26: -322815.6556 | E26: -322207.604
A27: 0.03 | B27: -306265.8152 | C27: -376265.8152 | D27: -294530.9679 | E27: -284530.1791
A28: 0.04 | B28: -279848.2269 | C28: -349848.2269 | D28: -270669.4777 | E28: -252786.5246
A29: 0.05 | B29: -257379.9167 | C29: -327379.9167 | D29: -250445.2059 | E29: -225904.0441
A30: 0.06 | B30: -238203.4764 | C30: -308203.4764 | D30: -233224.3616 | E30: -203021.6809
A31: 0.07 | B31: -221780.2891 | C31: -291780.2891 | D31: -218493.8696 | E31: -183445.4424
A32: 0.08 | B32: -207667.524 | C32: -277667.524 | D32: -205836.7659 | E32: -166613.7653
A33: 0.09 | B33: -195499.8631 | C33: -265499.8631 | D33: -194912.8928 | E33: -152070.4491
A34: 0.1 | B34: -184974.935 | C34: -254974.935 | D34: -185443.6978 | E34: -139443.4288
A35: 0.03 | F35: 0
A36: 0.03 | F36: -450000
A38: vykupní cena | B38: FVE s aku | C38: FVE s aku bez dotace | D38: pouze FVE | E38: bez FVE
A39: 0.1 | B39: -309262.821 | C39: -379262.821 | D39: -302005.9292 | E39: -284530.1791
A40: 0.2 | B40: -308263.8191 | C40: -378263.8191 | D40: -299514.2754 | E40: -284530.1791
A41: 0.3 | B41: -307264.8171 | C41: -377264.8171 | D41: -297022.6217 | E41: -284530.1791
A42: 0.4 | B42: -306265.8152 | C42: -376265.8152 | D42: -294530.9679 | E42: -284530.1791
A43: 0.5 | B43: -305266.8133 | C43: -375266.8133 | D43: -292039.3142 | E43: -284530.1791
A44: 0.6 | B44: -304267.8113 | C44: -374267.8113 | D44: -289547.6604 | E44: -284530.1791
A45: 0.7 | B45: -303268.8094 | C45: -373268.8094 | D45: -287056.0067 | E45: -284530.1791
A46: 0.8 | B46: -302269.8074 | C46: -372269.8074 | D46: -284564.3529 | E46: -284530.1791
A47: 0.9 | B47: -301270.8055 | C47: -371270.8055 | D47: -282072.6992 | E47: -284530.1791
A48: 1 | B48: -300271.8035 | C48: -370271.8035 | D48: -279581.0454 | E48: -284530.1791
A49: 1.1 | B49: -299272.8016 | C49: -369272.8016 | D49: -277089.3917 | E49: -284530.1791
A50: 1.2 | B50: -298273.7996 | C50: -368273.7996 | D50: -274597.7379 | E50: -284530.1791
A51: 1.3 | B51: -297274.7977 | C51: -367274.7977 | D51: -272106.0842 | E51: -284530.1791
A52: 1.4 | B52: -296275.7957 | C52: -366275.7957 | D52: -269614.4304 | E52: -284530.1791
A53: 1.5 | B53: -295276.7938 | C53: -365276.7938 | D53: -267122.7767 | E53: -284530.1791
A54: 1.6 | B54: -294277.7918 | C54: -364277.7918 | D54: -264631.1229 | E54: -284530.1791
A55: 1.7 | B55: -293278.7899 | C55: -363278.7899 | D55: -262139.4692 | E55: -284530.1791
A56: 1.8 | B56: -292279.7879 | C56: -362279.7879 | D56: -259647.8154 | E56: -284530.1791
A57: 1.9 | B57: -291280.786 | C57: -361280.786 | D57: -257156.1617 | E57: -284530.1791
A58: 2 | B58: -290281.784 | C58: -360281.784 | D58: -254664.5079 | E58: -284530.1791
A59: 0.4 | F59: 0
A60: 0.4 | F60: -400000
A61: cena akumulatoru | B61: FVE s aku | C61: FVE s aku bez dotace | D61: pouze FVE | E61: bez FVE
A62: 1000 | B62: -231192.5319 | C62: -287812.5319 | D62: -294530.9679 | E62: -284530.1791
A63: 2000 | B63: -235611.4438 | C63: -293851.4438 | D63: -294530.9679 | E63: -284530.1791
A64: 3000 | B64: -240030.3556 | C64: -299890.3556 | D64: -294530.9679 | E64: -284530.1791
A65: 4000 | B65: -244449.2674 | C65: -305929.2674 | D65: -294530.9679 | E65: -284530.1791
A66: 5000 | B66: -248868.1792 | C66: -311968.1792 | D66: -294530.9679 | E66: -284530.1791
A67: 6000 | B67: -253287.091 | C67: -318007.091 | D67: -294530.9679 | E67: -284530.1791
A68: 7000 | B68: -257706.0029 | C68: -324046.0029 | D68: -294530.9679 | E68: -284530.1791
A69: 8000 | B69: -262124.9147 | C69: -330084.9147 | D69: -294530.9679 | E69: -284530.1791
A70: 9000 | B70: -266543.8265 | C70: -336123.8265 | D70: -294530.9679 | E70: -284530.1791
A71: 10000 | B71: -272162.7383 | C71: -342162.7383 | D71: -294530.9679 | E71: -284530.1791
A72: 11000 | B72: -278201.6501 | C72: -348201.6501 | D72: -294530.9679 | E72: -284530.1791
A73: 12000 | B73: -284240.562 | C73: -354240.562 | D73: -294530.9679 | E73: -284530.1791
A74: 13000 | B74: -290279.4738 | C74: -360279.4738 | D74: -294530.9679 | E74: -284530.1791
A75: 14000 | B75: -296318.3856 | C75: -366318.3856 | D75: -294530.9679 | E75: -284530.1791
A76: 15000 | B76: -302357.2974 | C76: -372357.2974 | D76: -294530.9679 | E76: -284530.1791
A77: 16000 | B77: -308396.2092 | C77: -378396.2092 | D77: -294530.9679 | E77: -284530.1791
A78: 17000 | B78: -314435.121 | C78: -384435.121 | D78: -294530.9679 | E78: -284530.1791
A79: 18000 | B79: -320474.0329 | C79: -390474.0329 | D79: -294530.9679 | E79: -284530.1791
A80: 19000 | B80: -326512.9447 | C80: -396512.9447 | D80: -294530.9679 | E80: -284530.1791
A81: 20000 | B81: -332551.8565 | C81: -402551.8565 | D81: -294530.9679 | E81: -284530.1791
A82: 16899 | F82: 0
A83: 16899 | F83: -450000
A85: cena panelu | B85: FVE s aku | C85: FVE s aku bez dotace | D85: pouze FVE | E85: bez FVE
A86: 1000 | B86: -275917.3152 | C86: -336265.8152 | D86: -254530.9679 | E86: -284530.1791
A87: 1500 | B87: -278417.3152 | C87: -341265.8152 | D87: -259530.9679 | E87: -284530.1791
A88: 2000 | B88: -280917.3152 | C88: -346265.8152 | D88: -264530.9679 | E88: -284530.1791
A89: 2500 | B89: -283417.3152 | C89: -351265.8152 | D89: -269530.9679 | E89: -284530.1791
A90: 3000 | B90: -286265.8152 | C90: -356265.8152 | D90: -274530.9679 | E90: -284530.1791
A91: 3500 | B91: -291265.8152 | C91: -361265.8152 | D91: -279530.9679 | E91: -284530.1791
A92: 4000 | B92: -296265.8152 | C92: -366265.8152 | D92: -284530.9679 | E92: -284530.1791
A93: 4500 | B93: -301265.8152 | C93: -371265.8152 | D93: -289530.9679 | E93: -284530.1791
A94: 5000 | B94: -306265.8152 | C94: -376265.8152 | D94: -294530.9679 | E94: -284530.1791
A95: 5500 | B95: -311265.8152 | C95: -381265.8152 | D95: -299530.9679 | E95: -284530.1791
A96: 6000 | B96: -316265.8152 | C96: -386265.8152 | D96: -304530.9679 | E96: -284530.1791
A97: 6500 | B97: -321265.8152 | C97: -391265.8152 | D97: -309530.9679 | E97: -284530.1791
A98: 7000 | B98: -326265.8152 | C98: -396265.8152 | D98: -314530.9679 | E98: -284530.1791
A99: 7500 | B99: -331265.8152 | C99: -401265.8152 | D99: -319530.9679 | E99: -284530.1791
A100: 8000 | B100: -336265.8152 | C100: -406265.8152 | D100: -324530.9679 | E100: -284530.1791
A101: 8500 | B101: -341265.8152 | C101: -411265.8152 | D101: -329530.9679 | E101: -284530.1791
A102: 9000 | B102: -346265.8152 | C102: -416265.8152 | D102: -334530.9679 | E102: -284530.1791
A103: 9500 | B103: -351265.8152 | C103: -421265.8152 | D103: -339530.9679 | E103: -284530.1791
A104: 10000 | B104: -356265.8152 | C104: -426265.8152 | D104: -344530.9679 | E104: -284530.1791
A109: cena investice | B109: FVE s aku | C109: FVE s aku bez dotace | D109: pouze FVE | E109: bez FVE
A110: 10000 | B110: -179498.9476 | C110: -184498.9476 | D110: -217030.9679 | E110: -284530.1791
A111: 20000 | B111: -187224.2751 | C111: -197224.2751 | D111: -227030.9679 | E111: -284530.1791
A112: 30000 | B112: -194949.6026 | C112: -209949.6026 | D112: -237030.9679 | E112: -284530.1791
A113: 40000 | B113: -202674.9301 | C113: -222674.9301 | D113: -247030.9679 | E113: -284530.1791
A114: 50000 | B114: -210400.2576 | C114: -235400.2576 | D114: -257030.9679 | E114: -284530.1791
A115: 60000 | B115: -218125.5851 | C115: -248125.5851 | D115: -267030.9679 | E115: -284530.1791
A116: 70000 | B116: -225850.9126 | C116: -260850.9126 | D116: -277030.9679 | E116: -284530.1791
A117: 80000 | B117: -233576.2401 | C117: -273576.2401 | D117: -287030.9679 | E117: -284530.1791
A118: 90000 | B118: -241301.5676 | C118: -286301.5676 | D118: -297030.9679 | E118: -284530.1791
A119: 100000 | B119: -249026.8951 | C119: -299026.8951 | D119: -307030.9679 | E119: -284530.1791
A120: 110000 | B120: -256752.2226 | C120: -311752.2226 | D120: -317030.9679 | E120: -284530.1791
A121: 120000 | B121: -264477.5501 | C121: -324477.5501 | D121: -327030.9679 | E121: -284530.1791
A122: 130000 | B122: -272202.8775 | C122: -337202.8775 | D122: -337030.9679 | E122: -284530.1791
A123: 140000 | B123: -279928.205 | C123: -349928.205 | D123: -347030.9679 | E123: -284530.1791
A124: 150000 | B124: -292653.5325 | C124: -362653.5325 | D124: -357030.9679 | E124: -284530.1791
A125: 160000 | B125: -305378.86 | C125: -375378.86 | D125: -367030.9679 | E125: -284530.1791
A126: 170000 | B126: -318104.1875 | C126: -388104.1875 | D126: -377030.9679 | E126: -284530.1791
A127: 180000 | B127: -330829.515 | C127: -400829.515 | D127: -387030.9679 | E127: -284530.1791
A128: 190000 | B128: -343554.8425 | C128: -413554.8425 | D128: -397030.9679 | E128: -284530.1791
A129: 200000 | B129: -356280.17 | C129: -426280.17 | D129: -407030.9679 | E129: -284530.1791
A130: 160933 | F130: 0
A131: 160933 | F131: -500000
A132: 87500 | F132: 0
A133: 87500 | F133: -350000

Sheet NákladypouzeFV
B2: cena | C2: =Náklady!C2 -> 50000 | E2: NPV přes ADCF | F2: =H42 -> -294530.9679
B3: cena konstrukce | C3: =Náklady!C3 -> 10000 | E3: NPV fcí | F3: =NPV(C10,F18:F42)+F17 -> -294530.9679
B4: zivostnost | C4: =Náklady!C4 -> 25
B5: cena měniče | C5: =D5 -> 27500 | D5: =IF(Náklady!O2>0,ROUND(3000*Náklady!O2+20000,-2),0) -> 27500
B6: dotace | C6: 0
B7: investice | C7: =C2+C3+C5 -> 87500
B8: cena elektřiny | C8: =Náklady!C11 -> 3.35887
B9: inflace | C9: =Náklady!C12 -> 0.02
B10: diskont | C10: =Náklady!C13 -> 0.03
B11: výkupní cena | C11: =Náklady!C14 -> 0.4 | D11: za kWh
B16: rok | C16: investice | D16: výdaje na spotřebu | E16: prodej přebytků | F16: CF | G16: DCF | H16: ADCF
B17: 0 | C17: =-C7 -> -87500 | F17: =C17+D17+E17 -> -87500 | G17: =F17/(1+$C$10)^B17 -> -87500 | H17: =SUM($G$17:G17) -> -87500
B18: 1 | D18: =(MakroSOUHRN!J6*$C$8-Cenaelektriny!$D$31)*((1+$C$9)^B18)*1.21 -> -8759.615689 | E18: =MakroSOUHRN!K6*$C$11*((1+$C$9)^B18) -> 532.5440664 | F18: -8227.071623 | G18: -7987.448178 | H18: =SUM($G$17:G18) -> -95487.44818
B19: 2 | D19: =(MakroSOUHRN!J7*$C$8-Cenaelektriny!$D$31)*((1+$C$9)^B19)*1.21 -> -8948.032077 | E19: =MakroSOUHRN!K7*$C$11*((1+$C$9)^B19) -> 536.6281181 | F19: -8411.403959 | G19: -7928.554961 | H19: =SUM($G$17:G19) -> -103416.0031
B20: 3 | D20: =(MakroSOUHRN!J8*$C$8-Cenaelektriny!$D$31)*((1+$C$9)^B20)*1.21 -> -9140.525771 | E20: =MakroSOUHRN!K8*$C$11*((1+$C$9)^B20) -> 540.6668937 | F20: -8599.858877 | G20: -7870.089123 | H20: =SUM($G$17:G20) -> -111286.0923
B21: 4 | D21: =(MakroSOUHRN!J9*$C$8-Cenaelektriny!$D$31)*((1+$C$9)^B21)*1.21 -> -9337.226037 | E21: =MakroSOUHRN!K9*$C$11*((1+$C$9)^B21) -> 544.6610368 | F21: -8792.565 | G21: -7812.080121 | H21: =SUM($G$17:G21) -> -119098.1724
B22: 5 | D22: =(MakroSOUHRN!J10*$C$8-Cenaelektriny!$D$31)*((1+$C$9)^B22)*1.21 -> -9538.932008 | E22: =MakroSOUHRN!K10*$C$11*((1+$C$9)^B22) -> 548.6768146 | F22: -8990.255193 | G22: -7755.073104 | H22: =SUM($G$17:G22) -> -126853.2455
B23: 6 | D23: =(MakroSOUHRN!J11*$C$8-Cenaelektriny!$D$31)*((1+$C$9)^B23)*1.21 -> -9745.446108 | E23: =MakroSOUHRN!K11*$C$11*((1+$C$9)^B23) -> 552.6820868 | F23: -9192.764021 | G23: -7698.795143 | H23: =SUM($G$17:G23) -> -134552.0406
B24: 7 | D24: =(MakroSOUHRN!J12*$C$8-Cenaelektriny!$D$31)*((1+$C$9)^B24)*1.21 -> -9956.448081 | E24: =MakroSOUHRN!K12*$C$11*((1+$C$9)^B24) -> 556.6323196 | F24: -9399.815762 | G24: -7642.910404 | H24: =SUM($G$17:G24) -> -142194.951
B25: 8 | D25: =(MakroSOUHRN!J13*$C$8-Cenaelektriny!$D$31)*((1+$C$9)^B25)*1.21 -> -10171.99196 | E25: =MakroSOUHRN!K13*$C$11*((1+$C$9)^B25) -> 560.5194889 | F25: -9611.472466 | G25: -7587.38512 | H25: =SUM($G$17:G25) -> -149782.3362
B26: 9 | D26: =(MakroSOUHRN!J14*$C$8-Cenaelektriny!$D$31)*((1+$C$9)^B26)*1.21 -> -10392.17501 | E26: =MakroSOUHRN!K14*$C$11*((1+$C$9)^B26) -> 564.3394921 | F26: -9827.835513 | G26: -7532.21758 | H26: =SUM($G$17:G26) -> -157314.5537
B27: 10 | D27: =(MakroSOUHRN!J15*$C$8-Cenaelektriny!$D$31)*((1+$C$9)^B27)*1.21 -> -10617.3064 | E27: =MakroSOUHRN!K15*$C$11*((1+$C$9)^B27) -> 568.1087384 | F27: -10049.19767 | G27: -7477.546833 | H27: =SUM($G$17:G27) -> -164792.1006
B28: 11 | D28: =(MakroSOUHRN!J16*$C$8-Cenaelektriny!$D$31)*((1+$C$9)^B28)*1.21 -> -10847.48836 | E28: =MakroSOUHRN!K16*$C$11*((1+$C$9)^B28) -> 571.8229162 | F28: -10275.66544 | G28: -7423.359348 | H28: =SUM($G$17:G28) -> -172215.4599
B29: 12 | D29: =(MakroSOUHRN!J17*$C$8-Cenaelektriny!$D$31)*((1+$C$9)^B29)*1.21 -> -11082.76706 | E29: =MakroSOUHRN!K17*$C$11*((1+$C$9)^B29) -> 575.471841 | F29: -10507.29522 | G29: -7369.605461 | H29: =SUM($G$17:G29) -> -179585.0654
B30: 13 | D30: =(MakroSOUHRN!J18*$C$8-Cenaelektriny!$D$31)*((1+$C$9)^B30)*1.21 -> -11323.14978 | E30: =MakroSOUHRN!K18*$C$11*((1+$C$9)^B30) -> 579.0411298 | F30: -10744.10865 | G30: -7316.215181 | H30: =SUM($G$17:G30) -> -186901.2806
B31: 14 | D31: =(MakroSOUHRN!J19*$C$8-Cenaelektriny!$D$31)*((1+$C$9)^B31)*1.21 -> -11569.67785 | E31: =MakroSOUHRN!K19*$C$11*((1+$C$9)^B31) -> 582.617794 | F31: -10987.06005 | G31: -7263.741033 | H31: =SUM($G$17:G31) -> -194165.0216
B32: 15 | C32: =-$D$5*((1+$C$9)^B32) -> -37011.3793 | D32: =(MakroSOUHRN!J20*$C$8-Cenaelektriny!$D$31)*((1+$C$9)^B32)*1.21 -> -11821.65942 | E32: =MakroSOUHRN!K20*$C$11*((1+$C$9)^B32) -> 586.1178807 | F32: -48246.92084 | G32: -30967.86257 | H32: =SUM($G$17:G32) -> -225132.8842
B33: 16 | D33: =(MakroSOUHRN!J21*$C$8-Cenaelektriny!$D$31)*((1+$C$9)^B33)*1.21 -> -12079.13237 | E33: =MakroSOUHRN!K21*$C$11*((1+$C$9)^B33) -> 589.5288581 | F33: -11489.60351 | G33: -7159.941051 | H33: =SUM($G$17:G33) -> -232292.8252
B34: 17 | D34: =(MakroSOUHRN!J22*$C$8-Cenaelektriny!$D$31)*((1+$C$9)^B34)*1.21 -> -12343.06775 | E34: =MakroSOUHRN!K22*$C$11*((1+$C$9)^B34) -> 592.929636 | F34: -11750.13811 | G34: -7109.0268 | H34: =SUM($G$17:G34) -> -239401.852
B35: 18 | D35: =(MakroSOUHRN!J23*$C$8-Cenaelektriny!$D$31)*((1+$C$9)^B35)*1.21 -> -12613.39484 | E35: =MakroSOUHRN!K23*$C$11*((1+$C$9)^B35) -> 596.296175 | F35: -12017.09866 | G35: -7058.778953 | H35: =SUM($G$17:G35) -> -246460.631
B36: 19 | D36: =(MakroSOUHRN!J24*$C$8-Cenaelektriny!$D$31)*((1+$C$9)^B36)*1.21 -> -12892.46999 | E36: =MakroSOUHRN!K24*$C$11*((1+$C$9)^B36) -> 599.8428859 | F36: -12292.62711 | G36: -7010.313473 | H36: =SUM($G$17:G36) -> -253470.9444
B37: 20 | D37: =(MakroSOUHRN!J25*$C$8-Cenaelektriny!$D$31)*((1+$C$9)^B37)*1.21 -> -13177.6628 | E37: =MakroSOUHRN!K25*$C$11*((1+$C$9)^B37) -> 603.2929467 | F37: -12574.36985 | G37: -6962.123712 | H37: =SUM($G$17:G37) -> -260433.0681
B38: 21 | D38: =(MakroSOUHRN!J26*$C$8-Cenaelektriny!$D$31)*((1+$C$9)^B38)*1.21 -> -13469.10633 | E38: =MakroSOUHRN!K26*$C$11*((1+$C$9)^B38) -> 606.6410729 | F38: -12862.46526 | G38: -6914.208886 | H38: =SUM($G$17:G38) -> -267347.277
B39: 22 | D39: =(MakroSOUHRN!J27*$C$8-Cenaelektriny!$D$31)*((1+$C$9)^B39)*1.21 -> -13766.93654 | E39: =MakroSOUHRN!K27*$C$11*((1+$C$9)^B39) -> 609.8818068 | F39: -13157.05473 | G39: -6866.568198 | H39: =SUM($G$17:G39) -> -274213.8452
B40: 23 | D40: =(MakroSOUHRN!J28*$C$8-Cenaelektriny!$D$31)*((1+$C$9)^B40)*1.21 -> -14071.29231 | E40: =MakroSOUHRN!K28*$C$11*((1+$C$9)^B40) -> 613.0095138 | F40: -13458.2828 | G40: -6819.200842 | H40: =SUM($G$17:G40) -> -281033.0461
B41: 24 | D41: =(MakroSOUHRN!J29*$C$8-Cenaelektriny!$D$31)*((1+$C$9)^B41)*1.21 -> -14382.3932 | E41: =MakroSOUHRN!K29*$C$11*((1+$C$9)^B41) -> 616.0260195 | F41: -13766.36718 | G41: -6772.140443 | H41: =SUM($G$17:G41) -> -287805.1865
B42: 25 | D42: =(MakroSOUHRN!J30*$C$8-Cenaelektriny!$D$31)*((1+$C$9)^B42)*1.21 -> -14701.30902 | E42: =MakroSOUHRN!K30*$C$11*((1+$C$9)^B42) -> 619.016343 | F42: -14082.29267 | G42: -6725.781409 | H42: =SUM($G$17:G42) -> -294530.9679

Sheet NákladybezFV
B2: cena elektřiny | C2: =Náklady!C11 -> 3.35887 | E2: NPV přes ADCF | F2: =H34 -> -284530.1791
B3: inflace | C3: =Náklady!C12 -> 0.02 | E3: NPV fcí | F3: =NPV(C4,F10:F34,F9) -> -284530.1791
B4: diskont | C4: =Náklady!C13 -> 0.03
B5: investice | C5: 0
B6: výkupní cena | C6: =Náklady!C14 -> 0.4 | D6: za kWh
B8: rok | C8: investice | D8: výdaje na spotřebu | E8: prodej přebytků | F8: CF | G8: DCF | H8: ADCF
B9: 0 | C9: 0 | F9: 0 | G9: 0 | H9: 0
B10: 1 | C10: 0 | D10: =(-TechData!$AB$90*$C$2-Cenaelektriny!$D$31)*((1+$C$3)^B10)*1.21 -> -13146.07024 | E10: 0 | F10: =E10+D10+C10 -> -13146.07024 | G10: =F10/((1+$C$4)^B10) -> -12763.17499 | H10: =SUM($G$9:G10) -> -12763.17499
B11: 2 | C11: 0 | D11: =(-TechData!$AB$90*$C$2-Cenaelektriny!$D$31)*((1+$C$3)^B11)*1.21 -> -13408.99165 | E11: 0 | F11: -13408.99165 | G11: -12639.26067 | H11: =SUM($G$9:G11) -> -25402.43567
B12: 3 | C12: 0 | D12: =(-TechData!$AB$90*$C$2-Cenaelektriny!$D$31)*((1+$C$3)^B12)*1.21 -> -13677.17148 | E12: 0 | F12: -13677.17148 | G12: -12516.54941 | H12: =SUM($G$9:G12) -> -37918.98507
B13: 4 | C13: 0 | D13: =(-TechData!$AB$90*$C$2-Cenaelektriny!$D$31)*((1+$C$3)^B13)*1.21 -> -13950.71491 | E13: 0 | F13: -13950.71491 | G13: -12395.02951 | H13: =SUM($G$9:G13) -> -50314.01458
B14: 5 | C14: 0 | D14: =(-TechData!$AB$90*$C$2-Cenaelektriny!$D$31)*((1+$C$3)^B14)*1.21 -> -14229.72921 | E14: 0 | F14: -14229.72921 | G14: -12274.68942 | H14: =SUM($G$9:G14) -> -62588.704
B15: 6 | C15: 0 | D15: =(-TechData!$AB$90*$C$2-Cenaelektriny!$D$31)*((1+$C$3)^B15)*1.21 -> -14514.32379 | E15: 0 | F15: -14514.32379 | G15: -12155.51767 | H15: =SUM($G$9:G15) -> -74744.22167
B16: 7 | C16: 0 | D16: =(-TechData!$AB$90*$C$2-Cenaelektriny!$D$31)*((1+$C$3)^B16)*1.21 -> -14804.61027 | E16: 0 | F16: -14804.61027 | G16: -12037.50294 | H16: =SUM($G$9:G16) -> -86781.72461
B17: 8 | C17: 0 | D17: =(-TechData!$AB$90*$C$2-Cenaelektriny!$D$31)*((1+$C$3)^B17)*1.21 -> -15100.70248 | E17: 0 | F17: -15100.70248 | G17: -11920.63398 | H17: =SUM($G$9:G17) -> -98702.35859
B18: 9 | C18: 0 | D18: =(-TechData!$AB$90*$C$2-Cenaelektriny!$D$31)*((1+$C$3)^B18)*1.21 -> -15402.71652 | E18: 0 | F18: -15402.71652 | G18: -11804.89967 | H18: =SUM($G$9:G18) -> -110507.2583
B19: 10 | C19: 0 | D19: =(-TechData!$AB$90*$C$2-Cenaelektriny!$D$31)*((1+$C$3)^B19)*1.21 -> -15710.77086 | E19: 0 | F19: -15710.77086 | G19: -11690.28899 | H19: =SUM($G$9:G19) -> -122197.5472
B20: 11 | C20: 0 | D20: =(-TechData!$AB$90*$C$2-Cenaelektriny!$D$31)*((1+$C$3)^B20)*1.21 -> -16024.98627 | E20: 0 | F20: -16024.98627 | G20: -11576.79104 | H20: =SUM($G$9:G20) -> -133774.3383
B21: 12 | C21: 0 | D21: =(-TechData!$AB$90*$C$2-Cenaelektriny!$D$31)*((1+$C$3)^B21)*1.21 -> -16345.486 | E21: 0 | F21: -16345.486 | G21: -11464.39501 | H21: =SUM($G$9:G21) -> -145238.7333
B22: 13 | C22: 0 | D22: =(-TechData!$AB$90*$C$2-Cenaelektriny!$D$31)*((1+$C$3)^B22)*1.21 -> -16672.39572 | E22: 0 | F22: -16672.39572 | G22: -11353.0902 | H22: =SUM($G$9:G22) -> -156591.8235
B23: 14 | C23: 0 | D23: =(-TechData!$AB$90*$C$2-Cenaelektriny!$D$31)*((1+$C$3)^B23)*1.21 -> -17005.84363 | E23: 0 | F23: -17005.84363 | G23: -11242.86603 | H23: =SUM($G$9:G23) -> -167834.6895
B24: 15 | C24: 0 | D24: =(-TechData!$AB$90*$C$2-Cenaelektriny!$D$31)*((1+$C$3)^B24)*1.21 -> -17345.9605 | E24: 0 | F24: -17345.9605 | G24: -11133.71199 | H24: =SUM($G$9:G24) -> -178968.4015
B25: 16 | C25: 0 | D25: =(-TechData!$AB$90*$C$2-Cenaelektriny!$D$31)*((1+$C$3)^B25)*1.21 -> -17692.87971 | E25: 0 | F25: -17692.87971 | G25: -11025.6177 | H25: =SUM($G$9:G25) -> -189994.0192
B26: 17 | C26: 0 | D26: =(-TechData!$AB$90*$C$2-Cenaelektriny!$D$31)*((1+$C$3)^B26)*1.21 -> -18046.73731 | E26: 0 | F26: -18046.73731 | G26: -10918.57287 | H26: =SUM($G$9:G26) -> -200912.5921
B27: 18 | C27: 0 | D27: =(-TechData!$AB$90*$C$2-Cenaelektriny!$D$31)*((1+$C$3)^B27)*1.21 -> -18407.67206 | E27: 0 | F27: -18407.67206 | G27: -10812.5673 | H27: =SUM($G$9:G27) -> -211725.1594
B28: 19 | C28: 0 | D28: =(-TechData!$AB$90*$C$2-Cenaelektriny!$D$31)*((1+$C$3)^B28)*1.21 -> -18775.8255 | E28: 0 | F28: -18775.8255 | G28: -10707.59092 | H28: =SUM($G$9:G28) -> -222432.7503
B29: 20 | C29: 0 | D29: =(-TechData!$AB$90*$C$2-Cenaelektriny!$D$31)*((1+$C$3)^B29)*1.21 -> -19151.34201 | E29: 0 | F29: -19151.34201 | G29: -10603.63373 | H29: =SUM($G$9:G29) -> -233036.384
B30: 21 | C30: 0 | D30: =(-TechData!$AB$90*$C$2-Cenaelektriny!$D$31)*((1+$C$3)^B30)*1.21 -> -19534.36885 | E30: 0 | F30: -19534.36885 | G30: -10500.68583 | H30: =SUM($G$9:G30) -> -243537.0699
B31: 22 | C31: 0 | D31: =(-TechData!$AB$90*$C$2-Cenaelektriny!$D$31)*((1+$C$3)^B31)*1.21 -> -19925.05622 | E31: 0 | F31: -19925.05622 | G31: -10398.73742 | H31: =SUM($G$9:G31) -> -253935.8073
B32: 23 | C32: 0 | D32: =(-TechData!$AB$90*$C$2-Cenaelektriny!$D$31)*((1+$C$3)^B32)*1.21 -> -20323.55735 | E32: 0 | F32: -20323.55735 | G32: -10297.77881 | H32: =SUM($G$9:G32) -> -264233.5861
B33: 24 | C33: 0 | D33: =(-TechData!$AB$90*$C$2-Cenaelektriny!$D$31)*((1+$C$3)^B33)*1.21 -> -20730.02849 | E33: 0 | F33: -20730.02849 | G33: -10197.80037 | H33: =SUM($G$9:G33) -> -274431.3865
B34: 25 | C34: 0 | D34: =(-TechData!$AB$90*$C$2-Cenaelektriny!$D$31)*((1+$C$3)^B34)*1.21 -> -21144.62906 | E34: 0 | F34: -21144.62906 | G34: -10098.7926 | H34: =SUM($G$9:G34) -> -284530.1791

Sheet Cenaelektriny
F5: měsíců
F6: 12
A7: tarif | B7: Pre Klasik | C7: sazba | D7: D02d | F7: Spotřeba energie s aku
A8: Cena silové elekřiny | B8: kč/kWh | C8: kWh | D8: celkem | F8: =-MakroSOUHRN!M6 -> 785.5491568 | G8: kWh
A9: ve vysokém | B9: 1.192 | C9: =F8 -> 785.5491568 | D9: =B9*C9 -> 936.3745949 | F9: Cena elektřiny v prvním roce
A10: v nizkém | B10: 0 | C10: 0 | D10: =B10*C10 -> 0 | F10: =$D$29 -> 5692.85337
A11: Měsíční poplatek za odběrné místo | B11: Kč/měsíc | C11: měsíců | D11: celkem
B12: 79 | C12: =F6 -> 12 | D12: =B12*C12 -> 948
A13: Daň z elektřiny | B13: Kč/kWh | C13: kWh | D13: celkem
B14: 0.0283 | C14: =F8 -> 785.5491568 | D14: =B14*C14 -> 22.23104114
A15: Obchod s elektřinou | D15: =SUM(D14+D12+D9+D10) -> 1906.605636
A16: Plat za distrubované množství | B16: kč/kWh | C16: kWh | D16: celkem
B17: 1.51556 | C17: =F8 -> 785.5491568 | D17: =B17*C17 -> 1190.54688
A18: Hl.jistic / Plat za príkon | B18: Kč/měsíc | C18: měsíců | D18: celkem
A19: od 3x20 A do 3x25 A | B19: 89 | C19: =F6 -> 12 | D19: =B19*C19 -> 1068
A20: Distribuční služby | D20: =SUM(D19+D17) -> 2258.54688
B21: kč/kWh | C21: kWh | D21: celkem
A22: Systémové služby | B22: 0.12801 | C22: =F8 -> 785.5491568 | D22: =B22*C22 -> 100.5581476
A23: Cena na podporu elektřiny z podporovaných zdrojů energie | B23: 0.495 | C23: =F8 -> 785.5491568 | D23: =B23*C23 -> 388.8468326
A24: Cinnosti OTE | B24: kč/měsíc | C24: měsíců | D24: celkem
B25: 4.19 | C25: =F6 -> 12 | D25: =B25*C25 -> 50.28
A26: Regulované služby | D26: =SUM(D25+D23+D22+D20) -> 2798.23186
A27: Elektrina a regulované služby celkem bez DPH | D27: =D26+D15 -> 4704.837496
A28: Daň z elektřiny | B28: 0.21 | D28: =D27*0.21 -> 988.0158742
A29: Elektrina a regulované služby celkem | D29: =SUM(D28+D27) -> 5692.85337
A30: Cena za kWh | B30: =B22+B23+B17+B14+B9 -> 3.35887 | D30: =B30*F8 -> 2638.557496
A31: Měsíční platba | B31: =B25+B19+B12 -> 172.19 | D31: =12*B31 -> 2066.28
A32: Celkem | D32: =D30+D31 -> 4704.837496
A33: Celkem s DPH | D33: =1.21*D32 -> 5692.85337

Sheet MakroSOUHRN
B2: rok | C2: roční výroba | D2: přebytky všední dny | E2: přebytky víkendy | F2: spotřeba všední dny | G2: spotřeba víkendy | H2: akumulace všední dny | I2: akumulace víkendy | J2: suma spotřeba | K2: suma přebytek | L2: suma aku | M2: spotřeba s aku | N2: přebytek s aku | O2: Počet cyklu
C3: =SUMPRODUCT(TechData!L11:L22,TechData!AA46:AA57) -> 2382.282 | D3: =SUMPRODUCT(TechData!$M$11:$M$22,TechData!$AC$94:$AC$105) -> 951.9544394 | E3: =SUMPRODUCT(TechData!$N$11:$N$22,TechData!$AC$110:$AC$121) -> 369.2223324 | F3: =SUMPRODUCT(TechData!$M$11:$M$22,TechData!$AB$94:$AB$105) -> -1088.203739 | G3: =SUMPRODUCT(TechData!$N$11:$N$22,TechData!$AB$110:$AB$121) -> -406.6729674 | H3: =SUMPRODUCT(TechData!M11:M22,TechData!AD94:AD105) -> 481.7708266 | I3: =SUMPRODUCT(TechData!N11:N22,TechData!AD110:AD121) -> 187.6007788 | J3: =$F$3+$G$3 -> -1494.876707 | K3: =D3+E3 -> 1321.176772 | L3: =H3+I3 -> 669.3716053 | M3: =J3+L3 -> -825.5051014 | N3: =K3-L3 -> 651.8051664 | O3: =TechData!AE122 -> 345
B4: rok | C4: roční výroba | D4: přebytky všední dny | E4: přebytky víkendy | F4: spotřeba všední dny | G4: spotřeba víkendy | H4: akumulace všední dny | I4: akumulace víkendy | J4: suma spotřeba | K4: suma přebytek | L4: suma aku | M4: spotřeba s aku | N4: přebytek s aku | O4: Počet cyklu | P4: Aktuální počet bat
R5: 5000
B6: 1 | C6: 2363.375 | D6: 941.1464016 | E6: 364.1086631 | F6: -1090.490622 | G6: -407.3713781 | H6: 511.4032813 | I6: 200.9095615 | J6: -1497.862 | K6: 1305.255065 | L6: 712.3128429 | M6: -785.5491568 | N6: 592.9422218 | O6: 345 | P6: 345 | Q6: =(C6+J6)+L6 -> 1577.825843
B7: 2 | C7: 2344.468 | D7: 930.4804919 | E7: 358.9949937 | F7: -1092.919632 | G7: -408.0697887 | H7: 510.2517361 | I7: 200.4903443 | J7: -1500.989421 | K7: 1289.475486 | L7: 710.7420804 | M7: -790.2473402 | N7: 578.7334052 | O7: 690 | P7: 690
B8: 3 | C8: 2325.561 | D8: 919.8153829 | E8: 353.8908407 | F8: -1095.349443 | G8: -408.7777157 | H8: 509.1001908 | I8: 197.510076 | J8: -1504.127159 | K8: 1273.706224 | L8: 706.6102669 | M8: -797.5168918 | N8: 567.0959568 | O8: 1035 | P8: 1035
B9: 4 | C9: 2306.654 | D9: 909.150274 | E9: 348.8062451 | F9: -1097.779254 | G9: -409.5052001 | H9: 507.9486456 | I9: 196.7774788 | J9: -1507.284454 | K9: 1257.956519 | L9: 704.7261244 | M9: -802.5583297 | N9: 553.2303947 | O9: 1380 | P9: 1380
B10: 5 | C10: 2287.747 | D10: 898.6389814 | E10: 343.7447577 | F10: -1100.362881 | G10: -410.2557927 | H10: 506.804969 | I10: 196.0615195 | J10: -1510.618674 | K10: 1242.383739 | L10: 702.8664885 | M10: -807.7521856 | N10: 539.5172506 | O10: 1725 | P10: 1725
B11: 6 | C11: 2268.84 | D11: 888.2314209 | E11: 338.6832704 | F11: -1103.050241 | G11: -411.0063854 | H11: 505.664001 | I11: 195.3455603 | J11: -1514.056626 | K11: 1226.914691 | L11: 701.0095613 | M11: -813.047065 | N11: 525.90513 | O11: 2070 | P11: 2070
B12: 7 | C12: 2249.933 | D12: 877.8330459 | E12: 333.6217831 | F12: -1105.746786 | G12: -411.7569781 | H12: 504.5230331 | I12: 191.8018033 | J12: -1517.503764 | K12: 1211.454829 | L12: 696.3248363 | M12: -821.1789277 | N12: 515.1299927 | O12: 2415 | P12: 2415
B13: 8 | C13: 2231.026 | D13: 867.4346709 | E13: 328.5602958 | F13: -1108.443331 | G13: -412.5075708 | H13: 503.3820651 | I13: 190.6899157 | J13: -1520.950902 | K13: 1195.994967 | L13: 694.0719808 | M13: -826.8789209 | N13: 501.9229859 | O13: 2760 | P13: 2760
B14: 9 | C14: 2212.119 | D14: 857.0362959 | E14: 323.4988085 | F14: -1111.139876 | G14: -413.2581635 | H14: 502.2410971 | I14: 189.5780281 | J14: -1524.398039 | K14: 1180.535104 | L14: 691.8191252 | M14: -832.5789141 | N14: 488.7159791 | O14: 3105 | P14: 3105
B15: 10 | C15: 2193.212 | D15: 846.6379209 | E15: 318.4796733 | F15: -1113.836421 | G15: -414.0511083 | H15: 501.1001292 | I15: 188.4966341 | J15: -1527.887529 | K15: 1165.117594 | L15: 689.5967632 | M15: -838.2907659 | N15: 475.5208309 | O15: 3450 | P15: 3450
B16: 11 | C16: 2174.305 | D16: 836.2395459 | E16: 313.5005452 | F16: -1116.532966 | G16: -414.8840602 | H16: 499.9591612 | I16: 187.4440451 | J16: -1531.417026 | K16: 1149.740091 | L16: 687.4032063 | M16: -844.0138197 | N16: 462.3368847 | O16: 3795 | P16: 3795
B17: 12 | C17: 2155.398 | D17: 825.8411709 | E17: 308.5478775 | F17: -1119.229511 | G17: -415.7434725 | H17: 492.1597609 | I17: 186.4105077 | J17: -1534.972983 | K17: 1134.389048 | L17: 678.5702686 | M17: -856.4027148 | N17: 455.8187798 | O17: 4140 | P17: 4140
B18: 13 | C18: 2136.491 | D18: 815.4471194 | E18: 303.5969474 | F18: -1121.930379 | G18: -416.6046224 | H18: 490.4092609 | I18: 185.3769703 | J18: -1538.535002 | K18: 1119.044067 | L18: 675.7862312 | M18: -862.7487706 | N18: 443.2578356 | O18: 4485 | P18: 4485
B19: 14 | C19: 2117.584 | D19: 805.2297616 | E19: 298.6489258 | F19: -1124.807942 | G19: -417.4686808 | H19: 488.658761 | I19: 184.3434328 | J19: -1542.276622 | K19: 1103.878687 | L19: 673.0021938 | M19: -869.2744286 | N19: 430.8764936 | O19: 4830 | P19: 4830
B20: 15 | C20: 2098.677 | D20: 795.0346429 | E20: 293.7009043 | F20: -1127.707743 | G20: -418.3327393 | H20: 486.908261 | I20: 183.3098954 | J20: -1546.040482 | K20: 1088.735547 | L20: 670.2181564 | M20: -875.8223258 | N20: 418.5173908 | O20: 5175 | P20: 5175
B21: 16 | C21: 2079.77 | D21: 784.8466891 | E21: 288.7528827 | F21: -1130.614709 | G21: -419.1967977 | H21: 479.1355293 | I21: 182.276358 | J21: -1549.811507 | K21: 1073.599572 | L21: 661.4118873 | M21: -888.3996196 | N21: 412.1876846 | O21: 5520 | P21: 520
B22: 17 | C22: 2060.863 | D22: 774.8155094 | E22: 283.8048612 | F22: -1133.678449 | G22: -420.0608562 | H22: 476.7711139 | I22: 181.2428205 | J22: -1553.739306 | K22: 1058.620371 | L22: 658.0139344 | M22: -895.7253712 | N22: 400.6064362 | O22: 5865 | P22: 865
B23: 18 | C23: 2041.956 | D23: 764.88584 | E23: 278.8700531 | F23: -1136.8437 | G23: -420.9381281 | H23: 474.4116459 | I23: 180.2187967 | J23: -1557.781828 | K23: 1043.755893 | L23: 654.6304426 | M23: -903.1513854 | N23: 389.1254504 | O23: 6210 | P23: 1210
B24: 19 | C24: 2023.049 | D24: 755.4154302 | E24: 273.9610896 | F24: -1140.46821 | G24: -421.8412446 | H24: 472.0744594 | I24: 179.2133811 | J24: -1562.309455 | K24: 1029.37652 | L24: 651.2878406 | M24: -911.0216142 | N24: 378.0886792 | O24: 6555 | P24: 1555
B25: 20 | C25: 2004.142 | D25: 745.9450205 | E25: 269.0521261 | F25: -1144.092721 | G25: -422.7443611 | H25: 469.737273 | I25: 178.2079655 | J25: -1566.837082 | K25: 1014.997147 | L25: 647.9452385 | M25: -918.8918431 | N25: 367.0519081 | O25: 6900 | P25: 1900
B26: 21 | C26: 1985.235 | D26: 736.4746108 | E26: 264.1431626 | F26: -1147.717231 | G26: -423.6474776 | H26: 467.4000865 | I26: 177.2025498 | J26: -1571.364708 | K26: 1000.617773 | L26: 644.6026364 | M26: -926.762072 | N26: 356.015137 | O26: 7245 | P26: 2245
B27: 22 | C27: 1966.328 | D27: 727.0042011 | E27: 259.2341991 | F27: -1151.341741 | G27: -424.5505941 | H27: 465.0629001 | I27: 176.1971342 | J27: -1575.892335 | K27: 986.2384001 | L27: 641.2600343 | M27: -934.6323008 | N27: 344.9783658 | O27: 7590 | P27: 2590
B28: 23 | C28: 1947.421 | D28: 717.5337913 | E28: 254.3252355 | F28: -1154.966251 | G28: -425.4537105 | H28: 462.7257136 | I28: 175.1917185 | J28: -1580.419962 | K28: 971.8590269 | L28: 637.9174322 | M28: -942.5025297 | N28: 333.9415947 | O28: 7935 | P28: 2935
B29: 24 | C29: 1928.514 | D29: 708.0633816 | E29: 249.428152 | F29: -1158.590762 | G29: -426.368707 | H29: 460.3885272 | I29: 174.1948565 | J29: -1584.959469 | K29: 957.4915337 | L29: 634.5833837 | M29: -950.376085 | N29: 322.90815 | O29: 8280 | P29: 3280
B30: 25 | C30: 1909.607 | D30: 698.6948747 | E30: 244.5790513 | F30: -1162.317175 | G30: -427.3316863 | H30: 458.0721024 | I30: 173.232542 | J30: -1589.648861 | K30: 943.273926 | L30: 631.3046444 | M30: -958.3442166 | N30: 311.9692816 | O30: 8625 | P30: 3625

Sheet TechData
B8: pro špičkovém výkonu 1 kWp | J8: Přepočet pro zadané kWp
B9: Fixed system: inclination=33°, orientation=10° (optimum)
B10: Měsíc | C10: Ed | D10: Em | E10: Hd | F10: Hm | J10: Měsíc | K10: Ed | L10: Počet dnů v měsíci | M10: počet prac. dnů | N10: počet dnů volna | O10: východ slunce | P10: západ slunce
B11: leden | C11: 0.85 | D11: 26.4 | E11: 1.04 | F11: 32.3 | J11: leden | K11: =$U$11*C11 -> 2.125 | L11: =SUM(M11+N11) -> 31 | M11: =(21+20+22+22+22)/5 -> 21.4 | N11: 9.6 | O11: 07:50:00 | P11: 15:58:00 | R11: špičkový výkon systemu | U11: =Náklady!O2 -> 2.5 | V11: kWp
B12: únor | C12: 1.52 | D12: 42.6 | E12: 1.88 | F12: 52.6 | J12: únor | K12: 3.8 | L12: =SUM(M12+N12) -> 28.25 | M12: =(4*20+21)/5 -> 20.2 | N12: 8.05 | O12: 07:11:00 | P12: 16:42:00 | R12: akumulace | U12: =Náklady!O4 -> 3.24 | V12: kWh
B13: březen | C13: 2.78 | D13: 86.3 | E13: 3.47 | F13: 108 | J13: březen | K13: 6.95 | L13: 31 | M13: =(22+22+23+22+21)/5 -> 22 | N13: 9 | O13: 06:13:00 | P13: 17:36:00 | R13: roční pokles učinnost panelů | U13: 0.008 | V13: %
B14: duben | C14: 3.86 | D14: 116 | E14: 5.01 | F14: 150 | J14: duben | K14: 9.65 | L14: 30 | M14: =(21+21+19+20+21)/5 -> 20.4 | N14: 9.6 | O14: 06:05:00 | P14: 19:34:00 | R14: aktuální rok | U14: =MakroSOUHRN!B3 -> 0 | V14: rok
B15: květen | C15: 3.9 | D15: 121 | E15: 5.2 | F15: 161 | J15: květen | K15: 9.75 | L15: 31 | M15: =(19+22+21+21+21)/5 -> 20.8 | N15: 10.2 | O15: 05:11:00 | P15: 20:23:00
B16: červen | C16: 4.02 | D16: 121 | E16: 5.44 | F16: 163 | J16: červen | K16: 10.05 | L16: 30 | M16: =(22+22+22+21+20)/5 -> 21.4 | N16: 8.6 | O16: 04:46:00 | P16: 20:52:00
B17: červenec | C17: 3.89 | D17: 121 | E17: 5.31 | F17: 165 | J17: červenec | K17: 9.725 | L17: 31 | M17: =(22+19+20+20+22)/5 -> 20.6 | N17: 10.4 | O17: 05:03:00 | P17: 20:42:00
B18: srpen | C18: 3.66 | D18: 113 | E18: 4.94 | F18: 153 | J18: srpen | K18: 9.15 | L18: 31 | M18: =(21+23+23+23+22)/5 -> 22.4 | N18: 8.6 | O18: 05:45:00 | P18: 19:59:00
B19: září | C19: 2.93 | D19: 87.9 | E19: 3.84 | F19: 115 | J19: září | K19: 7.325 | L19: 30 | M19: =(21+21+20+19+21)/5 -> 20.4 | N19: 9.6 | O19: 06:31:00 | P19: 19:03:00
B20: říjen | C20: 1.92 | D20: 59.7 | E20: 2.46 | F20: 76.1 | J20: říjen | K20: 4.8 | L20: 31 | M20: =(21+22+23+23+22)/5 -> 22.2 | N20: 8.8 | O20: 07:16:00 | P20: 18:08:00
B21: listopad | C21: 0.97 | D21: 29.1 | E21: 1.22 | F21: 36.7 | J21: listopad | K21: 2.425 | L21: 30 | M21: =(20+21+21+22+21)/5 -> 21 | N21: 9 | O21: 07:08:00 | P21: 16:15:00
B22: prosinec | C22: 0.71 | D22: 22 | E22: 0.88 | F22: 27.2 | J22: prosinec | K22: 1.775 | L22: 31 | M22: =(21+21+19+18+19)/5 -> 19.6 | N22: 11.4 | O22: 07:48:00 | P22: 15:45:00
B24: Roční průměr | C24: 2.59 | D24: 78.8 | E24: 3.4 | F24: 103
B25: Celkově ročně | C25: 945 | E25: 1240
B27: Poměrná doba výroby v hodinách
C29: 1 | D29: 2 | E29: 3 | F29: 4 | G29: 5 | H29: 6 | I29: 7 | J29: 8 | K29: 9 | L29: 10 | M29: 11 | N29: 12 | O29: 13 | P29: 14 | Q29: 15 | R29: 16 | S29: 17 | T29: 18 | U29: 19 | V29: 20 | W29: 21 | X29: 22 | Y29: 23 | Z29: 24 | AA29: celkem
B30: leden | C30: 0 | D30: 0 | E30: 0 | F30: 0 | G30: 0 | H30: 0 | I30: 0 | J30: 0 | K30: 0.03373786408 | L30: 0.07305825243 | M30: 0.157038835 | N30: 0.1783980583 | O30: 0.1815533981 | P30: 0.1660194175 | Q30: 0.1310679612 | R30: 0.075 | S30: 0.004126213592 | T30: 0 | U30: 0 | V30: 0 | W30: 0 | X30: 0 | Y30: 0 | Z30: 0 | AA30: =SUM(C30:Z30) -> 1
B31: únor | C31: 0 | D31: 0 | E31: 0 | F31: 0 | G31: 0 | H31: 0 | I31: 0 | J31: 0.01555793991 | K31: 0.03634656652 | L31: 0.08449570815 | M31: 0.1431062232 | N31: 0.1596030043 | O31: 0.1625536481 | P31: 0.1512875536 | Q31: 0.1259388412 | R31: 0.08677575107 | S31: 0.03433476395 | T31: 0 | U31: 0 | V31: 0 | W31: 0 | X31: 0 | Y31: 0 | Z31: 0 | AA31: =SUM(C31:Z31) -> 1
B32: březen | C32: 0 | D32: 0 | E32: 0 | F32: 0 | G32: 0 | H32: 0 | I32: 0.006941933618 | J32: 0.02429676766 | K32: 0.06594836937 | L32: 0.1028997035 | M32: 0.1248824933 | N32: 0.1376093716 | O32: 0.1402125967 | P32: 0.1322582978 | Q32: 0.1138187866 | R32: 0.08597874033 | S32: 0.05097982501 | T32: 0.01417311447 | U32: 0 | V32: 0 | W32: 0 | X32: 0 | Y32: 0 | Z32: 0 | AA32: 1
B33: duben | C33: 0 | D33: 0 | E33: 0 | F33: 0 | G33: 0 | H33: 0.004706589225 | I33: 0.02052874024 | J33: 0.04596435009 | K33: 0.07220108151 | L33: 0.09488283597 | M33: 0.1118565992 | N33: 0.1217204086 | O33: 0.123973563 | P33: 0.1184658522 | Q33: 0.1051472061 | R33: 0.08456839575 | S33: 0.05848187462 | T33: 0.03044261967 | U33: 0.007059883837 | V33: 0 | W33: 0 | X33: 0 | Y33: 0 | Z33: 0 | AA33: 1
B34: květen | C34: 0 | D34: 0 | E34: 0 | F34: 0 | G34: 0.002036363636 | H34: 0.01454545455 | I34: 0.02783030303 | J34: 0.05090909091 | K34: 0.07243636364 | L34: 0.09052121212 | M34: 0.1039515152 | N34: 0.1117575758 | O34: 0.1136484848 | P34: 0.1093818182 | Q34: 0.09905454545 | R34: 0.08286060606 | S34: 0.06196363636 | T34: 0.03864242424 | U34: 0.01706666667 | V34: 0.003393939394 | W34: 0 | X34: 0 | Y34: 0 | Z34: 0 | AA34: 1
B35: červen | C35: 0 | D35: 0 | E35: 0 | F35: 0 | G35: 0.006719495806 | H35: 0.01723898234 | I35: 0.03086333936 | J35: 0.05171694703 | K35: 0.0716437277 | L35: 0.08841929654 | M35: 0.1008387784 | N35: 0.1081143705 | O35: 0.1099216831 | P35: 0.105936327 | Q35: 0.09634366745 | R35: 0.08142175263 | S35: 0.06219009222 | T35: 0.04064136429 | U35: 0.02025117012 | V35: 0.007739005515 | W35: 0 | X35: 0 | Y35: 0 | Z35: 0 | AA35: 1
B36: červenec | C36: 0 | D36: 0 | E36: 0 | F36: 0 | G36: 0.00431545502 | H36: 0.01588656518 | I36: 0.02973395931 | J36: 0.05131123441 | K36: 0.07194005786 | L36: 0.08939156826 | M36: 0.1022905107 | N36: 0.109878124 | O36: 0.1117276047 | P36: 0.10760184 | Q36: 0.09759567506 | R36: 0.0821833357 | S36: 0.06212358325 | T36: 0.03969270166 | U36: 0.01882676531 | V36: 0.005501019586 | W36: 0 | X36: 0 | Y36: 0 | Z36: 0 | AA36: 1
B37: srpen | C37: 0 | D37: 0 | E37: 0 | F37: 0 | G37: 0 | H37: 0.008817269687 | I37: 0.02072565116 | J37: 0.04677206851 | K37: 0.07180500659 | L37: 0.09379750684 | M37: 0.110266545 | N37: 0.1199959461 | O37: 0.1222256005 | P37: 0.1167021384 | Q37: 0.1035775818 | R37: 0.08356136617 | S37: 0.05862977602 | T37: 0.03222864092 | U37: 0.01038816256 | V37: 0.0005067396372 | W37: 0 | X37: 0 | Y37: 0 | Z37: 0 | AA37: 1
B38: září | C38: 0 | D38: 0 | E38: 0 | F38: 0 | G38: 0 | H38: 0 | I38: 0.01337160003 | J38: 0.03163524884 | K38: 0.07292414063 | L38: 0.09960211337 | M38: 0.1195616724 | N38: 0.1313025895 | O38: 0.1337160003 | P38: 0.1266062227 | Q38: 0.1100384841 | R38: 0.08499119431 | S38: 0.05374730937 | T38: 0.02139456004 | U38: 0.001108864392 | V38: 0 | W38: 0 | X38: 0 | Y38: 0 | Z38: 0 | AA38: 1
B39: říjen | C39: 0 | D39: 0 | E39: 0 | F39: 0 | G39: 0 | H39: 0 | I39: 0 | J39: 0.0204248366 | K39: 0.03513071895 | L39: 0.1087622549 | M39: 0.1358251634 | N39: 0.151245915 | O39: 0.1541053922 | P39: 0.1438929739 | Q39: 0.1205065359 | R39: 0.08527369281 | S39: 0.0414624183 | T39: 0.003370098039 | U39: 0 | V39: 0 | W39: 0 | X39: 0 | Y39: 0 | Z39: 0 | AA39: 1
B40: listopad | C40: 0 | D40: 0 | E40: 0 | F40: 0 | G40: 0 | H40: 0 | I40: 0 | J40: 0.005368573198 | K40: 0.03530869296 | L40: 0.07103035309 | M40: 0.1523848854 | N40: 0.1715878588 | O40: 0.1746851125 | P40: 0.1614701631 | Q40: 0.1309105926 | R40: 0.08279991741 | S40: 0.01445385092 | T40: 0 | U40: 0 | V40: 0 | W40: 0 | X40: 0 | Y40: 0 | Z40: 0 | AA40: 1
B41: prosinec | C41: 0 | D41: 0 | E41: 0 | F41: 0 | G41: 0 | H41: 0 | I41: 0 | J41: 0 | K41: 0.0256706086 | L41: 0.05278338621 | M41: 0.1646957023 | N41: 0.1880588405 | O41: 0.1912316123 | P41: 0.1747908855 | Q41: 0.1361407557 | R41: 0.06662820883 | S41: 0 | T41: 0 | U41: 0 | V41: 0 | W41: 0 | X41: 0 | Y41: 0 | Z41: 0 | AA41: 1
B43: Výroba v hodinách
C45: 1 | D45: 2 | E45: 3 | F45: 4 | G45: 5 | H45: 6 | I45: 7 | J45: 8 | K45: 9 | L45: 10 | M45: 11 | N45: 12 | O45: 13 | P45: 14 | Q45: 15 | R45: 16 | S45: 17 | T45: 18 | U45: 19 | V45: 20 | W45: 21 | X45: 22 | Y45: 23 | Z45: 24 | AA45: celkem
B46: leden | C46: =$K$11*C30*(1-$U$13*($U$14-1)) -> 0 | D46: 0 | E46: 0 | F46: 0 | G46: 0 | H46: 0 | I46: 0 | J46: 0 | K46: 0.07226650485 | L46: 0.1564907767 | M46: 0.3363771845 | N46: 0.3821286408 | O46: 0.3888873786 | P46: 0.3556135922 | Q46: 0.2807475728 | R46: 0.16065 | S46: 0.008838349515 | T46: 0 | U46: 0 | V46: 0 | W46: 0 | X46: 0 | Y46: 0 | Z46: 0 | AA46: =SUM(C46:Z46) -> 2.142 | AC46: =AA46*SUM(M11:N11) -> 66.402 | AD46: =AC46/$AC$59 -> 0.02787327445
B47: únor | C47: =$K$12*C31*(1-$U$13*($U$14-1)) -> 0 | D47: 0 | E47: 0 | F47: 0 | G47: 0 | H47: 0 | I47: 0 | J47: 0.05959313305 | K47: 0.1392218884 | L47: 0.3236523605 | M47: 0.5481540773 | N47: 0.6113433476 | O47: 0.6226454936 | P47: 0.5794918455 | Q47: 0.4823961373 | R47: 0.3323858369 | S47: 0.1315158798 | T47: 0 | U47: 0 | V47: 0 | W47: 0 | X47: 0 | Y47: 0 | Z47: 0 | AA47: =SUM(C47:Z47) -> 3.8304 | AC47: 108.2088 | AD47: 0.04542233035
B48: březen | C48: =$K$13*C32*(1-$U$13*($U$14-1)) -> 0 | D48: 0 | E48: 0 | F48: 0 | G48: 0 | H48: 0 | I48: 0.04863241015 | J48: 0.1702134355 | K48: 0.4620078964 | L48: 0.720874163 | M48: 0.8748767951 | N48: 0.9640362138 | O48: 0.9822733676 | P48: 0.9265487309 | Q48: 0.7973688915 | R48: 0.6023326632 | S48: 0.3571442621 | T48: 0.09929117073 | U48: 0 | V48: 0 | W48: 0 | X48: 0 | Y48: 0 | Z48: 0 | AA48: 7.0056 | AC48: 217.1736 | AD48: 0.09116200349
B49: duben | C49: =$K$14*C33*(1-$U$13*($U$14-1)) -> 0 | D49: 0 | E49: 0 | F49: 0 | G49: 0 | H49: 0.04578193471 | I49: 0.199687162 | J49: 0.4471044262 | K49: 0.7023143601 | L49: 0.9229443221 | M49: 1.088051512 | N49: 1.183998758 | O49: 1.205915642 | P49: 1.152341037 | Q49: 1.022787903 | R49: 0.8226136992 | S49: 0.5688648908 | T49: 0.29612145 | U49: 0.06867290206 | V49: 0 | W49: 0 | X49: 0 | Y49: 0 | Z49: 0 | AA49: 9.7272 | AC49: 291.816 | AD49: 0.1224943143
B50: květen | C50: =$K$15*C34*(1-$U$13*($U$14-1)) -> 0 | D50: 0 | E50: 0 | F50: 0 | G50: 0.02001338182 | H50: 0.1429527273 | I50: 0.2735162182 | J50: 0.5003345455 | K50: 0.7119045818 | L50: 0.8896424727 | M50: 1.021635491 | N50: 1.098353455 | O50: 1.116937309 | P50: 1.075004509 | Q50: 0.9735080727 | R50: 0.8143540364 | S50: 0.6089786182 | T50: 0.3797777455 | U50: 0.1677312 | V50: 0.03335563636 | W50: 0 | X50: 0 | Y50: 0 | Z50: 0 | AA50: 9.828 | AC50: 304.668 | AD50: 0.1278891416
B51: červen | C51: =$K$16*C35*(1-$U$13*($U$14-1)) -> 0 | D51: 0 | E51: 0 | F51: 0 | G51: 0.06807118031 | H51: 0.1746377867 | I51: 0.312657973 | J51: 0.5239133602 | K51: 0.7257796191 | L51: 0.8957228417 | M51: 1.021537161 | N51: 1.095241818 | O51: 1.113550619 | P51: 1.073177367 | Q51: 0.9759998888 | R51: 0.8248349228 | S51: 0.6300105102 | T51: 0.4117132768 | U51: 0.2051524538 | V51: 0.07839922147 | W51: 0 | X51: 0 | Y51: 0 | Z51: 0 | AA51: 10.1304 | AC51: 303.912 | AD51: 0.1275717988
B52: červenec | C52: =$K$17*C36*(1-$U$13*($U$14-1)) -> 0 | D52: 0 | E52: 0 | F52: 0 | G52: 0.04230354247 | H52: 0.1557328212 | I52: 0.2914760563 | J52: 0.5029937687 | K52: 0.7052139991 | L52: 0.8762876654 | M52: 1.002733419 | N52: 1.077113274 | O52: 1.095243363 | P52: 1.054799317 | Q52: 0.9567108835 | R52: 0.8056268032 | S52: 0.6089850619 | T52: 0.3890996159 | U52: 0.1845550149 | V52: 0.05392539479 | W52: 0 | X52: 0 | Y52: 0 | Z52: 0 | AA52: 9.8028 | AC52: 303.8868 | AD52: 0.1275612207
B53: srpen | C53: =$K$18*C37*(1-$U$13*($U$14-1)) -> 0 | D53: 0 | E53: 0 | F53: 0 | G53: 0 | H53: 0.08132344178 | I53: 0.1911568258 | J53: 0.4313881423 | K53: 0.6622719368 | L53: 0.8651131651 | M53: 1.017010398 | N53: 1.10674661 | O53: 1.127311158 | P53: 1.076367163 | Q53: 0.9553167528 | R53: 0.7707031925 | S53: 0.5407541502 | T53: 0.297251201 | U53: 0.09581210094 | V53: 0.004673761022 | W53: 0 | X53: 0 | Y53: 0 | Z53: 0 | AA53: 9.2232 | AC53: 285.9192 | AD53: 0.1200190406
B54: září | C54: =$K$19*C38*(1-$U$13*($U$14-1)) -> 0 | D54: 0 | E54: 0 | F54: 0 | G54: 0 | H54: 0 | I54: 0.09873054595 | J54: 0.2335820234 | K54: 0.5384426848 | L54: 0.7354221642 | M54: 0.8827955645 | N54: 0.9694858 | O54: 0.9873054595 | P54: 0.9348097058 | Q54: 0.8124801513 | R54: 0.6275409823 | S54: 0.3968486335 | T54: 0.1579688735 | U54: 0.008187411128 | V54: 0 | W54: 0 | X54: 0 | Y54: 0 | Z54: 0 | AA54: 7.3836 | AC54: 221.508 | AD54: 0.09298143545
B55: říjen | C55: =$K$20*C39*(1-$U$13*($U$14-1)) -> 0 | D55: 0 | E55: 0 | F55: 0 | G55: 0 | H55: 0 | I55: 0 | J55: 0.09882352941 | K55: 0.1699764706 | L55: 0.5262352941 | M55: 0.6571764706 | N55: 0.7317882353 | O55: 0.7456235294 | P55: 0.6962117647 | Q55: 0.5830588235 | R55: 0.4125882353 | S55: 0.2006117647 | T55: 0.01630588235 | U55: 0 | V55: 0 | W55: 0 | X55: 0 | Y55: 0 | Z55: 0 | AA55: 4.8384 | AC55: 149.9904 | AD55: 0.06296080817
B56: listopad | C56: =$K$21*C40*(1-$U$13*($U$14-1)) -> 0 | D56: 0 | E56: 0 | F56: 0 | G56: 0 | H56: 0 | I56: 0 | J56: 0.01312294033 | K56: 0.08630856907 | L56: 0.1736265951 | M56: 0.3724896139 | N56: 0.419429362 | O56: 0.4270002891 | P56: 0.3946976667 | Q56: 0.3199978526 | R56: 0.2023961181 | S56: 0.03533099319 | T56: 0 | U56: 0 | V56: 0 | W56: 0 | X56: 0 | Y56: 0 | Z56: 0 | AA56: 2.4444 | AC56: 73.332 | AD56: 0.03078224996
B57: prosinec | C57: =$K$22*C41*(1-$U$13*($U$14-1)) -> 0 | D57: 0 | E57: 0 | F57: 0 | G57: 0 | H57: 0 | I57: 0 | J57: 0 | K57: 0.0459298529 | L57: 0.09444003461 | M57: 0.2946735506 | N57: 0.3364748774 | O57: 0.3421516008 | P57: 0.3127358523 | Q57: 0.2435830401 | R57: 0.1192111912 | S57: 0 | T57: 0 | U57: 0 | V57: 0 | W57: 0 | X57: 0 | Y57: 0 | Z57: 0 | AA57: 1.7892 | AC57: 55.4652 | AD57: 0.02328238219
B59: Spotřeba pracovní dny | AC59: =SUM(AC46:AC57) -> 2382.282 | AD59: =SUM(AD46:AD57) -> 1 | AF59: =122/AC59 -> 0.0512114015
C61: 1 | D61: 2 | E61: 3 | F61: 4 | G61: 5 | H61: 6 | I61: 7 | J61: 8 | K61: 9 | L61: 10 | M61: 11 | N61: 12 | O61: 13 | P61: 14 | Q61: 15 | R61: 16 | S61: 17 | T61: 18 | U61: 19 | V61: 20 | W61: 21 | X61: 22 | Y61: 23 | Z61: 24 | AA61: celkem | AB61: měsíčně
B62: leden | C62: =Spotřeba!F32 -> 0.10625 | D62: =Spotřeba!G32 -> 0.09125 | E62: =Spotřeba!H32 -> 0.06125 | F62: =Spotřeba!I32 -> 0.06125 | G62: =Spotřeba!J32 -> 0.06125 | H62: =Spotřeba!K32 -> 0.10625 | I62: =Spotřeba!L32 -> 0.26355 | J62: =Spotřeba!M32 -> 0.23355 | K62: =Spotřeba!N32 -> 0.17055 | L62: =Spotřeba!O32 -> 0.09125 | M62: =Spotřeba!P32 -> 0.87575 | N62: =Spotřeba!Q32 -> 1.06075 | O62: =Spotřeba!R32 -> 0.06135 | P62: =Spotřeba!S32 -> 0.17355 | Q62: =Spotřeba!T32 -> 0.14055 | R62: =Spotřeba!U32 -> 0.09125 | S62: =Spotřeba!V32 -> 0.36835 | T62: =Spotřeba!W32 -> 0.39835 | U62: =Spotřeba!X32 -> 0.97205 | V62: =Spotřeba!Y32 -> 1.03935 | W62: =Spotřeba!Z32 -> 0.33085 | X62: =Spotřeba!AA32 -> 0.26785 | Y62: =Spotřeba!AB32 -> 0.20055 | Z62: =Spotřeba!AC32 -> 0.10625 | AA62: =SUM(C62:Z62) -> 7.3332 | AB62: =AA62*M11 -> 156.93048 | AD62: =AB62/$AB$90 -> 0.06139733535
B63: únor | C63: =Spotřeba!F32 -> 0.10625 | D63: =Spotřeba!G32 -> 0.09125 | E63: =Spotřeba!H32 -> 0.06125 | F63: =Spotřeba!I32 -> 0.06125 | G63: =Spotřeba!J32 -> 0.06125 | H63: =Spotřeba!K32 -> 0.10625 | I63: =Spotřeba!L32 -> 0.26355 | J63: =Spotřeba!M32 -> 0.23355 | K63: =Spotřeba!N32 -> 0.17055 | L63: =Spotřeba!O32 -> 0.09125 | M63: =Spotřeba!P32 -> 0.87575 | N63: =Spotřeba!Q32 -> 1.06075 | O63: =Spotřeba!R32 -> 0.06135 | P63: =Spotřeba!S32 -> 0.17355 | Q63: =Spotřeba!T32 -> 0.14055 | R63: =Spotřeba!U32 -> 0.09125 | S63: =Spotřeba!V32 -> 0.36835 | T63: =Spotřeba!W32 -> 0.39835 | U63: =Spotřeba!X32 -> 0.97205 | V63: =Spotřeba!Y32 -> 1.03935 | W63: =Spotřeba!Z32 -> 0.33085 | X63: =Spotřeba!AA32 -> 0.26785 | Y63: =Spotřeba!AB32 -> 0.20055 | Z63: =Spotřeba!AC32 -> 0.10625 | AA63: =SUM(C63:Z63) -> 7.3332 | AB63: 148.13064 | AD63: 0.05795449411
B64: březen | C64: =Spotřeba!F69 -> 0.10625 | D64: =Spotřeba!G69 -> 0.09125 | E64: =Spotřeba!H69 -> 0.06125 | F64: =Spotřeba!I69 -> 0.06125 | G64: =Spotřeba!J69 -> 0.06125 | H64: =Spotřeba!K69 -> 0.10625 | I64: =Spotřeba!L69 -> 0.26355 | J64: =Spotřeba!M69 -> 0.20055 | K64: =Spotřeba!N69 -> 0.17055 | L64: =Spotřeba!O69 -> 0.14055 | M64: =Spotřeba!P69 -> 0.87575 | N64: =Spotřeba!Q69 -> 1.06075 | O64: =Spotřeba!R69 -> 0.14055 | P64: =Spotřeba!S69 -> 0.17355 | Q64: =Spotřeba!T69 -> 0.14055 | R64: =Spotřeba!U69 -> 0.06125 | S64: =Spotřeba!V69 -> 0.09125 | T64: =Spotřeba!W69 -> 0.15125 | U64: =Spotřeba!X69 -> 1.00205 | V64: =Spotřeba!Y69 -> 1.03935 | W64: =Spotřeba!Z69 -> 0.57795 | X64: =Spotřeba!AA69 -> 0.26785 | Y64: =Spotřeba!AB69 -> 0.20055 | Z64: =Spotřeba!AC69 -> 0.10625 | AA64: =SUM(C64:Z64) -> 7.1516 | AB64: 157.3352 | AD64: 0.06155567762
B65: duben | C65: =Spotřeba!F69 -> 0.10625 | D65: =Spotřeba!G69 -> 0.09125 | E65: =Spotřeba!H69 -> 0.06125 | F65: =Spotřeba!I69 -> 0.06125 | G65: =Spotřeba!J69 -> 0.06125 | H65: =Spotřeba!K69 -> 0.10625 | I65: =Spotřeba!L69 -> 0.26355 | J65: =Spotřeba!M69 -> 0.20055 | K65: =Spotřeba!N69 -> 0.17055 | L65: =Spotřeba!O69 -> 0.14055 | M65: =Spotřeba!P69 -> 0.87575 | N65: =Spotřeba!Q69 -> 1.06075 | O65: =Spotřeba!R69 -> 0.14055 | P65: =Spotřeba!S69 -> 0.17355 | Q65: =Spotřeba!T69 -> 0.14055 | R65: =Spotřeba!U69 -> 0.06125 | S65: =Spotřeba!V69 -> 0.09125 | T65: =Spotřeba!W69 -> 0.15125 | U65: =Spotřeba!X69 -> 1.00205 | V65: =Spotřeba!Y69 -> 1.03935 | W65: =Spotřeba!Z69 -> 0.57795 | X65: =Spotřeba!AA69 -> 0.26785 | Y65: =Spotřeba!AB69 -> 0.20055 | Z65: =Spotřeba!AC69 -> 0.10625 | AA65: =SUM(C65:Z65) -> 7.1516 | AB65: 145.89264 | AD65: 0.05707890107
B66: květen | C66: =Spotřeba!F69 -> 0.10625 | D66: =Spotřeba!G69 -> 0.09125 | E66: =Spotřeba!H69 -> 0.06125 | F66: =Spotřeba!I69 -> 0.06125 | G66: =Spotřeba!J69 -> 0.06125 | H66: =Spotřeba!K69 -> 0.10625 | I66: =Spotřeba!L69 -> 0.26355 | J66: =Spotřeba!M69 -> 0.20055 | K66: =Spotřeba!N69 -> 0.17055 | L66: =Spotřeba!O69 -> 0.14055 | M66: =Spotřeba!P69 -> 0.87575 | N66: =Spotřeba!Q69 -> 1.06075 | O66: =Spotřeba!R69 -> 0.14055 | P66: =Spotřeba!S69 -> 0.17355 | Q66: =Spotřeba!T69 -> 0.14055 | R66: =Spotřeba!U69 -> 0.06125 | S66: =Spotřeba!V69 -> 0.09125 | T66: =Spotřeba!W69 -> 0.15125 | U66: =Spotřeba!X69 -> 1.00205 | V66: =Spotřeba!Y69 -> 1.03935 | W66: =Spotřeba!Z69 -> 0.57795 | X66: =Spotřeba!AA69 -> 0.26785 | Y66: =Spotřeba!AB69 -> 0.20055 | Z66: =Spotřeba!AC69 -> 0.10625 | AA66: 7.1516 | AB66: 148.75328 | AD66: 0.05819809521
B67: červen | C67: =Spotřeba!F107 -> 0.10625 | D67: =Spotřeba!G107 -> 0.09125 | E67: =Spotřeba!H107 -> 0.06125 | F67: =Spotřeba!I107 -> 0.06125 | G67: =Spotřeba!J107 -> 0.06125 | H67: =Spotřeba!K107 -> 0.09125 | I67: =Spotřeba!L107 -> 0.23355 | J67: =Spotřeba!M107 -> 0.20355 | K67: =Spotřeba!N107 -> 0.14055 | L67: =Spotřeba!O107 -> 0.14055 | M67: =Spotřeba!P107 -> 0.87575 | N67: =Spotřeba!Q107 -> 1.1504 | O67: =Spotřeba!R107 -> 0.14055 | P67: =Spotřeba!S107 -> 0.14055 | Q67: =Spotřeba!T107 -> 0.14055 | R67: =Spotřeba!U107 -> 0.06125 | S67: =Spotřeba!V107 -> 0.06125 | T67: =Spotřeba!W107 -> 0.06125 | U67: =Spotřeba!X107 -> 0.85205 | V67: =Spotřeba!Y107 -> 0.88935 | W67: =Spotřeba!Z107 -> 0.51795 | X67: =Spotřeba!AA107 -> 0.29785 | Y67: =Spotřeba!AB107 -> 0.20055 | Z67: =Spotřeba!AC107 -> 0.10625 | AA67: 6.68625 | AB67: 143.08575 | AD67: 0.05598073603
B68: červenec | C68: =Spotřeba!F107 -> 0.10625 | D68: =Spotřeba!G107 -> 0.09125 | E68: =Spotřeba!H107 -> 0.06125 | F68: =Spotřeba!I107 -> 0.06125 | G68: =Spotřeba!J107 -> 0.06125 | H68: =Spotřeba!K107 -> 0.09125 | I68: =Spotřeba!L107 -> 0.23355 | J68: =Spotřeba!M107 -> 0.20355 | K68: =Spotřeba!N107 -> 0.14055 | L68: =Spotřeba!O107 -> 0.14055 | M68: =Spotřeba!P107 -> 0.87575 | N68: =Spotřeba!Q107 -> 1.1504 | O68: =Spotřeba!R107 -> 0.14055 | P68: =Spotřeba!S107 -> 0.14055 | Q68: =Spotřeba!T107 -> 0.14055 | R68: =Spotřeba!U107 -> 0.06125 | S68: =Spotřeba!V107 -> 0.06125 | T68: =Spotřeba!W107 -> 0.06125 | U68: =Spotřeba!X107 -> 0.85205 | V68: =Spotřeba!Y107 -> 0.88935 | W68: =Spotřeba!Z107 -> 0.51795 | X68: =Spotřeba!AA107 -> 0.29785 | Y68: =Spotřeba!AB107 -> 0.20055 | Z68: =Spotřeba!AC107 -> 0.10625 | AA68: 6.68625 | AB68: 137.73675 | AD68: 0.05388799823
B69: srpen | C69: =Spotřeba!F107 -> 0.10625 | D69: =Spotřeba!G107 -> 0.09125 | E69: =Spotřeba!H107 -> 0.06125 | F69: =Spotřeba!I107 -> 0.06125 | G69: =Spotřeba!J107 -> 0.06125 | H69: =Spotřeba!K107 -> 0.09125 | I69: =Spotřeba!L107 -> 0.23355 | J69: =Spotřeba!M107 -> 0.20355 | K69: =Spotřeba!N107 -> 0.14055 | L69: =Spotřeba!O107 -> 0.14055 | M69: =Spotřeba!P107 -> 0.87575 | N69: =Spotřeba!Q107 -> 1.1504 | O69: =Spotřeba!R107 -> 0.14055 | P69: =Spotřeba!S107 -> 0.14055 | Q69: =Spotřeba!T107 -> 0.14055 | R69: =Spotřeba!U107 -> 0.06125 | S69: =Spotřeba!V107 -> 0.06125 | T69: =Spotřeba!W107 -> 0.06125 | U69: =Spotřeba!X107 -> 0.85205 | V69: =Spotřeba!Y107 -> 0.88935 | W69: =Spotřeba!Z107 -> 0.51795 | X69: =Spotřeba!AA107 -> 0.29785 | Y69: =Spotřeba!AB107 -> 0.20055 | Z69: =Spotřeba!AC107 -> 0.10625 | AA69: 6.68625 | AB69: 149.772 | AD69: 0.05859665827
B70: září | C70: =Spotřeba!F145 -> 0.10625 | D70: =Spotřeba!G145 -> 0.09125 | E70: =Spotřeba!H145 -> 0.06125 | F70: =Spotřeba!I145 -> 0.06125 | G70: =Spotřeba!J145 -> 0.06125 | H70: =Spotřeba!K145 -> 0.10625 | I70: =Spotřeba!L145 -> 0.26355 | J70: =Spotřeba!M145 -> 0.20055 | K70: =Spotřeba!N145 -> 0.17055 | L70: =Spotřeba!O145 -> 0.14055 | M70: =Spotřeba!P145 -> 0.87575 | N70: =Spotřeba!Q145 -> 1.06075 | O70: =Spotřeba!R145 -> 0.14055 | P70: =Spotřeba!S145 -> 0.17355 | Q70: =Spotřeba!T145 -> 0.14055 | R70: =Spotřeba!U145 -> 0.06125 | S70: =Spotřeba!V145 -> 0.09125 | T70: =Spotřeba!W145 -> 0.15125 | U70: =Spotřeba!X145 -> 1.00205 | V70: =Spotřeba!Y145 -> 1.03935 | W70: =Spotřeba!Z145 -> 0.57795 | X70: =Spotřeba!AA145 -> 0.26785 | Y70: =Spotřeba!AB145 -> 0.20055 | Z70: =Spotřeba!AC145 -> 0.10625 | AA70: 7.1516 | AB70: 145.89264 | AD70: 0.05707890107
B71: říjen | C71: =Spotřeba!F145 -> 0.10625 | D71: =Spotřeba!G145 -> 0.09125 | E71: =Spotřeba!H145 -> 0.06125 | F71: =Spotřeba!I145 -> 0.06125 | G71: =Spotřeba!J145 -> 0.06125 | H71: =Spotřeba!K145 -> 0.10625 | I71: =Spotřeba!L145 -> 0.26355 | J71: =Spotřeba!M145 -> 0.20055 | K71: =Spotřeba!N145 -> 0.17055 | L71: =Spotřeba!O145 -> 0.14055 | M71: =Spotřeba!P145 -> 0.87575 | N71: =Spotřeba!Q145 -> 1.06075 | O71: =Spotřeba!R145 -> 0.14055 | P71: =Spotřeba!S145 -> 0.17355 | Q71: =Spotřeba!T145 -> 0.14055 | R71: =Spotřeba!U145 -> 0.06125 | S71: =Spotřeba!V145 -> 0.09125 | T71: =Spotřeba!W145 -> 0.15125 | U71: =Spotřeba!X145 -> 1.00205 | V71: =Spotřeba!Y145 -> 1.03935 | W71: =Spotřeba!Z145 -> 0.57795 | X71: =Spotřeba!AA145 -> 0.26785 | Y71: =Spotřeba!AB145 -> 0.20055 | Z71: =Spotřeba!AC145 -> 0.10625 | AA71: 7.1516 | AB71: 158.76552 | AD71: 0.06211527469
B72: listopad | C72: =Spotřeba!F145 -> 0.10625 | D72: =Spotřeba!G145 -> 0.09125 | E72: =Spotřeba!H145 -> 0.06125 | F72: =Spotřeba!I145 -> 0.06125 | G72: =Spotřeba!J145 -> 0.06125 | H72: =Spotřeba!K145 -> 0.10625 | I72: =Spotřeba!L145 -> 0.26355 | J72: =Spotřeba!M145 -> 0.20055 | K72: =Spotřeba!N145 -> 0.17055 | L72: =Spotřeba!O145 -> 0.14055 | M72: =Spotřeba!P145 -> 0.87575 | N72: =Spotřeba!Q145 -> 1.06075 | O72: =Spotřeba!R145 -> 0.14055 | P72: =Spotřeba!S145 -> 0.17355 | Q72: =Spotřeba!T145 -> 0.14055 | R72: =Spotřeba!U145 -> 0.06125 | S72: =Spotřeba!V145 -> 0.09125 | T72: =Spotřeba!W145 -> 0.15125 | U72: =Spotřeba!X145 -> 1.00205 | V72: =Spotřeba!Y145 -> 1.03935 | W72: =Spotřeba!Z145 -> 0.57795 | X72: =Spotřeba!AA145 -> 0.26785 | Y72: =Spotřeba!AB145 -> 0.20055 | Z72: =Spotřeba!AC145 -> 0.10625 | AA72: 7.1516 | AB72: 150.1836 | AD72: 0.05875769228
B73: prosinec | C73: =Spotřeba!F32 -> 0.10625 | D73: =Spotřeba!G32 -> 0.09125 | E73: =Spotřeba!H32 -> 0.06125 | F73: =Spotřeba!I32 -> 0.06125 | G73: =Spotřeba!J32 -> 0.06125 | H73: =Spotřeba!K32 -> 0.10625 | I73: =Spotřeba!L32 -> 0.26355 | J73: =Spotřeba!M32 -> 0.23355 | K73: =Spotřeba!N32 -> 0.17055 | L73: =Spotřeba!O32 -> 0.09125 | M73: =Spotřeba!P32 -> 0.87575 | N73: =Spotřeba!Q32 -> 1.06075 | O73: =Spotřeba!R32 -> 0.06135 | P73: =Spotřeba!S32 -> 0.17355 | Q73: =Spotřeba!T32 -> 0.14055 | R73: =Spotřeba!U32 -> 0.09125 | S73: =Spotřeba!V32 -> 0.36835 | T73: =Spotřeba!W32 -> 0.39835 | U73: =Spotřeba!X32 -> 0.97205 | V73: =Spotřeba!Y32 -> 1.03935 | W73: =Spotřeba!Z32 -> 0.33085 | X73: =Spotřeba!AA32 -> 0.26785 | Y73: =Spotřeba!AB32 -> 0.20055 | Z73: =Spotřeba!AC32 -> 0.10625 | AA73: =SUM(C73:Z73) -> 7.3332 | AB73: 143.73072 | AD73: 0.05623307349
B75: Spotřeba víkendový den
C77: 1 | D77: 2 | E77: 3 | F77: 4 | G77: 5 | H77: 6 | I77: 7 | J77: 8 | K77: 9 | L77: 10 | M77: 11 | N77: 12 | O77: 13 | P77: 14 | Q77: 15 | R77: 16 | S77: 17 | T77: 18 | U77: 19 | V77: 20 | W77: 21 | X77: 22 | Y77: 23 | Z77: 24 | AA77: celkem | AB77: měsíčně
B78: leden | C78: =Spotřeba!F48 -> 0.15125 | D78: =Spotřeba!G48 -> 0.12125 | E78: =Spotřeba!H48 -> 0.06125 | F78: =Spotřeba!I48 -> 0.06125 | G78: =Spotřeba!J48 -> 0.06125 | H78: =Spotřeba!K48 -> 0.06125 | I78: =Spotřeba!L48 -> 0.06125 | J78: =Spotřeba!M48 -> 0.15425 | K78: =Spotřeba!N48 -> 0.20355 | L78: =Spotřeba!O48 -> 0.17055 | M78: =Spotřeba!P48 -> 0.38765 | N78: =Spotřeba!Q48 -> 0.52565 | O78: =Spotřeba!R48 -> 0.60495 | P78: =Spotřeba!S48 -> 0.45365 | Q78: =Spotřeba!T48 -> 0.38765 | R78: =Spotřeba!U48 -> 0.33835 | S78: =Spotřeba!V48 -> 0.36835 | T78: =Spotřeba!W48 -> 0.39835 | U78: =Spotřeba!X48 -> 0.72495 | V78: =Spotřeba!Y48 -> 0.79225 | W78: =Spotřeba!Z48 -> 0.36385 | X78: =Spotřeba!AA48 -> 0.26785 | Y78: =Spotřeba!AB48 -> 0.23785 | Z78: =Spotřeba!AC48 -> 0.22285 | AA78: =SUM(C78:Z78) -> 7.1813 | AB78: =AA78*N11 -> 68.94048 | AD78: =AB78/$AB$90 -> 0.02697220941
B79: únor | C79: =Spotřeba!F48 -> 0.15125 | D79: =Spotřeba!G48 -> 0.12125 | E79: =Spotřeba!H48 -> 0.06125 | F79: =Spotřeba!I48 -> 0.06125 | G79: =Spotřeba!J48 -> 0.06125 | H79: =Spotřeba!K48 -> 0.06125 | I79: =Spotřeba!L48 -> 0.06125 | J79: =Spotřeba!M48 -> 0.15425 | K79: =Spotřeba!N48 -> 0.20355 | L79: =Spotřeba!O48 -> 0.17055 | M79: =Spotřeba!P48 -> 0.38765 | N79: =Spotřeba!Q48 -> 0.52565 | O79: =Spotřeba!R48 -> 0.60495 | P79: =Spotřeba!S48 -> 0.45365 | Q79: =Spotřeba!T48 -> 0.38765 | R79: =Spotřeba!U48 -> 0.33835 | S79: =Spotřeba!V48 -> 0.36835 | T79: =Spotřeba!W48 -> 0.39835 | U79: =Spotřeba!X48 -> 0.72495 | V79: =Spotřeba!Y48 -> 0.79225 | W79: =Spotřeba!Z48 -> 0.36385 | X79: =Spotřeba!AA48 -> 0.26785 | Y79: =Spotřeba!AB48 -> 0.23785 | Z79: =Spotřeba!AC48 -> 0.22285 | AA79: =SUM(C79:Z79) -> 7.1813 | AB79: 57.809465 | AD79: 0.02261732143
B80: březen | C80: =Spotřeba!F85 -> 0.15125 | D80: =Spotřeba!G85 -> 0.12125 | E80: =Spotřeba!H85 -> 0.06125 | F80: =Spotřeba!I85 -> 0.06125 | G80: =Spotřeba!J85 -> 0.06125 | H80: =Spotřeba!K85 -> 0.06125 | I80: =Spotřeba!L85 -> 0.06125 | J80: =Spotřeba!M85 -> 0.06125 | K80: =Spotřeba!N85 -> 0.23355 | L80: =Spotřeba!O85 -> 0.17055 | M80: =Spotřeba!P85 -> 0.14055 | N80: =Spotřeba!Q85 -> 0.30835 | O80: =Spotřeba!R85 -> 0.60495 | P80: =Spotřeba!S85 -> 0.63795 | Q80: =Spotřeba!T85 -> 0.38765 | R80: =Spotřeba!U85 -> 0.30835 | S80: =Spotřeba!V85 -> 0.36835 | T80: =Spotřeba!W85 -> 0.39835 | U80: =Spotřeba!X85 -> 0.72495 | V80: =Spotřeba!Y85 -> 0.79225 | W80: =Spotřeba!Z85 -> 0.33085 | X80: =Spotřeba!AA85 -> 0.26785 | Y80: =Spotřeba!AB85 -> 0.23785 | Z80: =Spotřeba!AC85 -> 0.22285 | AA80: 6.7752 | AB80: 60.9768 | AD80: 0.02385650664
B81: duben | C81: =Spotřeba!F85 -> 0.15125 | D81: =Spotřeba!G85 -> 0.12125 | E81: =Spotřeba!H85 -> 0.06125 | F81: =Spotřeba!I85 -> 0.06125 | G81: =Spotřeba!J85 -> 0.06125 | H81: =Spotřeba!K85 -> 0.06125 | I81: =Spotřeba!L85 -> 0.06125 | J81: =Spotřeba!M85 -> 0.06125 | K81: =Spotřeba!N85 -> 0.23355 | L81: =Spotřeba!O85 -> 0.17055 | M81: =Spotřeba!P85 -> 0.14055 | N81: =Spotřeba!Q85 -> 0.30835 | O81: =Spotřeba!R85 -> 0.60495 | P81: =Spotřeba!S85 -> 0.63795 | Q81: =Spotřeba!T85 -> 0.38765 | R81: =Spotřeba!U85 -> 0.30835 | S81: =Spotřeba!V85 -> 0.36835 | T81: =Spotřeba!W85 -> 0.39835 | U81: =Spotřeba!X85 -> 0.72495 | V81: =Spotřeba!Y85 -> 0.79225 | W81: =Spotřeba!Z85 -> 0.33085 | X81: =Spotřeba!AA85 -> 0.26785 | Y81: =Spotřeba!AB85 -> 0.23785 | Z81: =Spotřeba!AC85 -> 0.22285 | AA81: 6.7752 | AB81: 65.04192 | AD81: 0.02544694041
B82: květen | C82: =Spotřeba!F85 -> 0.15125 | D82: =Spotřeba!G85 -> 0.12125 | E82: =Spotřeba!H85 -> 0.06125 | F82: =Spotřeba!I85 -> 0.06125 | G82: =Spotřeba!J85 -> 0.06125 | H82: =Spotřeba!K85 -> 0.06125 | I82: =Spotřeba!L85 -> 0.06125 | J82: =Spotřeba!M85 -> 0.06125 | K82: =Spotřeba!N85 -> 0.23355 | L82: =Spotřeba!O85 -> 0.17055 | M82: =Spotřeba!P85 -> 0.14055 | N82: =Spotřeba!Q85 -> 0.30835 | O82: =Spotřeba!R85 -> 0.60495 | P82: =Spotřeba!S85 -> 0.63795 | Q82: =Spotřeba!T85 -> 0.38765 | R82: =Spotřeba!U85 -> 0.30835 | S82: =Spotřeba!V85 -> 0.36835 | T82: =Spotřeba!W85 -> 0.39835 | U82: =Spotřeba!X85 -> 0.72495 | V82: =Spotřeba!Y85 -> 0.79225 | W82: =Spotřeba!Z85 -> 0.33085 | X82: =Spotřeba!AA85 -> 0.26785 | Y82: =Spotřeba!AB85 -> 0.23785 | Z82: =Spotřeba!AC85 -> 0.22285 | AA82: 6.7752 | AB82: 69.10704 | AD82: 0.02703737419
B83: červen | C83: =Spotřeba!F123 -> 0.15125 | D83: =Spotřeba!G123 -> 0.12125 | E83: =Spotřeba!H123 -> 0.06125 | F83: =Spotřeba!I123 -> 0.06125 | G83: =Spotřeba!J123 -> 0.06125 | H83: =Spotřeba!K123 -> 0.06125 | I83: =Spotřeba!L123 -> 0.06125 | J83: =Spotřeba!M123 -> 0.06125 | K83: =Spotřeba!N123 -> 0.17355 | L83: =Spotřeba!O123 -> 0.14055 | M83: =Spotřeba!P123 -> 0.38765 | N83: =Spotřeba!Q123 -> 0.30835 | O83: =Spotřeba!R123 -> 0.63795 | P83: =Spotřeba!S123 -> 0.60495 | Q83: =Spotřeba!T123 -> 0.38765 | R83: =Spotřeba!U123 -> 0.30835 | S83: =Spotřeba!V123 -> 0.30835 | T83: =Spotřeba!W123 -> 0.30835 | U83: =Spotřeba!X123 -> 0.60495 | V83: =Spotřeba!Y123 -> 0.64225 | W83: =Spotřeba!Z123 -> 0.27085 | X83: =Spotřeba!AA123 -> 0.29785 | Y83: =Spotřeba!AB123 -> 0.23785 | Z83: =Spotřeba!AC123 -> 0.22285 | AA83: 6.4823 | AB83: 55.74778 | AD83: 0.02181070971
B84: červenec | C84: =Spotřeba!F123 -> 0.15125 | D84: =Spotřeba!G123 -> 0.12125 | E84: =Spotřeba!H123 -> 0.06125 | F84: =Spotřeba!I123 -> 0.06125 | G84: =Spotřeba!J123 -> 0.06125 | H84: =Spotřeba!K123 -> 0.06125 | I84: =Spotřeba!L123 -> 0.06125 | J84: =Spotřeba!M123 -> 0.06125 | K84: =Spotřeba!N123 -> 0.17355 | L84: =Spotřeba!O123 -> 0.14055 | M84: =Spotřeba!P123 -> 0.38765 | N84: =Spotřeba!Q123 -> 0.30835 | O84: =Spotřeba!R123 -> 0.63795 | P84: =Spotřeba!S123 -> 0.60495 | Q84: =Spotřeba!T123 -> 0.38765 | R84: =Spotřeba!U123 -> 0.30835 | S84: =Spotřeba!V123 -> 0.30835 | T84: =Spotřeba!W123 -> 0.30835 | U84: =Spotřeba!X123 -> 0.60495 | V84: =Spotřeba!Y123 -> 0.64225 | W84: =Spotřeba!Z123 -> 0.27085 | X84: =Spotřeba!AA123 -> 0.29785 | Y84: =Spotřeba!AB123 -> 0.23785 | Z84: =Spotřeba!AC123 -> 0.22285 | AA84: 6.4823 | AB84: 67.41592 | AD84: 0.02637574197
B85: srpen | C85: =Spotřeba!F123 -> 0.15125 | D85: =Spotřeba!G123 -> 0.12125 | E85: =Spotřeba!H123 -> 0.06125 | F85: =Spotřeba!I123 -> 0.06125 | G85: =Spotřeba!J123 -> 0.06125 | H85: =Spotřeba!K123 -> 0.06125 | I85: =Spotřeba!L123 -> 0.06125 | J85: =Spotřeba!M123 -> 0.06125 | K85: =Spotřeba!N123 -> 0.17355 | L85: =Spotřeba!O123 -> 0.14055 | M85: =Spotřeba!P123 -> 0.38765 | N85: =Spotřeba!Q123 -> 0.30835 | O85: =Spotřeba!R123 -> 0.63795 | P85: =Spotřeba!S123 -> 0.60495 | Q85: =Spotřeba!T123 -> 0.38765 | R85: =Spotřeba!U123 -> 0.30835 | S85: =Spotřeba!V123 -> 0.30835 | T85: =Spotřeba!W123 -> 0.30835 | U85: =Spotřeba!X123 -> 0.60495 | V85: =Spotřeba!Y123 -> 0.64225 | W85: =Spotřeba!Z123 -> 0.27085 | X85: =Spotřeba!AA123 -> 0.29785 | Y85: =Spotřeba!AB123 -> 0.23785 | Z85: =Spotřeba!AC123 -> 0.22285 | AA85: 6.4823 | AB85: 55.74778 | AD85: 0.02181070971
B86: září | C86: =Spotřeba!F161 -> 0.15125 | D86: =Spotřeba!G161 -> 0.12125 | E86: =Spotřeba!H161 -> 0.06125 | F86: =Spotřeba!I161 -> 0.06125 | G86: =Spotřeba!J161 -> 0.06125 | H86: =Spotřeba!K161 -> 0.06125 | I86: =Spotřeba!L161 -> 0.06125 | J86: =Spotřeba!M161 -> 0.06125 | K86: =Spotřeba!N161 -> 0.2082 | L86: =Spotřeba!O161 -> 0.17055 | M86: =Spotřeba!P161 -> 0.14055 | N86: =Spotřeba!Q161 -> 0.38765 | O86: =Spotřeba!R161 -> 0.60495 | P86: =Spotřeba!S161 -> 0.63795 | Q86: =Spotřeba!T161 -> 0.38765 | R86: =Spotřeba!U161 -> 0.30835 | S86: =Spotřeba!V161 -> 0.36835 | T86: =Spotřeba!W161 -> 0.39835 | U86: =Spotřeba!X161 -> 0.72495 | V86: =Spotřeba!Y161 -> 0.79225 | W86: =Spotřeba!Z161 -> 0.33085 | X86: =Spotřeba!AA161 -> 0.26785 | Y86: =Spotřeba!AB161 -> 0.23785 | Z86: =Spotřeba!AC161 -> 0.22285 | AA86: 6.82915 | AB86: 65.55984 | AD86: 0.02564957095
B87: říjen | C87: =Spotřeba!F161 -> 0.15125 | D87: =Spotřeba!G161 -> 0.12125 | E87: =Spotřeba!H161 -> 0.06125 | F87: =Spotřeba!I161 -> 0.06125 | G87: =Spotřeba!J161 -> 0.06125 | H87: =Spotřeba!K161 -> 0.06125 | I87: =Spotřeba!L161 -> 0.06125 | J87: =Spotřeba!M161 -> 0.06125 | K87: =Spotřeba!N161 -> 0.2082 | L87: =Spotřeba!O161 -> 0.17055 | M87: =Spotřeba!P161 -> 0.14055 | N87: =Spotřeba!Q161 -> 0.38765 | O87: =Spotřeba!R161 -> 0.60495 | P87: =Spotřeba!S161 -> 0.63795 | Q87: =Spotřeba!T161 -> 0.38765 | R87: =Spotřeba!U161 -> 0.30835 | S87: =Spotřeba!V161 -> 0.36835 | T87: =Spotřeba!W161 -> 0.39835 | U87: =Spotřeba!X161 -> 0.72495 | V87: =Spotřeba!Y161 -> 0.79225 | W87: =Spotřeba!Z161 -> 0.33085 | X87: =Spotřeba!AA161 -> 0.26785 | Y87: =Spotřeba!AB161 -> 0.23785 | Z87: =Spotřeba!AC161 -> 0.22285 | AA87: 6.82915 | AB87: 60.09652 | AD87: 0.02351210671
B88: listopad | C88: =Spotřeba!F161 -> 0.15125 | D88: =Spotřeba!G161 -> 0.12125 | E88: =Spotřeba!H161 -> 0.06125 | F88: =Spotřeba!I161 -> 0.06125 | G88: =Spotřeba!J161 -> 0.06125 | H88: =Spotřeba!K161 -> 0.06125 | I88: =Spotřeba!L161 -> 0.06125 | J88: =Spotřeba!M161 -> 0.06125 | K88: =Spotřeba!N161 -> 0.2082 | L88: =Spotřeba!O161 -> 0.17055 | M88: =Spotřeba!P161 -> 0.14055 | N88: =Spotřeba!Q161 -> 0.38765 | O88: =Spotřeba!R161 -> 0.60495 | P88: =Spotřeba!S161 -> 0.63795 | Q88: =Spotřeba!T161 -> 0.38765 | R88: =Spotřeba!U161 -> 0.30835 | S88: =Spotřeba!V161 -> 0.36835 | T88: =Spotřeba!W161 -> 0.39835 | U88: =Spotřeba!X161 -> 0.72495 | V88: =Spotřeba!Y161 -> 0.79225 | W88: =Spotřeba!Z161 -> 0.33085 | X88: =Spotřeba!AA161 -> 0.26785 | Y88: =Spotřeba!AB161 -> 0.23785 | Z88: =Spotřeba!AC161 -> 0.22285 | AA88: 6.82915 | AB88: 61.46235 | AD88: 0.02404647277
B89: prosinec | C89: =Spotřeba!F48 -> 0.15125 | D89: =Spotřeba!G48 -> 0.12125 | E89: =Spotřeba!H48 -> 0.06125 | F89: =Spotřeba!I48 -> 0.06125 | G89: =Spotřeba!J48 -> 0.06125 | H89: =Spotřeba!K48 -> 0.06125 | I89: =Spotřeba!L48 -> 0.06125 | J89: =Spotřeba!M48 -> 0.15425 | K89: =Spotřeba!N48 -> 0.20355 | L89: =Spotřeba!O48 -> 0.17055 | M89: =Spotřeba!P48 -> 0.38765 | N89: =Spotřeba!Q48 -> 0.52565 | O89: =Spotřeba!R48 -> 0.60495 | P89: =Spotřeba!S48 -> 0.45365 | Q89: =Spotřeba!T48 -> 0.38765 | R89: =Spotřeba!U48 -> 0.33835 | S89: =Spotřeba!V48 -> 0.36835 | T89: =Spotřeba!W48 -> 0.39835 | U89: =Spotřeba!X48 -> 0.72495 | V89: =Spotřeba!Y48 -> 0.79225 | W89: =Spotřeba!Z48 -> 0.36385 | X89: =Spotřeba!AA48 -> 0.26785 | Y89: =Spotřeba!AB48 -> 0.23785 | Z89: =Spotřeba!AC48 -> 0.22285 | AA89: 7.1813 | AB89: 81.86682 | AD89: 0.03202949867
Z90: Roční spotřeba | AB90: =SUM(AB62:AB89) -> 2555.981935
B91: Přebytky pracovní dny | AD91: =SUM(AD62:AD89) -> 1
C93: 1 | D93: 2 | E93: 3 | F93: 4 | G93: 5 | H93: 6 | I93: 7 | J93: 8 | K93: 9 | L93: 10 | M93: 11 | N93: 12 | O93: 13 | P93: 14 | Q93: 15 | R93: 16 | S93: 17 | T93: 18 | U93: 19 | V93: 20 | W93: 21 | X93: 22 | Y93: 23 | Z93: 24 | AA93: celkem | AB93: celkem | AC93: celkem | AD93: akumulace | AE93: Počet cyklů
B94: leden | C94: =C46-C62 -> -0.10625 | D94: =D46-D62 -> -0.09125 | E94: -0.06125 | F94: -0.06125 | G94: -0.06125 | H94: -0.10625 | I94: -0.26355 | J94: -0.23355 | K94: -0.09828349515 | L94: 0.0652407767 | M94: -0.5393728155 | N94: -0.6786213592 | O94: 0.3275373786 | P94: 0.1820635922 | Q94: 0.1401975728 | R94: 0.0694 | S94: -0.3595116505 | T94: -0.39835 | U94: -0.97205 | V94: -1.03935 | W94: -0.33085 | X94: -0.26785 | Y94: -0.20055 | Z94: -0.10625 | AA94: =SUM(C94:Z94) -> -5.1912 | AB94: =SUMIF(C94:Z94,"<0") -> -5.97563932 | AC94: =SUMIF(C94:Z94,">0") -> 0.7844393204 | AD94: =IF(AC94<$U$12,AC94*0.95,$U$12)*Náklady!$O$9 -> 0.5961738835 | AE94: =SUMPRODUCT(IF(AD94>0,1,0),M11) -> 21.4
B95: únor | C95: =C47-C63 -> -0.10625 | D95: -0.09125 | E95: -0.06125 | F95: -0.06125 | G95: -0.06125 | H95: -0.10625 | I95: -0.26355 | J95: -0.173956867 | K95: -0.03132811159 | L95: 0.2324023605 | M95: -0.3275959227 | N95: -0.4494066524 | O95: 0.5612954936 | P95: 0.4059418455 | Q95: 0.3418461373 | R95: 0.2411358369 | S95: -0.2368341202 | T95: -0.39835 | U95: -0.97205 | V95: -1.03935 | W95: -0.33085 | X95: -0.26785 | Y95: -0.20055 | Z95: -0.10625 | AA95: =SUM(C95:Z95) -> -3.5028 | AB95: =SUMIF(C95:Z95,"<0") -> -5.285421674 | AC95: =SUMIF(C95:Z95,">0") -> 1.782621674 | AD95: =IF(AC95<$U$12,AC95*Náklady!$O$8,$U$12)*Náklady!$O$9 -> 1.283487605 | AE95: =SUMPRODUCT(IF(AD95>0,1,0),M12) -> 20.2
B96: březen | C96: =C48-C64 -> -0.10625 | D96: -0.09125 | E96: -0.06125 | F96: -0.06125 | G96: -0.06125 | H96: -0.10625 | I96: -0.2149175898 | J96: -0.03033656447 | K96: 0.2914578964 | L96: 0.580324163 | M96: -0.0008732048594 | N96: -0.09671378625 | O96: 0.8417233676 | P96: 0.7529987309 | Q96: 0.6568188915 | R96: 0.5410826632 | S96: 0.2658942621 | T96: -0.05195882927 | U96: -1.00205 | V96: -1.03935 | W96: -0.57795 | X96: -0.26785 | Y96: -0.20055 | Z96: -0.10625 | AA96: -0.146 | AB96: -4.076299975 | AC96: 3.930299975 | AD96: =IF(AC96<$U$12,AC96*Náklady!$O$8,$U$12)*Náklady!$O$9 -> 2.592 | AE96: 22
B97: duben | C97: =C49-C65 -> -0.10625 | D97: -0.09125 | E97: -0.06125 | F97: -0.06125 | G97: -0.06125 | H97: -0.06046806529 | I97: -0.06386283797 | J97: 0.2465544262 | K97: 0.5317643601 | L97: 0.7823943221 | M97: 0.2123015121 | N97: 0.1232487583 | O97: 1.065365642 | P97: 0.9787910375 | Q97: 0.8822379031 | R97: 0.7613636992 | S97: 0.4776148908 | T97: 0.14487145 | U97: -0.9333770979 | V97: -1.03935 | W97: -0.57795 | X97: -0.26785 | Y97: -0.20055 | Z97: -0.10625 | AA97: =SUM(C97:Z97) -> 2.5756 | AB97: -3.630908001 | AC97: 6.206508001 | AD97: =IF(AC97<$U$12,AC97*Náklady!$O$8,$U$12)*Náklady!$O$9 -> 2.592 | AE97: 20.4
B98: květen | C98: =C50-C66 -> -0.10625 | D98: -0.09125 | E98: -0.06125 | F98: -0.06125 | G98: -0.04123661818 | H98: 0.03670272727 | I98: 0.009966218182 | J98: 0.2997845455 | K98: 0.5413545818 | L98: 0.7490924727 | M98: 0.1458854909 | N98: 0.03760345455 | O98: 0.9763873091 | P98: 0.9014545091 | Q98: 0.8329580727 | R98: 0.7531040364 | S98: 0.5177286182 | T98: 0.2285277455 | U98: -0.8343188 | V98: -1.005994364 | W98: -0.57795 | X98: -0.26785 | Y98: -0.20055 | Z98: -0.10625 | AA98: 2.6764 | AB98: -3.354149782 | AC98: 6.030549782 | AD98: =IF(AC98<$U$12,AC98*Náklady!$O$8,$U$12)*Náklady!$O$9 -> 2.592 | AE98: 20.8
B99: červen | C99: =C51-C67 -> -0.10625 | D99: -0.09125 | E99: -0.06125 | F99: -0.06125 | G99: 0.006821180314 | H99: 0.08338778674 | I99: 0.07910797303 | J99: 0.3203633602 | K99: 0.5852296191 | L99: 0.7551728417 | M99: 0.1457871611 | N99: -0.05515818157 | O99: 0.9730006187 | P99: 0.9326273669 | Q99: 0.8354498888 | R99: 0.7635849228 | S99: 0.5687605102 | T99: 0.3504632768 | U99: -0.6468975462 | V99: -0.8109507785 | W99: -0.51795 | X99: -0.29785 | Y99: -0.20055 | Z99: -0.10625 | AA99: 3.44415 | AB99: -2.955606506 | AC99: 6.399756506 | AD99: =IF(AC99<$U$12,AC99*Náklady!$O$8,$U$12)*Náklady!$O$9 -> 2.592 | AE99: 21.4
B100: červenec | C100: =C52-C68 -> -0.10625 | D100: -0.09125 | E100: -0.06125 | F100: -0.06125 | G100: -0.01894645753 | H100: 0.06448282117 | I100: 0.05792605634 | J100: 0.2994437687 | K100: 0.5646639991 | L100: 0.7357376654 | M100: 0.1269834187 | N100: -0.07328672642 | O100: 0.9546933632 | P100: 0.9142493171 | Q100: 0.8161608835 | R100: 0.7443768032 | S100: 0.5477350619 | T100: 0.3278496159 | U100: -0.6674949851 | V100: -0.8354246052 | W100: -0.51795 | X100: -0.29785 | Y100: -0.20055 | Z100: -0.10625 | AA100: 3.11655 | AB100: -3.037752774 | AC100: 6.154302774 | AD100: =IF(AC100<$U$12,AC100*Náklady!$O$8,$U$12)*Náklady!$O$9 -> 2.592 | AE100: 20.6
B101: srpen | C101: =C53-C69 -> -0.10625 | D101: -0.09125 | E101: -0.06125 | F101: -0.06125 | G101: -0.06125 | H101: -0.009926558224 | I101: -0.04239317422 | J101: 0.2278381423 | K101: 0.5217219368 | L101: 0.7245631651 | M101: 0.1412603983 | N101: -0.04365339009 | O101: 0.9867611584 | P101: 0.9358171633 | Q101: 0.8147667528 | R101: 0.7094531925 | S101: 0.4795041502 | T101: 0.236001201 | U101: -0.7562378991 | V101: -0.884676239 | W101: -0.51795 | X101: -0.29785 | Y101: -0.20055 | Z101: -0.10625 | AA101: 2.53695 | AB101: -3.240737261 | AC101: 5.777687261 | AD101: =IF(AC101<$U$12,AC101*Náklady!$O$8,$U$12)*Náklady!$O$9 -> 2.592 | AE101: 22.4
B102: září | C102: =C54-C70 -> -0.10625 | D102: -0.09125 | E102: -0.06125 | F102: -0.06125 | G102: -0.06125 | H102: -0.10625 | I102: -0.164819454 | J102: 0.03303202335 | K102: 0.3678926848 | L102: 0.5948721642 | M102: 0.007045564542 | N102: -0.09126419999 | O102: 0.8467554595 | P102: 0.7612597058 | Q102: 0.6719301513 | R102: 0.5662909823 | S102: 0.3055986335 | T102: 0.006718873524 | U102: -0.9938625889 | V102: -1.03935 | W102: -0.57795 | X102: -0.26785 | Y102: -0.20055 | Z102: -0.10625 | AA102: 0.232 | AB102: -3.929396243 | AC102: 4.161396243 | AD102: =IF(AC102<$U$12,AC102*Náklady!$O$8,$U$12)*Náklady!$O$9 -> 2.592 | AE102: 20.4
B103: říjen | C103: =C55-C71 -> -0.10625 | D103: -0.09125 | E103: -0.06125 | F103: -0.06125 | G103: -0.06125 | H103: -0.10625 | I103: -0.26355 | J103: -0.1017264706 | K103: -0.0005735294118 | L103: 0.3856852941 | M103: -0.2185735294 | N103: -0.3289617647 | O103: 0.6050735294 | P103: 0.5226617647 | Q103: 0.4425088235 | R103: 0.3513382353 | S103: 0.1093617647 | T103: -0.1349441176 | U103: -1.00205 | V103: -1.03935 | W103: -0.57795 | X103: -0.26785 | Y103: -0.20055 | Z103: -0.10625 | AA103: -2.3132 | AB103: -4.729829412 | AC103: 2.416629412 | AD103: =IF(AC103<$U$12,AC103*Náklady!$O$8,$U$12)*Náklady!$O$9 -> 1.739973176 | AE103: 22.2
B104: listopad | C104: =C56-C72 -> -0.10625 | D104: -0.09125 | E104: -0.06125 | F104: -0.06125 | G104: -0.06125 | H104: -0.10625 | I104: -0.26355 | J104: -0.1874270597 | K104: -0.08424143093 | L104: 0.03307659509 | M104: -0.5032603861 | N104: -0.641320638 | O104: 0.2864502891 | P104: 0.2211476667 | Q104: 0.1794478526 | R104: 0.1411461181 | S104: -0.05591900681 | T104: -0.15125 | U104: -1.00205 | V104: -1.03935 | W104: -0.57795 | X104: -0.26785 | Y104: -0.20055 | Z104: -0.10625 | AA104: -4.7072 | AB104: -5.568468522 | AC104: 0.8612685216 | AD104: =IF(AC104<$U$12,AC104*Náklady!$O$8,$U$12)*Náklady!$O$9 -> 0.6201133355 | AE104: 21
B105: prosinec | C105: =C57-C73 -> -0.10625 | D105: -0.09125 | E105: -0.06125 | F105: -0.06125 | G105: -0.06125 | H105: -0.10625 | I105: -0.26355 | J105: -0.23355 | K105: -0.1246201471 | L105: 0.003190034612 | M105: -0.5810764494 | N105: -0.7242751226 | O105: 0.2808016008 | P105: 0.1391858523 | Q105: 0.1030330401 | R105: 0.02796119123 | S105: -0.36835 | T105: -0.39835 | U105: -0.97205 | V105: -1.03935 | W105: -0.33085 | X105: -0.26785 | Y105: -0.20055 | Z105: -0.10625 | AA105: -5.544 | AB105: -6.098171719 | AC105: 0.5541717191 | AD105: =IF(AC105<$U$12,AC105*Náklady!$O$8,$U$12)*Náklady!$O$9 -> 0.3990036377 | AE105: 19.6
B107: Přebytky víkendové dny
C109: 1 | D109: 2 | E109: 3 | F109: 4 | G109: 5 | H109: 6 | I109: 7 | J109: 8 | K109: 9 | L109: 10 | M109: 11 | N109: 12 | O109: 13 | P109: 14 | Q109: 15 | R109: 16 | S109: 17 | T109: 18 | U109: 19 | V109: 20 | W109: 21 | X109: 22 | Y109: 23 | Z109: 24 | AA109: celkem | AB109: celkem | AC109: celkem | AD109: akumulace | AE109: Počet cyklu
B110: leden | C110: =C46-C78 -> -0.15125 | D110: =D46-D78 -> -0.12125 | E110: -0.06125 | F110: -0.06125 | G110: -0.06125 | H110: -0.06125 | I110: -0.06125 | J110: -0.15425 | K110: -0.1312834951 | L110: -0.0140592233 | M110: -0.05127281553 | N110: -0.1435213592 | O110: -0.2160626214 | P110: -0.09803640777 | Q110: -0.1069024272 | R110: -0.1777 | S110: -0.3595116505 | T110: -0.39835 | U110: -0.72495 | V110: -0.79225 | W110: -0.36385 | X110: -0.26785 | Y110: -0.23785 | Z110: -0.22285 | AA110: =SUM(C110:Z110) -> -5.0393 | AB110: =SUMIF(C110:Z110,"<0") -> -5.0393 | AC110: =SUMIF(C110:Z110,">0") -> 0 | AD110: =IF(AC110<$U$12,AC110*Náklady!$O$8,$U$12)*Náklady!$O$9 -> 0 | AE110: =SUMPRODUCT(IF(AD110>0,1,0),N11) -> 0
B111: únor | C111: =C47-C79 -> -0.15125 | D111: -0.12125 | E111: -0.06125 | F111: -0.06125 | G111: -0.06125 | H111: -0.06125 | I111: -0.06125 | J111: -0.09465686695 | K111: -0.06432811159 | L111: 0.1531023605 | M111: 0.1605040773 | N111: 0.08569334764 | O111: 0.01769549356 | P111: 0.1258418455 | Q111: 0.09474613734 | R111: -0.00596416309 | S111: -0.2368341202 | T111: -0.39835 | U111: -0.72495 | V111: -0.79225 | W111: -0.36385 | X111: -0.26785 | Y111: -0.23785 | Z111: -0.22285 | AA111: =SUM(C111:Z111) -> -3.3509 | AB111: =SUMIF(C111:Z111,"<0") -> -3.988483262 | AC111: =SUMIF(C111:Z111,">0") -> 0.6375832618 | AD111: =IF(AC111<$U$12,AC111*Náklady!$O$8,$U$12)*Náklady!$O$9 -> 0.4590599485 | AE111: =SUMPRODUCT(IF(AD111>0,1,0),N12) -> 8.05
B112: březen | C112: =C48-C80 -> -0.15125 | D112: -0.12125 | E112: -0.06125 | F112: -0.06125 | G112: -0.06125 | H112: -0.06125 | I112: -0.01261758985 | J112: 0.1089634355 | K112: 0.2284578964 | L112: 0.550324163 | M112: 0.7343267951 | N112: 0.6556862138 | O112: 0.3773233676 | P112: 0.2885987309 | Q112: 0.4097188915 | R112: 0.2939826632 | S112: -0.01120573794 | T112: -0.2990588293 | U112: -0.72495 | V112: -0.79225 | W112: -0.33085 | X112: -0.26785 | Y112: -0.23785 | Z112: -0.22285 | AA112: 0.2304 | AB112: -3.416982157 | AC112: 3.647382157 | AD112: =IF(AC112<$U$12,AC112*Náklady!$O$8,$U$12)*Náklady!$O$9 -> 2.592 | AE112: 9
B113: duben | C113: =C49-C81 -> -0.15125 | D113: -0.12125 | E113: -0.06125 | F113: -0.06125 | G113: -0.06125 | H113: -0.01546806529 | I113: 0.138437162 | J113: 0.3858544262 | K113: 0.4687643601 | L113: 0.7523943221 | M113: 0.9475015121 | N113: 0.8756487583 | O113: 0.6009656419 | P113: 0.5143910375 | Q113: 0.6351379031 | R113: 0.5142636992 | S113: 0.2005148908 | T113: -0.10222855 | U113: -0.6562770979 | V113: -0.79225 | W113: -0.33085 | X113: -0.26785 | Y113: -0.23785 | Z113: -0.22285 | AA113: 2.952 | AB113: -3.081873713 | AC113: 6.033873713 | AD113: =IF(AC113<$U$12,AC113*Náklady!$O$8,$U$12)*Náklady!$O$9 -> 2.592 | AE113: 9.6
B114: květen | C114: =C50-C82 -> -0.15125 | D114: -0.12125 | E114: -0.06125 | F114: -0.06125 | G114: -0.04123661818 | H114: 0.08170272727 | I114: 0.2122662182 | J114: 0.4390845455 | K114: 0.4783545818 | L114: 0.7190924727 | M114: 0.8810854909 | N114: 0.7900034545 | O114: 0.5119873091 | P114: 0.4370545091 | Q114: 0.5858580727 | R114: 0.5060040364 | S114: 0.2406286182 | T114: -0.01857225455 | U114: -0.5572188 | V114: -0.7588943636 | W114: -0.33085 | X114: -0.26785 | Y114: -0.23785 | Z114: -0.22285 | AA114: 3.0528 | AB114: -2.830322036 | AC114: 5.883122036 | AD114: =IF(AC114<$U$12,AC114*Náklady!$O$8,$U$12)*Náklady!$O$9 -> 2.592 | AE114: 10.2
B115: červen | C115: =C51-C83 -> -0.15125 | D115: -0.12125 | E115: -0.06125 | F115: -0.06125 | G115: 0.006821180314 | H115: 0.1133877867 | I115: 0.251407973 | J115: 0.4626633602 | K115: 0.5522296191 | L115: 0.7551728417 | M115: 0.6338871611 | N115: 0.7868918184 | O115: 0.4756006187 | P115: 0.4682273669 | Q115: 0.5883498888 | R115: 0.5164849228 | S115: 0.3216605102 | T115: 0.1033632768 | U115: -0.3997975462 | V115: -0.5638507785 | W115: -0.27085 | X115: -0.29785 | Y115: -0.23785 | Z115: -0.22285 | AA115: 3.6481 | AB115: -2.388048325 | AC115: 6.036148325 | AD115: =IF(AC115<$U$12,AC115*Náklady!$O$8,$U$12)*Náklady!$O$9 -> 2.592 | AE115: 8.6
B116: červenec | C116: =C52-C84 -> -0.15125 | D116: -0.12125 | E116: -0.06125 | F116: -0.06125 | G116: -0.01894645753 | H116: 0.09448282117 | I116: 0.2302260563 | J116: 0.4417437687 | K116: 0.5316639991 | L116: 0.7357376654 | M116: 0.6150834187 | N116: 0.7687632736 | O116: 0.4572933632 | P116: 0.4498493171 | Q116: 0.5690608835 | R116: 0.4972768032 | S116: 0.3006350619 | T116: 0.08074961588 | U116: -0.4203949851 | V116: -0.5883246052 | W116: -0.27085 | X116: -0.29785 | Y116: -0.23785 | Z116: -0.22285 | AA116: 3.3205 | AB116: -2.452066048 | AC116: 5.772566048 | AD116: =IF(AC116<$U$12,AC116*Náklady!$O$8,$U$12)*Náklady!$O$9 -> 2.592 | AE116: 10.4
B117: srpen | C117: =C53-C85 -> -0.15125 | D117: -0.12125 | E117: -0.06125 | F117: -0.06125 | G117: -0.06125 | H117: 0.02007344178 | I117: 0.1299068258 | J117: 0.3701381423 | K117: 0.4887219368 | L117: 0.7245631651 | M117: 0.6293603983 | N117: 0.7983966099 | O117: 0.4893611584 | P117: 0.4714171633 | Q117: 0.5676667528 | R117: 0.4623531925 | S117: 0.2324041502 | T117: -0.01109879903 | U117: -0.5091378991 | V117: -0.637576239 | W117: -0.27085 | X117: -0.29785 | Y117: -0.23785 | Z117: -0.22285 | AA117: 2.7409 | AB117: -2.643462937 | AC117: 5.384362937 | AD117: =IF(AC117<$U$12,AC117*Náklady!$O$8,$U$12)*Náklady!$O$9 -> 2.592 | AE117: 8.6
B118: září | C118: =C54-C86 -> -0.15125 | D118: -0.12125 | E118: -0.06125 | F118: -0.06125 | G118: -0.06125 | H118: -0.06125 | I118: 0.03748054595 | J118: 0.1723320234 | K118: 0.3302426848 | L118: 0.5648721642 | M118: 0.7422455645 | N118: 0.5818358 | O118: 0.3823554595 | P118: 0.2968597058 | Q118: 0.4248301513 | R118: 0.3191909823 | S118: 0.02849863349 | T118: -0.2403811265 | U118: -0.7167625889 | V118: -0.79225 | W118: -0.33085 | X118: -0.26785 | Y118: -0.23785 | Z118: -0.22285 | AA118: 0.55445 | AB118: -3.326293715 | AC118: 3.880743715 | AD118: =IF(AC118<$U$12,AC118*Náklady!$O$8,$U$12)*Náklady!$O$9 -> 2.592 | AE118: 9.6
B119: říjen | C119: =C55-C87 -> -0.15125 | D119: -0.12125 | E119: -0.06125 | F119: -0.06125 | G119: -0.06125 | H119: -0.06125 | I119: -0.06125 | J119: 0.03757352941 | K119: -0.03822352941 | L119: 0.3556852941 | M119: 0.5166264706 | N119: 0.3441382353 | O119: 0.1406735294 | P119: 0.05826176471 | Q119: 0.1954088235 | R119: 0.1042382353 | S119: -0.1677382353 | T119: -0.3820441176 | U119: -0.72495 | V119: -0.79225 | W119: -0.33085 | X119: -0.26785 | Y119: -0.23785 | Z119: -0.22285 | AA119: -1.99075 | AB119: -3.743355882 | AC119: 1.752605882 | AD119: =IF(AC119<$U$12,AC119*Náklady!$O$8,$U$12)*Náklady!$O$9 -> 1.261876235 | AE119: 8.8
B120: listopad | C120: =C56-C88 -> -0.15125 | D120: -0.12125 | E120: -0.06125 | F120: -0.06125 | G120: -0.06125 | H120: -0.06125 | I120: -0.06125 | J120: -0.04812705967 | K120: -0.1218914309 | L120: 0.003076595086 | M120: 0.2319396139 | N120: 0.03177936197 | O120: -0.1779497109 | P120: -0.2432523333 | Q120: -0.06765214743 | R120: -0.1059538819 | S120: -0.3330190068 | T120: -0.39835 | U120: -0.72495 | V120: -0.79225 | W120: -0.33085 | X120: -0.26785 | Y120: -0.23785 | Z120: -0.22285 | AA120: -4.38475 | AB120: -4.651545571 | AC120: 0.2667955709 | AD120: =IF(AC120<$U$12,AC120*Náklady!$O$8,$U$12)*Náklady!$O$9 -> 0.1920928111 | AE120: 9
B121: prosinec | C121: =C57-C89 -> -0.15125 | D121: -0.12125 | E121: -0.06125 | F121: -0.06125 | G121: -0.06125 | H121: -0.06125 | I121: -0.06125 | J121: -0.15425 | K121: -0.1576201471 | L121: -0.07610996539 | M121: -0.09297644938 | N121: -0.1891751226 | O121: -0.2627983992 | P121: -0.1409141477 | Q121: -0.1440669599 | R121: -0.2191388088 | S121: -0.36835 | T121: -0.39835 | U121: -0.72495 | V121: -0.79225 | W121: -0.36385 | X121: -0.26785 | Y121: -0.23785 | Z121: -0.22285 | AA121: -5.3921 | AB121: -5.3921 | AC121: 0 | AD121: =IF(AC121<$U$12,AC121*Náklady!$O$8,$U$12)*Náklady!$O$9 -> 0 | AE121: =SUMPRODUCT(IF(AD121>0,1,0),N22) -> 0
AC122: Roční spotřeba | AE122: =ROUNDUP(SUM(AE94:AE121),0) -> 345

Sheet Spotřeba
A4: Seznam spotřebičů | B4: Příkon [W] | C4: Standby [W]
A5: Stolní počítač HP | B5: 500 | C5: 2.9
A6: Televize Samsung | B6: 80 | C6: 0.7
A7: Myčka Bosh Silencplus | B7: 930 | C7: 0.6
A8: Televize Sencor | B8: 38 | C8: 0.7
A9: Led žárovka | B9: 15 | C9: -
A10: Varná konvice Sencor | B10: 2000 | C10: -
A11: Microvlná trouba Whirlpool | B11: 900 | C11: 0.35
A12: Pračka Gorenje | B12: 1630 | C12: 0.5
A13: Sušička Gorenje | B13: 2000 | C13: 0.5
A14: Seznam cyklických spotřebičů | B14: [kWh/rok]
A15: Lednička Lg | B15: 200 | C15: -
A16: Mrazák Zanussi | B16: 300 | C16: -
E18: zimní pracovní den
B19: pracovni | C19: vikendove dny
B20: =(21+20+22+22+22)/5 -> 21.4 | C20: 9.6 | E20: hodiny | F20: 1 | G20: 2 | H20: 3 | I20: 4 | J20: 5 | K20: 6 | L20: 7 | M20: 8 | N20: 9 | O20: 10 | P20: 11 | Q20: 12 | R20: 13 | S20: 14 | T20: 15 | U20: 16 | V20: 17 | W20: 18 | X20: 19 | Y20: 20 | Z20: 21 | AA20: 22 | AB20: 23 | AC20: 24 | AD20: celkem
B21: =(4*20+21)/5 -> 20.2 | C21: 8.05 | E21: Stolní počítač HP | F21: 2.9 | G21: 2.9 | H21: 2.9 | I21: 2.9 | J21: 2.9 | K21: 2.9 | L21: 2.9 | M21: 2.9 | N21: 2.9 | O21: 2.9 | P21: 2.9 | Q21: 2.9 | R21: 2.9 | S21: 2.9 | T21: 2.9 | U21: 2.9 | V21: 250 | W21: 250 | X21: 250 | Y21: 250 | Z21: 2.9 | AA21: 2.9 | AB21: 2.9 | AC21: 2.9 | AD21: =SUM(F21:AC21) -> 1058
B22: =(22+22+23+22+21)/5 -> 22 | C22: 9 | E22: Televize Samsung | F22: 0.7 | G22: 0.7 | H22: 0.7 | I22: 0.7 | J22: 0.7 | K22: 0.7 | L22: 80 | M22: 80 | N22: 80 | O22: 0.7 | P22: 0.7 | Q22: 0.7 | R22: 0.7 | S22: 80 | T22: 80 | U22: 0.7 | V22: 0.7 | W22: 0.7 | X22: 80 | Y22: 80 | Z22: 80 | AA22: 80 | AB22: 80 | AC22: 0.7 | AD22: 809.8
B23: =(21+21+19+20+21)/5 -> 20.4 | C23: 9.6 | E23: Lednička Lg | F23: 20 | G23: 20 | H23: 20 | I23: 20 | J23: 20 | K23: 20 | L23: 20 | M23: 20 | N23: 20 | O23: 20 | P23: 20 | Q23: 20 | R23: 20 | S23: 20 | T23: 20 | U23: 20 | V23: 20 | W23: 20 | X23: 20 | Y23: 20 | Z23: 20 | AA23: 20 | AB23: 20 | AC23: 20 | AD23: 480
B24: =(19+22+21+21+21)/5 -> 20.8 | C24: 10.2 | E24: Mrazák Zanussi | F24: 35 | G24: 35 | H24: 35 | I24: 35 | J24: 35 | K24: 35 | L24: 35 | M24: 35 | N24: 35 | O24: 35 | P24: 35 | Q24: 35 | R24: 35 | S24: 35 | T24: 35 | U24: 35 | V24: 35 | W24: 35 | X24: 35 | Y24: 35 | Z24: 35 | AA24: 35 | AB24: 35 | AC24: 35 | AD24: 840
B25: =(22+22+22+21+20)/5 -> 21.4 | C25: 8.6 | E25: Myčka Bosh Silencplus | F25: 0.6 | G25: 0.6 | H25: 0.6 | I25: 0.6 | J25: 0.6 | K25: 0.6 | L25: 0.6 | M25: 0.6 | N25: 0.6 | O25: 0.6 | P25: 0.6 | Q25: 0.6 | R25: 0.7 | S25: 0.6 | T25: 0.6 | U25: 0.6 | V25: 0.6 | W25: 0.6 | X25: 465 | Y25: 465 | Z25: 0.6 | AA25: 0.6 | AB25: 0.6 | AC25: 0.6 | AD25: 943.3
B26: =(22+19+20+20+22)/5 -> 20.6 | C26: 10.4 | E26: Televize Sencor | F26: 0.7 | G26: 0.7 | H26: 0.7 | I26: 0.7 | J26: 0.7 | K26: 0.7 | L26: 0.7 | M26: 0.7 | N26: 0.7 | O26: 0.7 | P26: 0.7 | Q26: 0.7 | R26: 0.7 | S26: 0.7 | T26: 0.7 | U26: 0.7 | V26: 0.7 | W26: 0.7 | X26: 0.7 | Y26: 38 | Z26: 38 | AA26: 38 | AB26: 0.7 | AC26: 0.7 | AD26: 128.7
B27: =(21+23+23+23+22)/5 -> 22.4 | C27: 8.6 | E27: Led žárovka | F27: 45 | G27: 30 | H27: 0 | I27: 0 | J27: 0 | K27: 45 | L27: 90 | M27: 60 | N27: 30 | O27: 30 | P27: 0 | Q27: 0 | R27: 0 | S27: 0 | T27: 0 | U27: 30 | V27: 60 | W27: 90 | X27: 120 | Y27: 150 | Z27: 120 | AA27: 90 | AB27: 60 | AC27: 45 | AD27: 1095
B28: =(21+21+20+19+21)/5 -> 20.4 | C28: 9.6 | E28: Varná konvice Sencor | F28: 0 | G28: 0 | H28: 0 | I28: 0 | J28: 0 | K28: 0 | L28: 33 | M28: 33 | N28: 0 | O28: 0 | P28: 0 | Q28: 0 | R28: 0 | S28: 33 | T28: 0 | U28: 0 | V28: 0 | W28: 0 | X28: 0 | Y28: 0 | Z28: 33 | AA28: 0 | AB28: 0 | AC28: 0 | AD28: 132
B29: =(21+22+23+23+22)/5 -> 22.2 | C29: 8.8 | E29: Microvlná trouba Whirlpool | F29: 0.35 | G29: 0.35 | H29: 0.35 | I29: 0.35 | J29: 0.35 | K29: 0.35 | L29: 0.35 | M29: 0.35 | N29: 0.35 | O29: 0.35 | P29: 0.35 | Q29: 0.35 | R29: 0.35 | S29: 0.35 | T29: 0.35 | U29: 0.35 | V29: 0.35 | W29: 0.35 | X29: 0.35 | Y29: 0.35 | Z29: 0.35 | AA29: 0.35 | AB29: 0.35 | AC29: 0.35 | AD29: 8.4
B30: =(20+21+21+22+21)/5 -> 21 | C30: 9 | E30: Pračka Gorenje | F30: 0.5 | G30: 0.5 | H30: 0.5 | I30: 0.5 | J30: 0.5 | K30: 0.5 | L30: 0.5 | M30: 0.5 | N30: 0.5 | O30: 0.5 | P30: 815 | Q30: 0.5 | R30: 0.5 | S30: 0.5 | T30: 0.5 | U30: 0.5 | V30: 0.5 | W30: 0.5 | X30: 0.5 | Y30: 0.5 | Z30: 0.5 | AA30: 0.5 | AB30: 0.5 | AC30: 0.5 | AD30: 826.5
B31: =(21+21+19+18+19)/5 -> 19.6 | C31: 11.4 | E31: Sušička Gorenje | F31: 0.5 | G31: 0.5 | H31: 0.5 | I31: 0.5 | J31: 0.5 | K31: 0.5 | L31: 0.5 | M31: 0.5 | N31: 0.5 | O31: 0.5 | P31: 0.5 | Q31: 1000 | R31: 0.5 | S31: 0.5 | T31: 0.5 | U31: 0.5 | V31: 0.5 | W31: 0.5 | X31: 0.5 | Y31: 0.5 | Z31: 0.5 | AA31: 0.5 | AB31: 0.5 | AC31: 0.5 | AD31: 1011.5
E32: celkem | F32: =SUM(F21:F31)/1000 -> 0.10625 | G32: 0.09125 | H32: 0.06125 | I32: 0.06125 | J32: 0.06125 | K32: 0.10625 | L32: 0.26355 | M32: 0.23355 | N32: 0.17055 | O32: 0.09125 | P32: 0.87575 | Q32: 1.06075 | R32: 0.06135 | S32: 0.17355 | T32: 0.14055 | U32: 0.09125 | V32: 0.36835 | W32: 0.39835 | X32: 0.97205 | Y32: 1.03935 | Z32: 0.33085 | AA32: 0.26785 | AB32: 0.20055 | AC32: 0.10625
AA33: denni celkem | AD33: =SUM(AD21:AD31)/1000 -> 7.3332 | AE33: kWh
E34: zimní víkendový den
E36: hodiny | F36: 1 | G36: 2 | H36: 3 | I36: 4 | J36: 5 | K36: 6 | L36: 7 | M36: 8 | N36: 9 | O36: 10 | P36: 11 | Q36: 12 | R36: 13 | S36: 14 | T36: 15 | U36: 16 | V36: 17 | W36: 18 | X36: 19 | Y36: 20 | Z36: 21 | AA36: 22 | AB36: 23 | AC36: 24 | AD36: celkem
E37: Stolní počítač HP | F37: 2.9 | G37: 2.9 | H37: 2.9 | I37: 2.9 | J37: 2.9 | K37: 2.9 | L37: 2.9 | M37: 2.9 | N37: 2.9 | O37: 2.9 | P37: 250 | Q37: 2.9 | R37: 2.9 | S37: 250 | T37: 250 | U37: 250 | V37: 250 | W37: 250 | X37: 2.9 | Y37: 2.9 | Z37: 2.9 | AA37: 2.9 | AB37: 2.9 | AC37: 2.9 | AD37: =SUM(F37:AC37) -> 1552.2
E38: Televize Samsung | F38: 0.7 | G38: 0.7 | H38: 0.7 | I38: 0.7 | J38: 0.7 | K38: 0.7 | L38: 0.7 | M38: 0.7 | N38: 80 | O38: 80 | P38: 80 | Q38: 0.7 | R38: 80 | S38: 80 | T38: 80 | U38: 0.7 | V38: 0.7 | W38: 0.7 | X38: 80 | Y38: 80 | Z38: 80 | AA38: 80 | AB38: 80 | AC38: 80 | AD38: 968.4
E39: Lednička Lg | F39: 20 | G39: 20 | H39: 20 | I39: 20 | J39: 20 | K39: 20 | L39: 20 | M39: 20 | N39: 20 | O39: 20 | P39: 20 | Q39: 20 | R39: 20 | S39: 20 | T39: 20 | U39: 20 | V39: 20 | W39: 20 | X39: 20 | Y39: 20 | Z39: 20 | AA39: 20 | AB39: 20 | AC39: 20 | AD39: =SUM(F39:AC39) -> 480
E40: Mrazák Zanussi | F40: 35 | G40: 35 | H40: 35 | I40: 35 | J40: 35 | K40: 35 | L40: 35 | M40: 35 | N40: 35 | O40: 35 | P40: 35 | Q40: 35 | R40: 35 | S40: 35 | T40: 35 | U40: 35 | V40: 35 | W40: 35 | X40: 35 | Y40: 35 | Z40: 35 | AA40: 35 | AB40: 35 | AC40: 35 | AD40: 840
E41: Myčka Bosh Silencplus | F41: 0.6 | G41: 0.6 | H41: 0.6 | I41: 0.6 | J41: 0.6 | K41: 0.6 | L41: 0.6 | M41: 0.6 | N41: 0.6 | O41: 0.6 | P41: 0.6 | Q41: 465 | R41: 465 | S41: 0.6 | T41: 0.6 | U41: 0.6 | V41: 0.6 | W41: 0.6 | X41: 465 | Y41: 465 | Z41: 0.6 | AA41: 0.6 | AB41: 0.6 | AC41: 0.6 | AD41: 1872
E42: Televize Sencor | F42: 0.7 | G42: 0.7 | H42: 0.7 | I42: 0.7 | J42: 0.7 | K42: 0.7 | L42: 0.7 | M42: 0.7 | N42: 0.7 | O42: 0.7 | P42: 0.7 | Q42: 0.7 | R42: 0.7 | S42: 0.7 | T42: 0.7 | U42: 0.7 | V42: 0.7 | W42: 0.7 | X42: 0.7 | Y42: 38 | Z42: 38 | AA42: 38 | AB42: 38 | AC42: 38 | AD42: 203.3
E43: Led žárovka | F43: 90 | G43: 60 | H43: 0 | I43: 0 | J43: 0 | K43: 0 | L43: 0 | M43: 60 | N43: 30 | O43: 30 | P43: 0 | Q43: 0 | R43: 0 | S43: 0 | T43: 0 | U43: 30 | V43: 60 | W43: 90 | X43: 120 | Y43: 150 | Z43: 120 | AA43: 90 | AB43: 60 | AC43: 45 | AD43: 1035
E44: Varná konvice Sencor | F44: 0 | G44: 0 | H44: 0 | I44: 0 | J44: 0 | K44: 0 | L44: 0 | M44: 33 | N44: 33 | O44: 0 | P44: 0 | Q44: 0 | R44: 0 | S44: 66 | T44: 0 | U44: 0 | V44: 0 | W44: 0 | X44: 0 | Y44: 0 | Z44: 66 | AA44: 0 | AB44: 0 | AC44: 0 | AD44: 198
E45: Microvlná trouba Whirlpool | F45: 0.35 | G45: 0.35 | H45: 0.35 | I45: 0.35 | J45: 0.35 | K45: 0.35 | L45: 0.35 | M45: 0.35 | N45: 0.35 | O45: 0.35 | P45: 0.35 | Q45: 0.35 | R45: 0.35 | S45: 0.35 | T45: 0.35 | U45: 0.35 | V45: 0.35 | W45: 0.35 | X45: 0.35 | Y45: 0.35 | Z45: 0.35 | AA45: 0.35 | AB45: 0.35 | AC45: 0.35 | AD45: 8.4
E46: Pračka Gorenje | F46: 0.5 | G46: 0.5 | H46: 0.5 | I46: 0.5 | J46: 0.5 | K46: 0.5 | L46: 0.5 | M46: 0.5 | N46: 0.5 | O46: 0.5 | P46: 0.5 | Q46: 0.5 | R46: 0.5 | S46: 0.5 | T46: 0.5 | U46: 0.5 | V46: 0.5 | W46: 0.5 | X46: 0.5 | Y46: 0.5 | Z46: 0.5 | AA46: 0.5 | AB46: 0.5 | AC46: 0.5 | AD46: 12
E47: Sušička Gorenje | F47: 0.5 | G47: 0.5 | H47: 0.5 | I47: 0.5 | J47: 0.5 | K47: 0.5 | L47: 0.5 | M47: 0.5 | N47: 0.5 | O47: 0.5 | P47: 0.5 | Q47: 0.5 | R47: 0.5 | S47: 0.5 | T47: 0.5 | U47: 0.5 | V47: 0.5 | W47: 0.5 | X47: 0.5 | Y47: 0.5 | Z47: 0.5 | AA47: 0.5 | AB47: 0.5 | AC47: 0.5 | AD47: 12
E48: celkem | F48: =SUM(F37:F47)/1000 -> 0.15125 | G48: 0.12125 | H48: 0.06125 | I48: 0.06125 | J48: 0.06125 | K48: 0.06125 | L48: 0.06125 | M48: 0.15425 | N48: 0.20355 | O48: 0.17055 | P48: 0.38765 | Q48: 0.52565 | R48: 0.60495 | S48: 0.45365 | T48: 0.38765 | U48: 0.33835 | V48: 0.36835 | W48: 0.39835 | X48: 0.72495 | Y48: 0.79225 | Z48: 0.36385 | AA48: 0.26785 | AB48: 0.23785 | AC48: 0.22285
AA49: denni celkem | AD49: =SUM(AD37:AD47)/1000 -> 7.1813 | AE49: kWh
E55: jarní pracovní den
E57: hodiny | F57: 1 | G57: 2 | H57: 3 | I57: 4 | J57: 5 | K57: 6 | L57: 7 | M57: 8 | N57: 9 | O57: 10 | P57: 11 | Q57: 12 | R57: 13 | S57: 14 | T57: 15 | U57: 16 | V57: 17 | W57: 18 | X57: 19 | Y57: 20 | Z57: 21 | AA57: 22 | AB57: 23 | AC57: 24 | AD57: celkem
E58: Stolní počítač HP | F58: 2.9 | G58: 2.9 | H58: 2.9 | I58: 2.9 | J58: 2.9 | K58: 2.9 | L58: 2.9 | M58: 2.9 | N58: 2.9 | O58: 2.9 | P58: 2.9 | Q58: 2.9 | R58: 2.9 | S58: 2.9 | T58: 2.9 | U58: 2.9 | V58: 2.9 | W58: 2.9 | X58: 250 | Y58: 250 | Z58: 250 | AA58: 2.9 | AB58: 2.9 | AC58: 2.9 | AD58: =SUM(F58:AC58) -> 810.9
E59: Televize Samsung | F59: 0.7 | G59: 0.7 | H59: 0.7 | I59: 0.7 | J59: 0.7 | K59: 0.7 | L59: 80 | M59: 80 | N59: 80 | O59: 80 | P59: 0.7 | Q59: 0.7 | R59: 80 | S59: 80 | T59: 80 | U59: 0.7 | V59: 0.7 | W59: 0.7 | X59: 80 | Y59: 80 | Z59: 80 | AA59: 80 | AB59: 80 | AC59: 0.7 | AD59: 968.4
E60: Lednička Lg | F60: 20 | G60: 20 | H60: 20 | I60: 20 | J60: 20 | K60: 20 | L60: 20 | M60: 20 | N60: 20 | O60: 20 | P60: 20 | Q60: 20 | R60: 20 | S60: 20 | T60: 20 | U60: 20 | V60: 20 | W60: 20 | X60: 20 | Y60: 20 | Z60: 20 | AA60: 20 | AB60: 20 | AC60: 20 | AD60: =SUM(F60:AC60) -> 480
E61: Mrazák Zanussi | F61: 35 | G61: 35 | H61: 35 | I61: 35 | J61: 35 | K61: 35 | L61: 35 | M61: 35 | N61: 35 | O61: 35 | P61: 35 | Q61: 35 | R61: 35 | S61: 35 | T61: 35 | U61: 35 | V61: 35 | W61: 35 | X61: 35 | Y61: 35 | Z61: 35 | AA61: 35 | AB61: 35 | AC61: 35 | AD61: 840
E62: Myčka Bosh Silencplus | F62: 0.6 | G62: 0.6 | H62: 0.6 | I62: 0.6 | J62: 0.6 | K62: 0.6 | L62: 0.6 | M62: 0.6 | N62: 0.6 | O62: 0.6 | P62: 0.6 | Q62: 0.6 | R62: 0.6 | S62: 0.6 | T62: 0.6 | U62: 0.6 | V62: 0.6 | W62: 0.6 | X62: 465 | Y62: 465 | Z62: 0.6 | AA62: 0.6 | AB62: 0.6 | AC62: 0.6 | AD62: 943.2
E63: Televize Sencor | F63: 0.7 | G63: 0.7 | H63: 0.7 | I63: 0.7 | J63: 0.7 | K63: 0.7 | L63: 0.7 | M63: 0.7 | N63: 0.7 | O63: 0.7 | P63: 0.7 | Q63: 0.7 | R63: 0.7 | S63: 0.7 | T63: 0.7 | U63: 0.7 | V63: 0.7 | W63: 0.7 | X63: 0.7 | Y63: 38 | Z63: 38 | AA63: 38 | AB63: 0.7 | AC63: 0.7 | AD63: 128.7
E64: Led žárovka | F64: 45 | G64: 30 | H64: 0 | I64: 0 | J64: 0 | K64: 45 | L64: 90 | M64: 60 | N64: 30 | O64: 0 | P64: 0 | Q64: 0 | R64: 0 | S64: 0 | T64: 0 | U64: 0 | V64: 30 | W64: 90 | X64: 150 | Y64: 150 | Z64: 120 | AA64: 90 | AB64: 60 | AC64: 45 | AD64: 1035
E65: Varná konvice Sencor | F65: 0 | G65: 0 | H65: 0 | I65: 0 | J65: 0 | K65: 0 | L65: 33 | M65: 0 | N65: 0 | O65: 0 | P65: 0 | Q65: 0 | R65: 0 | S65: 33 | T65: 0 | U65: 0 | V65: 0 | W65: 0 | X65: 0 | Y65: 0 | Z65: 33 | AA65: 0 | AB65: 0 | AC65: 0 | AD65: 99
E66: Microvlná trouba Whirlpool | F66: 0.35 | G66: 0.35 | H66: 0.35 | I66: 0.35 | J66: 0.35 | K66: 0.35 | L66: 0.35 | M66: 0.35 | N66: 0.35 | O66: 0.35 | P66: 0.35 | Q66: 0.35 | R66: 0.35 | S66: 0.35 | T66: 0.35 | U66: 0.35 | V66: 0.35 | W66: 0.35 | X66: 0.35 | Y66: 0.35 | Z66: 0.35 | AA66: 0.35 | AB66: 0.35 | AC66: 0.35 | AD66: 8.4
E67: Pračka Gorenje | F67: 0.5 | G67: 0.5 | H67: 0.5 | I67: 0.5 | J67: 0.5 | K67: 0.5 | L67: 0.5 | M67: 0.5 | N67: 0.5 | O67: 0.5 | P67: 815 | Q67: 0.5 | R67: 0.5 | S67: 0.5 | T67: 0.5 | U67: 0.5 | V67: 0.5 | W67: 0.5 | X67: 0.5 | Y67: 0.5 | Z67: 0.5 | AA67: 0.5 | AB67: 0.5 | AC67: 0.5 | AD67: 826.5
E68: Sušička Gorenje | F68: 0.5 | G68: 0.5 | H68: 0.5 | I68: 0.5 | J68: 0.5 | K68: 0.5 | L68: 0.5 | M68: 0.5 | N68: 0.5 | O68: 0.5 | P68: 0.5 | Q68: 1000 | R68: 0.5 | S68: 0.5 | T68: 0.5 | U68: 0.5 | V68: 0.5 | W68: 0.5 | X68: 0.5 | Y68: 0.5 | Z68: 0.5 | AA68: 0.5 | AB68: 0.5 | AC68: 0.5 | AD68: 1011.5
E69: celkem [kWh] | F69: =SUM(F58:F68)/1000 -> 0.10625 | G69: 0.09125 | H69: 0.06125 | I69: 0.06125 | J69: 0.06125 | K69: 0.10625 | L69: 0.26355 | M69: 0.20055 | N69: 0.17055 | O69: 0.14055 | P69: 0.87575 | Q69: 1.06075 | R69: 0.14055 | S69: 0.17355 | T69: 0.14055 | U69: 0.06125 | V69: 0.09125 | W69: 0.15125 | X69: 1.00205 | Y69: 1.03935 | Z69: 0.57795 | AA69: 0.26785 | AB69: 0.20055 | AC69: 0.10625
AA70: denni celkem | AD70: =SUM(AD58:AD68)/1000 -> 7.1516 | AE70: kWh
E71: jarní víkendový den
E73: hodiny | F73: 1 | G73: 2 | H73: 3 | I73: 4 | J73: 5 | K73: 6 | L73: 7 | M73: 8 | N73: 9 | O73: 10 | P73: 11 | Q73: 12 | R73: 13 | S73: 14 | T73: 15 | U73: 16 | V73: 17 | W73: 18 | X73: 19 | Y73: 20 | Z73: 21 | AA73: 22 | AB73: 23 | AC73: 24 | AD73: celkem
E74: Stolní počítač HP | F74: 2.9 | G74: 2.9 | H74: 2.9 | I74: 2.9 | J74: 2.9 | K74: 2.9 | L74: 2.9 | M74: 2.9 | N74: 2.9 | O74: 2.9 | P74: 2.9 | Q74: 250 | R74: 2.9 | S74: 2.9 | T74: 250 | U74: 250 | V74: 250 | W74: 250 | X74: 2.9 | Y74: 2.9 | Z74: 2.9 | AA74: 2.9 | AB74: 2.9 | AC74: 2.9 | AD74: =SUM(F74:AC74) -> 1305.1
E75: Televize Samsung | F75: 0.7 | G75: 0.7 | H75: 0.7 | I75: 0.7 | J75: 0.7 | K75: 0.7 | L75: 0.7 | M75: 0.7 | N75: 80 | O75: 80 | P75: 80 | Q75: 0.7 | R75: 80 | S75: 80 | T75: 80 | U75: 0.7 | V75: 0.7 | W75: 0.7 | X75: 80 | Y75: 80 | Z75: 80 | AA75: 80 | AB75: 80 | AC75: 80 | AD75: 968.4
E76: Lednička Lg | F76: 20 | G76: 20 | H76: 20 | I76: 20 | J76: 20 | K76: 20 | L76: 20 | M76: 20 | N76: 20 | O76: 20 | P76: 20 | Q76: 20 | R76: 20 | S76: 20 | T76: 20 | U76: 20 | V76: 20 | W76: 20 | X76: 20 | Y76: 20 | Z76: 20 | AA76: 20 | AB76: 20 | AC76: 20 | AD76: =SUM(F76:AC76) -> 480
E77: Mrazák Zanussi | F77: 35 | G77: 35 | H77: 35 | I77: 35 | J77: 35 | K77: 35 | L77: 35 | M77: 35 | N77: 35 | O77: 35 | P77: 35 | Q77: 35 | R77: 35 | S77: 35 | T77: 35 | U77: 35 | V77: 35 | W77: 35 | X77: 35 | Y77: 35 | Z77: 35 | AA77: 35 | AB77: 35 | AC77: 35 | AD77: 840
E78: Myčka Bosh Silencplus | F78: 0.6 | G78: 0.6 | H78: 0.6 | I78: 0.6 | J78: 0.6 | K78: 0.6 | L78: 0.6 | M78: 0.6 | N78: 0.6 | O78: 0.6 | P78: 0.6 | Q78: 0.6 | R78: 465 | S78: 465 | T78: 0.6 | U78: 0.6 | V78: 0.6 | W78: 0.6 | X78: 465 | Y78: 465 | Z78: 0.6 | AA78: 0.6 | AB78: 0.6 | AC78: 0.6 | AD78: 1872
E79: Televize Sencor | F79: 0.7 | G79: 0.7 | H79: 0.7 | I79: 0.7 | J79: 0.7 | K79: 0.7 | L79: 0.7 | M79: 0.7 | N79: 0.7 | O79: 0.7 | P79: 0.7 | Q79: 0.7 | R79: 0.7 | S79: 0.7 | T79: 0.7 | U79: 0.7 | V79: 0.7 | W79: 0.7 | X79: 0.7 | Y79: 38 | Z79: 38 | AA79: 38 | AB79: 38 | AC79: 38 | AD79: 203.3
E80: Led žárovka | F80: 90 | G80: 60 | H80: 0 | I80: 0 | J80: 0 | K80: 0 | L80: 0 | M80: 0 | N80: 60 | O80: 30 | P80: 0 | Q80: 0 | R80: 0 | S80: 0 | T80: 0 | U80: 0 | V80: 60 | W80: 90 | X80: 120 | Y80: 150 | Z80: 120 | AA80: 90 | AB80: 60 | AC80: 45 | AD80: 975
E81: Varná konvice Sencor | F81: 0 | G81: 0 | H81: 0 | I81: 0 | J81: 0 | K81: 0 | L81: 0 | M81: 0 | N81: 33 | O81: 0 | P81: 0 | Q81: 0 | R81: 0 | S81: 33 | T81: 0 | U81: 0 | V81: 0 | W81: 0 | X81: 0 | Y81: 0 | Z81: 33 | AA81: 0 | AB81: 0 | AC81: 0 | AD81: 99
E82: Microvlná trouba Whirlpool | F82: 0.35 | G82: 0.35 | H82: 0.35 | I82: 0.35 | J82: 0.35 | K82: 0.35 | L82: 0.35 | M82: 0.35 | N82: 0.35 | O82: 0.35 | P82: 0.35 | Q82: 0.35 | R82: 0.35 | S82: 0.35 | T82: 0.35 | U82: 0.35 | V82: 0.35 | W82: 0.35 | X82: 0.35 | Y82: 0.35 | Z82: 0.35 | AA82: 0.35 | AB82: 0.35 | AC82: 0.35 | AD82: 8.4
E83: Pračka Gorenje | F83: 0.5 | G83: 0.5 | H83: 0.5 | I83: 0.5 | J83: 0.5 | K83: 0.5 | L83: 0.5 | M83: 0.5 | N83: 0.5 | O83: 0.5 | P83: 0.5 | Q83: 0.5 | R83: 0.5 | S83: 0.5 | T83: 0.5 | U83: 0.5 | V83: 0.5 | W83: 0.5 | X83: 0.5 | Y83: 0.5 | Z83: 0.5 | AA83: 0.5 | AB83: 0.5 | AC83: 0.5 | AD83: 12
E84: Sušička Gorenje | F84: 0.5 | G84: 0.5 | H84: 0.5 | I84: 0.5 | J84: 0.5 | K84: 0.5 | L84: 0.5 | M84: 0.5 | N84: 0.5 | O84: 0.5 | P84: 0.5 | Q84: 0.5 | R84: 0.5 | S84: 0.5 | T84: 0.5 | U84: 0.5 | V84: 0.5 | W84: 0.5 | X84: 0.5 | Y84: 0.5 | Z84: 0.5 | AA84: 0.5 | AB84: 0.5 | AC84: 0.5 | AD84: 12
E85: celkem [kWh] | F85: =SUM(F74:F84)/1000 -> 0.15125 | G85: 0.12125 | H85: 0.06125 | I85: 0.06125 | J85: 0.06125 | K85: 0.06125 | L85: 0.06125 | M85: 0.06125 | N85: 0.23355 | O85: 0.17055 | P85: 0.14055 | Q85: 0.30835 | R85: 0.60495 | S85: 0.63795 | T85: 0.38765 | U85: 0.30835 | V85: 0.36835 | W85: 0.39835 | X85: 0.72495 | Y85: 0.79225 | Z85: 0.33085 | AA85: 0.26785 | AB85: 0.23785 | AC85: 0.22285
AA86: denni celkem | AD86: =SUM(AD74:AD84)/1000 -> 6.7752 | AE86: kWh
E93: letní pracovní den
E95: hodiny | F95: 1 | G95: 2 | H95: 3 | I95: 4 | J95: 5 | K95: 6 | L95: 7 | M95: 8 | N95: 9 | O95: 10 | P95: 11 | Q95: 12 | R95: 13 | S95: 14 | T95: 15 | U95: 16 | V95: 17 | W95: 18 | X95: 19 | Y95: 20 | Z95: 21 | AA95: 22 | AB95: 23 | AC95: 24 | AD95: celkem
E96: Stolní počítač HP | F96: 2.9 | G96: 2.9 | H96: 2.9 | I96: 2.9 | J96: 2.9 | K96: 2.9 | L96: 2.9 | M96: 2.9 | N96: 2.9 | O96: 2.9 | P96: 2.9 | Q96: 2.9 | R96: 2.9 | S96: 2.9 | T96: 2.9 | U96: 2.9 | V96: 2.9 | W96: 2.9 | X96: 250 | Y96: 250 | Z96: 250 | AA96: 2.9 | AB96: 2.9 | AC96: 2.9 | AD96: =SUM(F96:AC96) -> 810.9
E97: Televize Samsung | F97: 0.7 | G97: 0.7 | H97: 0.7 | I97: 0.7 | J97: 0.7 | K97: 0.7 | L97: 80 | M97: 80 | N97: 80 | O97: 80 | P97: 0.7 | Q97: 0.7 | R97: 80 | S97: 80 | T97: 80 | U97: 0.7 | V97: 0.7 | W97: 0.7 | X97: 80 | Y97: 80 | Z97: 80 | AA97: 80 | AB97: 80 | AC97: 0.7 | AD97: 968.4
E98: Lednička Lg | F98: 20 | G98: 20 | H98: 20 | I98: 20 | J98: 20 | K98: 20 | L98: 20 | M98: 20 | N98: 20 | O98: 20 | P98: 20 | Q98: 20 | R98: 20 | S98: 20 | T98: 20 | U98: 20 | V98: 20 | W98: 20 | X98: 20 | Y98: 20 | Z98: 20 | AA98: 20 | AB98: 20 | AC98: 20 | AD98: =SUM(F98:AC98) -> 480
E99: Mrazák Zanussi | F99: 35 | G99: 35 | H99: 35 | I99: 35 | J99: 35 | K99: 35 | L99: 35 | M99: 35 | N99: 35 | O99: 35 | P99: 35 | Q99: 35 | R99: 35 | S99: 35 | T99: 35 | U99: 35 | V99: 35 | W99: 35 | X99: 35 | Y99: 35 | Z99: 35 | AA99: 35 | AB99: 35 | AC99: 35 | AD99: 840
E100: Myčka Bosh Silencplus | F100: 0.6 | G100: 0.6 | H100: 0.6 | I100: 0.6 | J100: 0.6 | K100: 0.6 | L100: 0.6 | M100: 0.6 | N100: 0.6 | O100: 0.6 | P100: 0.6 | Q100: 0.6 | R100: 0.6 | S100: 0.6 | T100: 0.6 | U100: 0.6 | V100: 0.6 | W100: 0.6 | X100: 465 | Y100: 465 | Z100: 0.6 | AA100: 0.6 | AB100: 0.6 | AC100: 0.6 | AD100: 943.2
E101: Televize Sencor | F101: 0.7 | G101: 0.7 | H101: 0.7 | I101: 0.7 | J101: 0.7 | K101: 0.7 | L101: 0.7 | M101: 0.7 | N101: 0.7 | O101: 0.7 | P101: 0.7 | Q101: 0.7 | R101: 0.7 | S101: 0.7 | T101: 0.7 | U101: 0.7 | V101: 0.7 | W101: 0.7 | X101: 0.7 | Y101: 38 | Z101: 38 | AA101: 38 | AB101: 0.7 | AC101: 0.7 | AD101: 128.7
E102: Led žárovka | F102: 45 | G102: 30 | H102: 0 | I102: 0 | J102: 0 | K102: 30 | L102: 60 | M102: 30 | N102: 0 | O102: 0 | P102: 0 | Q102: 0 | R102: 0 | S102: 0 | T102: 0 | U102: 0 | V102: 0 | W102: 0 | X102: 0 | Y102: 0 | Z102: 60 | AA102: 120 | AB102: 60 | AC102: 45 | AD102: 480
E103: Varná konvice Sencor | F103: 0 | G103: 0 | H103: 0 | I103: 0 | J103: 0 | K103: 0 | L103: 33 | M103: 33 | N103: 0 | O103: 0 | P103: 0 | Q103: 0 | R103: 0 | S103: 0 | T103: 0 | U103: 0 | V103: 0 | W103: 0 | X103: 0 | Y103: 0 | Z103: 33 | AA103: 0 | AB103: 0 | AC103: 0 | AD103: 99
E104: Microvlná trouba Whirlpool | F104: 0.35 | G104: 0.35 | H104: 0.35 | I104: 0.35 | J104: 0.35 | K104: 0.35 | L104: 0.35 | M104: 0.35 | N104: 0.35 | O104: 0.35 | P104: 0.35 | Q104: =B11*0.1 -> 90 | R104: 0.35 | S104: 0.35 | T104: 0.35 | U104: 0.35 | V104: 0.35 | W104: 0.35 | X104: 0.35 | Y104: 0.35 | Z104: 0.35 | AA104: 0.35 | AB104: 0.35 | AC104: 0.35 | AD104: 98.05
E105: Pračka Gorenje | F105: 0.5 | G105: 0.5 | H105: 0.5 | I105: 0.5 | J105: 0.5 | K105: 0.5 | L105: 0.5 | M105: 0.5 | N105: 0.5 | O105: 0.5 | P105: 815 | Q105: 0.5 | R105: 0.5 | S105: 0.5 | T105: 0.5 | U105: 0.5 | V105: 0.5 | W105: 0.5 | X105: 0.5 | Y105: 0.5 | Z105: 0.5 | AA105: 0.5 | AB105: 0.5 | AC105: 0.5 | AD105: 826.5
E106: Sušička Gorenje | F106: 0.5 | G106: 0.5 | H106: 0.5 | I106: 0.5 | J106: 0.5 | K106: 0.5 | L106: 0.5 | M106: 0.5 | N106: 0.5 | O106: 0.5 | P106: 0.5 | Q106: 1000 | R106: 0.5 | S106: 0.5 | T106: 0.5 | U106: 0.5 | V106: 0.5 | W106: 0.5 | X106: 0.5 | Y106: 0.5 | Z106: 0.5 | AA106: 0.5 | AB106: 0.5 | AC106: 0.5 | AD106: 1011.5
E107: celkem [kWh] | F107: =SUM(F96:F106)/1000 -> 0.10625 | G107: 0.09125 | H107: 0.06125 | I107: 0.06125 | J107: 0.06125 | K107: 0.09125 | L107: 0.23355 | M107: 0.20355 | N107: 0.14055 | O107: 0.14055 | P107: 0.87575 | Q107: 1.1504 | R107: 0.14055 | S107: 0.14055 | T107: 0.14055 | U107: 0.06125 | V107: 0.06125 | W107: 0.06125 | X107: 0.85205 | Y107: 0.88935 | Z107: 0.51795 | AA107: 0.29785 | AB107: 0.20055 | AC107: 0.10625
AA108: denni celkem | AD108: =SUM(AD96:AD106)/1000 -> 6.68625 | AE108: kWh
E109: letní víkendový den
E111: hodiny | F111: 1 | G111: 2 | H111: 3 | I111: 4 | J111: 5 | K111: 6 | L111: 7 | M111: 8 | N111: 9 | O111: 10 | P111: 11 | Q111: 12 | R111: 13 | S111: 14 | T111: 15 | U111: 16 | V111: 17 | W111: 18 | X111: 19 | Y111: 20 | Z111: 21 | AA111: 22 | AB111: 23 | AC111: 24 | AD111: celkem
E112: Stolní počítač HP | F112: 2.9 | G112: 2.9 | H112: 2.9 | I112: 2.9 | J112: 2.9 | K112: 2.9 | L112: 2.9 | M112: 2.9 | N112: 2.9 | O112: 2.9 | P112: 250 | Q112: 250 | R112: 2.9 | S112: 2.9 | T112: 250 | U112: 250 | V112: 250 | W112: 250 | X112: 2.9 | Y112: 2.9 | Z112: 2.9 | AA112: 2.9 | AB112: 2.9 | AC112: 2.9 | AD112: =SUM(F112:AC112) -> 1552.2
E113: Televize Samsung | F113: 0.7 | G113: 0.7 | H113: 0.7 | I113: 0.7 | J113: 0.7 | K113: 0.7 | L113: 0.7 | M113: 0.7 | N113: 80 | O113: 80 | P113: 80 | Q113: 0.7 | R113: 80 | S113: 80 | T113: 80 | U113: 0.7 | V113: 0.7 | W113: 0.7 | X113: 80 | Y113: 80 | Z113: 80 | AA113: 80 | AB113: 80 | AC113: 80 | AD113: 968.4
E114: Lednička Lg | F114: 20 | G114: 20 | H114: 20 | I114: 20 | J114: 20 | K114: 20 | L114: 20 | M114: 20 | N114: 20 | O114: 20 | P114: 20 | Q114: 20 | R114: 20 | S114: 20 | T114: 20 | U114: 20 | V114: 20 | W114: 20 | X114: 20 | Y114: 20 | Z114: 20 | AA114: 20 | AB114: 20 | AC114: 20 | AD114: =SUM(F114:AC114) -> 480
E115: Mrazák Zanussi | F115: 35 | G115: 35 | H115: 35 | I115: 35 | J115: 35 | K115: 35 | L115: 35 | M115: 35 | N115: 35 | O115: 35 | P115: 35 | Q115: 35 | R115: 35 | S115: 35 | T115: 35 | U115: 35 | V115: 35 | W115: 35 | X115: 35 | Y115: 35 | Z115: 35 | AA115: 35 | AB115: 35 | AC115: 35 | AD115: 840
E116: Myčka Bosh Silencplus | F116: 0.6 | G116: 0.6 | H116: 0.6 | I116: 0.6 | J116: 0.6 | K116: 0.6 | L116: 0.6 | M116: 0.6 | N116: 0.6 | O116: 0.6 | P116: 0.6 | Q116: 0.6 | R116: 465 | S116: 465 | T116: 0.6 | U116: 0.6 | V116: 0.6 | W116: 0.6 | X116: 465 | Y116: 465 | Z116: 0.6 | AA116: 0.6 | AB116: 0.6 | AC116: 0.6 | AD116: 1872
E117: Televize Sencor | F117: 0.7 | G117: 0.7 | H117: 0.7 | I117: 0.7 | J117: 0.7 | K117: 0.7 | L117: 0.7 | M117: 0.7 | N117: 0.7 | O117: 0.7 | P117: 0.7 | Q117: 0.7 | R117: 0.7 | S117: 0.7 | T117: 0.7 | U117: 0.7 | V117: 0.7 | W117: 0.7 | X117: 0.7 | Y117: 38 | Z117: 38 | AA117: 38 | AB117: 38 | AC117: 38 | AD117: 203.3
E118: Led žárovka | F118: 90 | G118: 60 | H118: 0 | I118: 0 | J118: 0 | K118: 0 | L118: 0 | M118: 0 | N118: 0 | O118: 0 | P118: 0 | Q118: 0 | R118: 0 | S118: 0 | T118: 0 | U118: 0 | V118: 0 | W118: 0 | X118: 0 | Y118: 0 | Z118: 60 | AA118: 120 | AB118: 60 | AC118: 45 | AD118: 435
E119: Varná konvice Sencor | F119: 0 | G119: 0 | H119: 0 | I119: 0 | J119: 0 | K119: 0 | L119: 0 | M119: 0 | N119: 33 | O119: 0 | P119: 0 | Q119: 0 | R119: 33 | S119: 0 | T119: 0 | U119: 0 | V119: 0 | W119: 0 | X119: 0 | Y119: 0 | Z119: 33 | AA119: 0 | AB119: 0 | AC119: 0 | AD119: 99
E120: Microvlná trouba Whirlpool | F120: 0.35 | G120: 0.35 | H120: 0.35 | I120: 0.35 | J120: 0.35 | K120: 0.35 | L120: 0.35 | M120: 0.35 | N120: 0.35 | O120: 0.35 | P120: 0.35 | Q120: 0.35 | R120: 0.35 | S120: 0.35 | T120: 0.35 | U120: 0.35 | V120: 0.35 | W120: 0.35 | X120: 0.35 | Y120: 0.35 | Z120: 0.35 | AA120: 0.35 | AB120: 0.35 | AC120: 0.35 | AD120: 8.4
E121: Pračka Gorenje | F121: 0.5 | G121: 0.5 | H121: 0.5 | I121: 0.5 | J121: 0.5 | K121: 0.5 | L121: 0.5 | M121: 0.5 | N121: 0.5 | O121: 0.5 | P121: 0.5 | Q121: 0.5 | R121: 0.5 | S121: 0.5 | T121: 0.5 | U121: 0.5 | V121: 0.5 | W121: 0.5 | X121: 0.5 | Y121: 0.5 | Z121: 0.5 | AA121: 0.5 | AB121: 0.5 | AC121: 0.5 | AD121: 12
E122: Sušička Gorenje | F122: 0.5 | G122: 0.5 | H122: 0.5 | I122: 0.5 | J122: 0.5 | K122: 0.5 | L122: 0.5 | M122: 0.5 | N122: 0.5 | O122: 0.5 | P122: 0.5 | Q122: 0.5 | R122: 0.5 | S122: 0.5 | T122: 0.5 | U122: 0.5 | V122: 0.5 | W122: 0.5 | X122: 0.5 | Y122: 0.5 | Z122: 0.5 | AA122: 0.5 | AB122: 0.5 | AC122: 0.5 | AD122: 12
E123: celkem [kWh] | F123: =SUM(F112:F122)/1000 -> 0.15125 | G123: 0.12125 | H123: 0.06125 | I123: 0.06125 | J123: 0.06125 | K123: 0.06125 | L123: 0.06125 | M123: 0.06125 | N123: 0.17355 | O123: 0.14055 | P123: 0.38765 | Q123: 0.30835 | R123: 0.63795 | S123: 0.60495 | T123: 0.38765 | U123: 0.30835 | V123: 0.30835 | W123: 0.30835 | X123: 0.60495 | Y123: 0.64225 | Z123: 0.27085 | AA123: 0.29785 | AB123: 0.23785 | AC123: 0.22285
AA124: denni celkem | AD124: =SUM(AD112:AD122)/1000 -> 6.4823 | AE124: kWh
E131: podzimní pracovní den
E133: hodiny | F133: 1 | G133: 2 | H133: 3 | I133: 4 | J133: 5 | K133: 6 | L133: 7 | M133: 8 | N133: 9 | O133: 10 | P133: 11 | Q133: 12 | R133: 13 | S133: 14 | T133: 15 | U133: 16 | V133: 17 | W133: 18 | X133: 19 | Y133: 20 | Z133: 21 | AA133: 22 | AB133: 23 | AC133: 24 | AD133: celkem
E134: Stolní počítač HP | F134: 2.9 | G134: 2.9 | H134: 2.9 | I134: 2.9 | J134: 2.9 | K134: 2.9 | L134: 2.9 | M134: 2.9 | N134: 2.9 | O134: 2.9 | P134: 2.9 | Q134: 2.9 | R134: 2.9 | S134: 2.9 | T134: 2.9 | U134: 2.9 | V134: 2.9 | W134: 2.9 | X134: 250 | Y134: 250 | Z134: 250 | AA134: 2.9 | AB134: 2.9 | AC134: 2.9 | AD134: =SUM(F134:AC134) -> 810.9
E135: Televize Samsung | F135: 0.7 | G135: 0.7 | H135: 0.7 | I135: 0.7 | J135: 0.7 | K135: 0.7 | L135: 80 | M135: 80 | N135: 80 | O135: 80 | P135: 0.7 | Q135: 0.7 | R135: 80 | S135: 80 | T135: 80 | U135: 0.7 | V135: 0.7 | W135: 0.7 | X135: 80 | Y135: 80 | Z135: 80 | AA135: 80 | AB135: 80 | AC135: 0.7 | AD135: 968.4
E136: Lednička Lg | F136: 20 | G136: 20 | H136: 20 | I136: 20 | J136: 20 | K136: 20 | L136: 20 | M136: 20 | N136: 20 | O136: 20 | P136: 20 | Q136: 20 | R136: 20 | S136: 20 | T136: 20 | U136: 20 | V136: 20 | W136: 20 | X136: 20 | Y136: 20 | Z136: 20 | AA136: 20 | AB136: 20 | AC136: 20 | AD136: =SUM(F136:AC136) -> 480
E137: Mrazák Zanussi | F137: 35 | G137: 35 | H137: 35 | I137: 35 | J137: 35 | K137: 35 | L137: 35 | M137: 35 | N137: 35 | O137: 35 | P137: 35 | Q137: 35 | R137: 35 | S137: 35 | T137: 35 | U137: 35 | V137: 35 | W137: 35 | X137: 35 | Y137: 35 | Z137: 35 | AA137: 35 | AB137: 35 | AC137: 35 | AD137: 840
E138: Myčka Bosh Silencplus | F138: 0.6 | G138: 0.6 | H138: 0.6 | I138: 0.6 | J138: 0.6 | K138: 0.6 | L138: 0.6 | M138: 0.6 | N138: 0.6 | O138: 0.6 | P138: 0.6 | Q138: 0.6 | R138: 0.6 | S138: 0.6 | T138: 0.6 | U138: 0.6 | V138: 0.6 | W138: 0.6 | X138: 465 | Y138: 465 | Z138: 0.6 | AA138: 0.6 | AB138: 0.6 | AC138: 0.6 | AD138: 943.2
E139: Televize Sencor | F139: 0.7 | G139: 0.7 | H139: 0.7 | I139: 0.7 | J139: 0.7 | K139: 0.7 | L139: 0.7 | M139: 0.7 | N139: 0.7 | O139: 0.7 | P139: 0.7 | Q139: 0.7 | R139: 0.7 | S139: 0.7 | T139: 0.7 | U139: 0.7 | V139: 0.7 | W139: 0.7 | X139: 0.7 | Y139: 38 | Z139: 38 | AA139: 38 | AB139: 0.7 | AC139: 0.7 | AD139: 128.7
E140: Led žárovka | F140: 45 | G140: 30 | H140: 0 | I140: 0 | J140: 0 | K140: 45 | L140: 90 | M140: 60 | N140: 30 | O140: 0 | P140: 0 | Q140: 0 | R140: 0 | S140: 0 | T140: 0 | U140: 0 | V140: 30 | W140: 90 | X140: 150 | Y140: 150 | Z140: 120 | AA140: 90 | AB140: 60 | AC140: 45 | AD140: 1035
E141: Varná konvice Sencor | F141: 0 | G141: 0 | H141: 0 | I141: 0 | J141: 0 | K141: 0 | L141: 33 | M141: 0 | N141: 0 | O141: 0 | P141: 0 | Q141: 0 | R141: 0 | S141: 33 | T141: 0 | U141: 0 | V141: 0 | W141: 0 | X141: 0 | Y141: 0 | Z141: 33 | AA141: 0 | AB141: 0 | AC141: 0 | AD141: 99
E142: Microvlná trouba Whirlpool | F142: 0.35 | G142: 0.35 | H142: 0.35 | I142: 0.35 | J142: 0.35 | K142: 0.35 | L142: 0.35 | M142: 0.35 | N142: 0.35 | O142: 0.35 | P142: 0.35 | Q142: 0.35 | R142: 0.35 | S142: 0.35 | T142: 0.35 | U142: 0.35 | V142: 0.35 | W142: 0.35 | X142: 0.35 | Y142: 0.35 | Z142: 0.35 | AA142: 0.35 | AB142: 0.35 | AC142: 0.35 | AD142: 8.4
E143: Pračka Gorenje | F143: 0.5 | G143: 0.5 | H143: 0.5 | I143: 0.5 | J143: 0.5 | K143: 0.5 | L143: 0.5 | M143: 0.5 | N143: 0.5 | O143: 0.5 | P143: 815 | Q143: 0.5 | R143: 0.5 | S143: 0.5 | T143: 0.5 | U143: 0.5 | V143: 0.5 | W143: 0.5 | X143: 0.5 | Y143: 0.5 | Z143: 0.5 | AA143: 0.5 | AB143: 0.5 | AC143: 0.5 | AD143: 826.5
E144: Sušička Gorenje | F144: 0.5 | G144: 0.5 | H144: 0.5 | I144: 0.5 | J144: 0.5 | K144: 0.5 | L144: 0.5 | M144: 0.5 | N144: 0.5 | O144: 0.5 | P144: 0.5 | Q144: 1000 | R144: 0.5 | S144: 0.5 | T144: 0.5 | U144: 0.5 | V144: 0.5 | W144: 0.5 | X144: 0.5 | Y144: 0.5 | Z144: 0.5 | AA144: 0.5 | AB144: 0.5 | AC144: 0.5 | AD144: 1011.5
E145: celkem [kWh] | F145: =SUM(F134:F144)/1000 -> 0.10625 | G145: 0.09125 | H145: 0.06125 | I145: 0.06125 | J145: 0.06125 | K145: 0.10625 | L145: 0.26355 | M145: 0.20055 | N145: 0.17055 | O145: 0.14055 | P145: 0.87575 | Q145: 1.06075 | R145: 0.14055 | S145: 0.17355 | T145: 0.14055 | U145: 0.06125 | V145: 0.09125 | W145: 0.15125 | X145: 1.00205 | Y145: 1.03935 | Z145: 0.57795 | AA145: 0.26785 | AB145: 0.20055 | AC145: 0.10625
AA146: denni celkem | AD146: =SUM(AD134:AD144)/1000 -> 7.1516 | AE146: Wh
E147: podzimní víkendový den
E149: hodiny | F149: 1 | G149: 2 | H149: 3 | I149: 4 | J149: 5 | K149: 6 | L149: 7 | M149: 8 | N149: 9 | O149: 10 | P149: 11 | Q149: 12 | R149: 13 | S149: 14 | T149: 15 | U149: 16 | V149: 17 | W149: 18 | X149: 19 | Y149: 20 | Z149: 21 | AA149: 22 | AB149: 23 | AC149: 24 | AD149: celkem
E150: Stolní počítač HP | F150: 2.9 | G150: 2.9 | H150: 2.9 | I150: 2.9 | J150: 2.9 | K150: 2.9 | L150: 2.9 | M150: 2.9 | N150: 2.9 | O150: 2.9 | P150: 2.9 | Q150: 250 | R150: 2.9 | S150: 2.9 | T150: 250 | U150: 250 | V150: 250 | W150: 250 | X150: 2.9 | Y150: 2.9 | Z150: 2.9 | AA150: 2.9 | AB150: 2.9 | AC150: 2.9 | AD150: =SUM(F150:AC150) -> 1305.1
E151: Televize Samsung | F151: 0.7 | G151: 0.7 | H151: 0.7 | I151: 0.7 | J151: 0.7 | K151: 0.7 | L151: 0.7 | M151: 0.7 | N151: 0.7 | O151: 80 | P151: 80 | Q151: 80 | R151: 80 | S151: 80 | T151: 80 | U151: 0.7 | V151: 0.7 | W151: 0.7 | X151: 80 | Y151: 80 | Z151: 80 | AA151: 80 | AB151: 80 | AC151: 80 | AD151: 968.4
E152: Lednička Lg | F152: 20 | G152: 20 | H152: 20 | I152: 20 | J152: 20 | K152: 20 | L152: 20 | M152: 20 | N152: 20 | O152: 20 | P152: 20 | Q152: 20 | R152: 20 | S152: 20 | T152: 20 | U152: 20 | V152: 20 | W152: 20 | X152: 20 | Y152: 20 | Z152: 20 | AA152: 20 | AB152: 20 | AC152: 20 | AD152: =SUM(F152:AC152) -> 480
E153: Mrazák Zanussi | F153: 35 | G153: 35 | H153: 35 | I153: 35 | J153: 35 | K153: 35 | L153: 35 | M153: 35 | N153: 35 | O153: 35 | P153: 35 | Q153: 35 | R153: 35 | S153: 35 | T153: 35 | U153: 35 | V153: 35 | W153: 35 | X153: 35 | Y153: 35 | Z153: 35 | AA153: 35 | AB153: 35 | AC153: 35 | AD153: 840
E154: Myčka Bosh Silencplus | F154: 0.6 | G154: 0.6 | H154: 0.6 | I154: 0.6 | J154: 0.6 | K154: 0.6 | L154: 0.6 | M154: 0.6 | N154: 0.6 | O154: 0.6 | P154: 0.6 | Q154: 0.6 | R154: 465 | S154: 465 | T154: 0.6 | U154: 0.6 | V154: 0.6 | W154: 0.6 | X154: 465 | Y154: 465 | Z154: 0.6 | AA154: 0.6 | AB154: 0.6 | AC154: 0.6 | AD154: 1872
E155: Televize Sencor | F155: 0.7 | G155: 0.7 | H155: 0.7 | I155: 0.7 | J155: 0.7 | K155: 0.7 | L155: 0.7 | M155: 0.7 | N155: 0.7 | O155: 0.7 | P155: 0.7 | Q155: 0.7 | R155: 0.7 | S155: 0.7 | T155: 0.7 | U155: 0.7 | V155: 0.7 | W155: 0.7 | X155: 0.7 | Y155: 38 | Z155: 38 | AA155: 38 | AB155: 38 | AC155: 38 | AD155: 203.3
E156: Led žárovka | F156: 90 | G156: 60 | H156: 0 | I156: 0 | J156: 0 | K156: 0 | L156: 0 | M156: 0 | N156: 60 | O156: 30 | P156: 0 | Q156: 0 | R156: 0 | S156: 0 | T156: 0 | U156: 0 | V156: 60 | W156: 90 | X156: 120 | Y156: 150 | Z156: 120 | AA156: 90 | AB156: 60 | AC156: 45 | AD156: 975
E157: Varná konvice Sencor | F157: 0 | G157: 0 | H157: 0 | I157: 0 | J157: 0 | K157: 0 | L157: 0 | M157: 0 | N157: 33 | O157: 0 | P157: 0 | Q157: 0 | R157: 0 | S157: 33 | T157: 0 | U157: 0 | V157: 0 | W157: 0 | X157: 0 | Y157: 0 | Z157: 33 | AA157: 0 | AB157: 0 | AC157: 0 | AD157: 99
E158: Microvlná trouba Whirlpool | F158: 0.35 | G158: 0.35 | H158: 0.35 | I158: 0.35 | J158: 0.35 | K158: 0.35 | L158: 0.35 | M158: 0.35 | N158: 54.3 | O158: 0.35 | P158: 0.35 | Q158: 0.35 | R158: 0.35 | S158: 0.35 | T158: 0.35 | U158: 0.35 | V158: 0.35 | W158: 0.35 | X158: 0.35 | Y158: 0.35 | Z158: 0.35 | AA158: 0.35 | AB158: 0.35 | AC158: 0.35 | AD158: 62.35
E159: Pračka Gorenje | F159: 0.5 | G159: 0.5 | H159: 0.5 | I159: 0.5 | J159: 0.5 | K159: 0.5 | L159: 0.5 | M159: 0.5 | N159: 0.5 | O159: 0.5 | P159: 0.5 | Q159: 0.5 | R159: 0.5 | S159: 0.5 | T159: 0.5 | U159: 0.5 | V159: 0.5 | W159: 0.5 | X159: 0.5 | Y159: 0.5 | Z159: 0.5 | AA159: 0.5 | AB159: 0.5 | AC159: 0.5 | AD159: 12
E160: Sušička Gorenje | F160: 0.5 | G160: 0.5 | H160: 0.5 | I160: 0.5 | J160: 0.5 | K160: 0.5 | L160: 0.5 | M160: 0.5 | N160: 0.5 | O160: 0.5 | P160: 0.5 | Q160: 0.5 | R160: 0.5 | S160: 0.5 | T160: 0.5 | U160: 0.5 | V160: 0.5 | W160: 0.5 | X160: 0.5 | Y160: 0.5 | Z160: 0.5 | AA160: 0.5 | AB160: 0.5 | AC160: 0.5 | AD160: 12
E161: celkem [kWh] | F161: =SUM(F150:F160)/1000 -> 0.15125 | G161: =SUM(G150:G160)/1000 -> 0.12125 | H161: 0.06125 | I161: 0.06125 | J161: 0.06125 | K161: 0.06125 | L161: 0.06125 | M161: 0.06125 | N161: 0.2082 | O161: 0.17055 | P161: 0.14055 | Q161: 0.38765 | R161: 0.60495 | S161: 0.63795 | T161: 0.38765 | U161: 0.30835 | V161: 0.36835 | W161: 0.39835 | X161: 0.72495 | Y161: 0.79225 | Z161: 0.33085 | AA161: 0.26785 | AB161: 0.23785 | AC161: 0.22285
AA162: denni celkem | AD162: =SUM(AD150:AD160)/1000 -> 6.82915 | AE162: kWh

Sheet Výroba
A3: Zeměpisná šířka: | B3: 50°7'52" N, | E3: G: Celkové množství dopadajícího záření (W/m2)
A4: Zeměpisná délka: | B4: 14°24'19" E
A5: Natočení panelů | B5: 33 | C5: stupňů | D5: Azimuth | E5: 10 | F5: stupňů
B7: Leden | G7: Únor | L7: Březen | Q7: Duben | V7: Květen | AA7: Červen | AF7: Červenec | AK7: Srpen | AP7: Září | AU7: Říjen | AZ7: Listopad | BE7: Prosinec
B8: Time | C8: G | G8: Time | H8: G | L8: Time | M8: G | Q8: Time | R8: G | V8: Time | W8: G | AA8: Time | AB8: G | AF8: Time | AG8: G | AK8: Time | AL8: G | AP8: Time | AQ8: G | AU8: Time | AV8: G | AZ8: Time | BA8: G | BE8: Time | BF8: G
B9: 08:07:00 | C9: 25 | D9: =SUM(C9:C12) -> 139 | E9: =D9/$D$42 -> 0.03373786408 | G9: 07:22:00 | H9: 29 | I9: =SUM(H9:H11) -> 116 | J9: =I9/$I$48 -> 0.01555793991 | L9: 06:37:00 | M9: 41 | N9: =SUM(M9:M10) -> 96 | O9: =N9/$N$54 -> 0.006941933618 | Q9: 05:37:00 | R9: 40 | S9: =SUM(R9:R10) -> 94 | T9: =S9/S62 -> 0.004706589225 | V9: 04:52:00 | W9: 42 | X9: =W9 -> 42 | Y9: =X9/X68 -> 0.002036363636 | AA9: 04:22:00 | AB9: 35 | AC9: =SUM(AB9:AB11) -> 145 | AD9: =AC9/$AC$72 -> 0.006719495806 | AF9: 04:37:00 | AG9: 39 | AH9: =SUM(AG9:AG10) -> 91 | AI9: =AH9/AH70 -> 0.00431545502 | AK9: 05:07:00 | AL9: 24 | AM9: =SUM(AL9:AL12) -> 174 | AN9: =AM9/$AM$66 -> 0.008817269687 | AP9: 06:07:00 | AQ9: 31 | AR9: =SUM(AQ9:AQ12) -> 205 | AS9: =AR9/$AR$58 -> 0.01337160003 | AU9: 07:07:00 | AV9: 34 | AW9: =SUM(AV9:AV12) -> 200 | AX9: =AW9/$AW$50 -> 0.0204248366 | AZ9: 07:52:00 | BA9: 26 | BB9: =BA9 -> 26 | BC9: =BB9/BB44 -> 0.005368573198 | BE9: 08:22:00 | BF9: 24 | BG9: =SUM(BF9:BF11) -> 89 | BH9: =BG9/BG40 -> 0.0256706086
B10: 08:22:00 | C10: 32 | G10: 07:37:00 | H10: 39 | L10: 06:52:00 | M10: 55 | Q10: 05:52:00 | R10: 54 | V10: 05:07:00 | W10: 55 | X10: =SUM(W10:W13) -> 300 | Y10: =X10/$X$68 -> 0.01454545455 | AA10: 04:37:00 | AB10: 48 | AF10: 04:52:00 | AG10: 52 | AK10: 05:22:00 | AL10: 37 | AP10: 06:22:00 | AQ10: 45 | AU10: 07:22:00 | AV10: 45 | AZ10: 08:07:00 | BA10: 33 | BB10: =SUM(BA10:BA13) -> 171 | BC10: =BB10/$BB$44 -> 0.03530869296 | BE10: 08:37:00 | BF10: 30
B11: 08:37:00 | C11: 38 | G11: 07:52:00 | H11: 48 | L11: 07:07:00 | M11: 67 | N11: =SUM(M11:M14) -> 336 | O11: =N11/$N$54 -> 0.02429676766 | Q11: 06:07:00 | R11: 67 | S11: =SUM(R11:R14) -> 410 | T11: =S11/$S$62 -> 0.02052874024 | V11: 05:22:00 | W11: 69 | AA11: 04:52:00 | AB11: 62 | AF11: 05:07:00 | AG11: 65 | AH11: =+SUM(AG11:AG14) -> 335 | AI11: =AH11/$AH$70 -> 0.01588656518 | AK11: 05:37:00 | AL11: 50 | AP11: 06:37:00 | AQ11: 58 | AU11: 07:37:00 | AV11: 56 | AZ11: 08:22:00 | BA11: 40 | BE11: 08:52:00 | BF11: 35
B12: 08:52:00 | C12: 44 | G12: 08:07:00 | H12: 57 | I12: =SUM(H12:H15) -> 271 | J12: =I12/$I$48 -> 0.03634656652 | L12: 07:22:00 | M12: 79 | Q12: 06:22:00 | R12: 80 | V12: 05:37:00 | W12: 82 | AA12: 05:07:00 | AB12: 75 | AC12: =SUM(AB12:AB15) -> 372 | AD12: =AC12/$AC$72 -> 0.01723898234 | AF12: 05:22:00 | AG12: 78 | AK12: 05:52:00 | AL12: 63 | AP12: 06:52:00 | AQ12: 71 | AU12: 07:52:00 | AV12: 65 | AZ12: 08:37:00 | BA12: 46 | BE12: 09:07:00 | BF12: 40 | BG12: =SUM(BF12:BF15) -> 183 | BH12: =BG12/$BG$40 -> 0.05278338621
B13: 09:07:00 | C13: 49 | D13: =SUM(C13:C16) -> 301 | E13: =D13/$D$42 -> 0.07305825243 | G13: 08:22:00 | H13: 64 | L13: 07:37:00 | M13: 90 | Q13: 06:37:00 | R13: 116 | V13: 05:52:00 | W13: 94 | AA13: 05:22:00 | AB13: 87 | AF13: 05:37:00 | AG13: 90 | AK13: 06:07:00 | AL13: 74 | AM13: =SUM(AL13:AL16) -> 409 | AN13: =AM13/$AM$66 -> 0.02072565116 | AP13: 07:07:00 | AQ13: 82 | AR13: 485 | AS13: =AR13/$AR$58 -> 0.03163524884 | AU13: 08:07:00 | AV13: 74 | AW13: =SUM(AV13:AV16) -> 344 | AX13: =AW13/$AW$50 -> 0.03513071895 | AZ13: 08:52:00 | BA13: 52 | BE13: 09:22:00 | BF13: 44
B14: 09:22:00 | C14: 54 | G14: 08:37:00 | H14: 72 | L14: 07:52:00 | M14: 100 | Q14: 06:52:00 | R14: 147 | V14: 06:07:00 | W14: 106 | X14: =SUM(W14:W17) -> 574 | Y14: =X14/$X$68 -> 0.02783030303 | AA14: 05:37:00 | AB14: 99 | AF14: 05:52:00 | AG14: 102 | AK14: 06:22:00 | AL14: 86 | AP14: 07:22:00 | AQ14: 93 | AU14: 08:22:00 | AV14: 83 | AZ14: 09:07:00 | BA14: 57 | BB14: =SUM(BA14:BA17) -> 344 | BC14: =BB14/$BB$44 -> 0.07103035309 | BE14: 09:37:00 | BF14: 48
B15: 09:37:00 | C15: 58 | G15: 08:52:00 | H15: 78 | L15: 08:07:00 | M15: 109 | N15: =SUM(M15:M18) -> 912 | O15: =N15/$N$54 -> 0.06594836937 | Q15: 07:07:00 | R15: 179 | S15: =SUM(R15:R18) -> 918 | T15: 0.04596435009 | V15: 06:22:00 | W15: 116 | AA15: 05:52:00 | AB15: 111 | AF15: 06:07:00 | AG15: 113 | AH15: =+SUM(AG15:AG18) -> 627 | AI15: =AH15/$AH$70 -> 0.02973395931 | AK15: 06:37:00 | AL15: 96 | AP15: 07:37:00 | AQ15: 103 | AU15: 08:37:00 | AV15: 90 | AZ15: 09:22:00 | BA15: 61 | BE15: 09:52:00 | BF15: 51
B16: 09:52:00 | C16: 140 | G16: 09:07:00 | H16: 84 | I16: =SUM(H16:H19) -> 630 | J16: =I16/$I$48 -> 0.08449570815 | L16: 08:22:00 | M16: 240 | Q16: 07:22:00 | R16: 213 | V16: 06:37:00 | W16: 162 | AA16: 06:07:00 | AB16: 122 | AC16: =SUM(AB16:AB19) -> 666 | AD16: =AC16/$AC$72 -> 0.03086333936 | AF16: 06:22:00 | AG16: 144 | AK16: 06:52:00 | AL16: 153 | AP16: 07:52:00 | AQ16: 207 | AU16: 08:52:00 | AV16: 97 | AZ16: 09:37:00 | BA16: 65 | BE16: 10:07:00 | BF16: 131 | BG16: =SUM(BF16:BF19) -> 571 | BH16: =BG16/$BG$40 -> 0.1646957023
B17: 10:07:00 | C17: 150 | D17: =SUM(C17:C20) -> 647 | E17: =D17/$D$42 -> 0.157038835 | G17: 09:22:00 | H17: 89 | L17: 08:37:00 | M17: 268 | Q17: 07:37:00 | R17: 246 | V17: 06:52:00 | W17: 190 | AA17: 06:22:00 | AB17: 154 | AF17: 06:37:00 | AG17: 171 | AK17: 07:07:00 | AL17: 184 | AM17: =SUM(AL17:AL20) -> 923 | AN17: =AM17/$AM$66 -> 0.04677206851 | AP17: 08:07:00 | AQ17: 237 | AR17: 1118 | AS17: =AR17/$AR$58 -> 0.07292414063 | AU17: 09:07:00 | AV17: 236 | AW17: =SUM(AV17:AV20) -> 1065 | AX17: =AW17/$AW$50 -> 0.1087622549 | AZ17: 09:52:00 | BA17: 161 | BE17: 10:22:00 | BF17: 140
B18: 10:22:00 | C18: 158 | G18: 09:37:00 | H18: 221 | L18: 08:52:00 | M18: 295 | Q18: 07:52:00 | R18: 280 | V18: 07:07:00 | W18: 219 | X18: =SUM(W18:W21) -> 1050 | Y18: =X18/$X$68 -> 0.05090909091 | AA18: 06:37:00 | AB18: 181 | AF18: 06:52:00 | AG18: 199 | AK18: 07:22:00 | AL18: 215 | AP18: 08:22:00 | AQ18: 266 | AU18: 09:22:00 | AV18: 257 | AZ18: 10:07:00 | BA18: 172 | BB18: =SUM(BA18:BA21) -> 738 | BC18: =BB18/$BB$44 -> 0.1523848854 | BE18: 10:37:00 | BF18: 147
B19: 10:37:00 | C19: 166 | G19: 09:52:00 | H19: 236 | L19: 09:07:00 | M19: 321 | N19: =SUM(M19:M22) -> 1423 | O19: =N19/$N$54 -> 0.1028997035 | Q19: 08:07:00 | R19: 313 | S19: =SUM(R19:R22) -> 1442 | T19: 0.07220108151 | V19: 07:22:00 | W19: 248 | AA19: 06:52:00 | AB19: 209 | AF19: 07:07:00 | AG19: 228 | AH19: =+SUM(AG19:AG22) -> 1082 | AI19: =AH19/$AH$70 -> 0.05131123441 | AK19: 07:37:00 | AL19: 246 | AP19: 08:37:00 | AQ19: 294 | AU19: 09:37:00 | AV19: 277 | AZ19: 10:22:00 | BA19: 181 | BE19: 10:52:00 | BF19: 153
B20: 10:52:00 | C20: 173 | G20: 10:07:00 | H20: 250 | I20: =SUM(H20:H23) -> 1067 | J20: 0.1431062232 | L20: 09:22:00 | M20: 345 | Q20: 08:22:00 | R20: 345 | V20: 07:37:00 | W20: 277 | AA20: 07:07:00 | AB20: 237 | AC20: =SUM(AB20:AB23) -> 1116 | AD20: =AC20/$AC$72 -> 0.05171694703 | AF20: 07:22:00 | AG20: 256 | AK20: 07:52:00 | AL20: 278 | AP20: 08:52:00 | AQ20: 321 | AU20: 09:52:00 | AV20: 295 | AZ20: 10:37:00 | BA20: 189 | BE20: 11:07:00 | BF20: 158 | BG20: =SUM(BF20:BF23) -> 652 | BH20: =BG20/$BG$40 -> 0.1880588405
B21: 11:07:00 | C21: 178 | D21: =SUM(C21:C24) -> 735 | E21: =D21/$D$42 -> 0.1783980583 | G21: 10:22:00 | H21: 262 | L21: 09:37:00 | M21: 368 | Q21: 08:37:00 | R21: 377 | V21: 07:52:00 | W21: 306 | AA21: 07:22:00 | AB21: 265 | AF21: 07:37:00 | AG21: 285 | AK21: 08:07:00 | AL21: 309 | AM21: =SUM(AL21:AL24) -> 1417 | AN21: =AM21/$AM$66 -> 0.07180500659 | AP21: 09:07:00 | AQ21: 347 | AR21: 1527 | AS21: =AR21/$AR$58 -> 0.09960211337 | AU21: 10:07:00 | AV21: 312 | AW21: =SUM(AV21:AV24) -> 1330 | AX21: =AW21/$AW$50 -> 0.1358251634 | AZ21: 10:52:00 | BA21: 196 | BE21: 11:22:00 | BF21: 162
B22: 11:22:00 | C22: 183 | G22: 10:37:00 | H22: 273 | L22: 09:52:00 | M22: 389 | Q22: 08:52:00 | R22: 407 | V22: 08:07:00 | W22: 334 | X22: =SUM(W22:W25) -> 1494 | Y22: =X22/$X$68 -> 0.07243636364 | AA22: 07:37:00 | AB22: 293 | AF22: 07:52:00 | AG22: 313 | AK22: 08:22:00 | AL22: 340 | AP22: 09:22:00 | AQ22: 371 | AU22: 10:22:00 | AV22: 327 | AZ22: 11:07:00 | BA22: 202 | BB22: =SUM(BA22:BA25) -> 831 | BC22: =BB22/$BB$44 -> 0.1715878588 | BE22: 11:37:00 | BF22: 165
B23: 11:37:00 | C23: 186 | G23: 10:52:00 | H23: 282 | L23: 10:07:00 | M23: 408 | N23: =SUM(M23:M26) -> 1727 | O23: =N23/$N$54 -> 0.1248824933 | Q23: 09:07:00 | R23: 435 | S23: =SUM(R23:R26) -> 1895 | T23: 0.09488283597 | V23: 08:22:00 | W23: 361 | AA23: 07:52:00 | AB23: 321 | AF23: 08:07:00 | AG23: 340 | AH23: =+SUM(AG23:AG26) -> 1517 | AI23: =AH23/$AH$70 -> 0.07194005786 | AK23: 08:37:00 | AL23: 370 | AP23: 09:37:00 | AQ23: 394 | AU23: 10:37:00 | AV23: 340 | AZ23: 11:22:00 | BA23: 207 | BE23: 11:52:00 | BF23: 167
B24: 11:52:00 | C24: 188 | G24: 11:07:00 | H24: 290 | I24: =SUM(H24:H27) -> 1190 | J24: 0.1596030043 | L24: 10:22:00 | M24: 425 | Q24: 09:22:00 | R24: 462 | V24: 08:37:00 | W24: 387 | AA24: 08:07:00 | AB24: 348 | AC24: =SUM(AB24:AB27) -> 1546 | AD24: =AC24/$AC$72 -> 0.0716437277 | AF24: 08:22:00 | AG24: 367 | AK24: 08:52:00 | AL24: 398 | AP24: 09:52:00 | AQ24: 415 | AU24: 10:52:00 | AV24: 351 | AZ24: 11:37:00 | BA24: 210 | BE24: 12:07:00 | BF24: 167 | BG24: =SUM(BF24:BF27) -> 663 | BH24: =BG24/$BG$40 -> 0.1912316123
B25: 12:07:00 | C25: 189 | D25: =SUM(C25:C28) -> 748 | E25: =D25/$D$42 -> 0.1815533981 | G25: 11:22:00 | H25: 296 | L25: 10:37:00 | M25: 440 | Q25: 09:37:00 | R25: 487 | V25: 08:52:00 | W25: 412 | AA25: 08:22:00 | AB25: 374 | AF25: 08:37:00 | AG25: 393 | AK25: 09:07:00 | AL25: 426 | AM25: =SUM(AL25:AL28) -> 1851 | AN25: =AM25/$AM$66 -> 0.09379750684 | AP25: 10:07:00 | AQ25: 434 | AR25: 1833 | AS25: =AR25/$AR$58 -> 0.1195616724 | AU25: 11:07:00 | AV25: 361 | AW25: =SUM(AV25:AV28) -> 1481 | AX25: =AW25/$AW$50 -> 0.151245915 | AZ25: 11:52:00 | BA25: 212 | BE25: 12:22:00 | BF25: 167
B26: 12:22:00 | C26: 188 | G26: 11:37:00 | H26: 300 | L26: 10:52:00 | M26: 454 | Q26: 09:52:00 | R26: 511 | V26: 09:07:00 | W26: 435 | X26: =SUM(W26:W29) -> 1867 | Y26: =X26/$X$68 -> 0.09052121212 | AA26: 08:37:00 | AB26: 400 | AF26: 08:52:00 | AG26: 417 | AK26: 09:22:00 | AL26: 451 | AP26: 10:22:00 | AQ26: 452 | AU26: 11:22:00 | AV26: 368 | AZ26: 12:07:00 | BA26: 213 | BB26: =SUM(BA26:BA29) -> 846 | BC26: =BB26/$BB$44 -> 0.1746851125 | BE26: 12:37:00 | BF26: 166
B27: 12:37:00 | C27: 187 | G27: 11:52:00 | H27: 304 | L27: 11:07:00 | M27: 465 | N27: =SUM(M27:M30) -> 1903 | O27: =N27/$N$54 -> 0.1376093716 | Q27: 10:07:00 | R27: 532 | S27: =SUM(R27:R30) -> 2234 | T27: 0.1118565992 | V27: 09:22:00 | W27: 457 | AA27: 08:52:00 | AB27: 424 | AF27: 09:07:00 | AG27: 440 | AH27: =+SUM(AG27:AG30) -> 1885 | AI27: =AH27/$AH$70 -> 0.08939156826 | AK27: 09:37:00 | AL27: 476 | AP27: 10:37:00 | AQ27: 467 | AU27: 11:37:00 | AV27: 374 | AZ27: 12:22:00 | BA27: 213 | BE27: 12:52:00 | BF27: 163
B28: 12:52:00 | C28: 184 | G28: 12:07:00 | H28: 305 | I28: =SUM(H28:H31) -> 1212 | J28: 0.1625536481 | L28: 11:22:00 | M28: 473 | Q28: 10:22:00 | R28: 551 | V28: 09:37:00 | W28: 478 | AA28: 09:07:00 | AB28: 446 | AC28: =SUM(AB28:AB31) -> 1908 | AD28: =AC28/$AC$72 -> 0.08841929654 | AF28: 09:22:00 | AG28: 462 | AK28: 09:52:00 | AL28: 498 | AP28: 10:52:00 | AQ28: 480 | AU28: 11:52:00 | AV28: 378 | AZ28: 12:37:00 | BA28: 211 | BE28: 13:07:00 | BF28: 160 | BG28: =SUM(BF28:BF31) -> 606 | BH28: =BG28/$BG$40 -> 0.1747908855
B29: 13:07:00 | C29: 180 | D29: =SUM(C29:C32) -> 684 | E29: =D29/$D$42 -> 0.1660194175 | G29: 12:22:00 | H29: 305 | L29: 11:37:00 | M29: 480 | Q29: 10:37:00 | R29: 568 | V29: 09:52:00 | W29: 497 | AA29: 09:22:00 | AB29: 468 | AF29: 09:37:00 | AG29: 482 | AK29: 10:07:00 | AL29: 518 | AM29: =SUM(AL29:AL32) -> 2176 | AN29: =AM29/$AM$66 -> 0.110266545 | AP29: 11:07:00 | AQ29: 492 | AR29: 2013 | AS29: =AR29/$AR$58 -> 0.1313025895 | AU29: 12:07:00 | AV29: 380 | AW29: =SUM(AV29:AV32) -> 1509 | AX29: =AW29/$AW$50 -> 0.1541053922 | AZ29: 12:52:00 | BA29: 209 | BE29: 13:22:00 | BF29: 155
B30: 13:22:00 | C30: 175 | G30: 12:37:00 | H30: 303 | L30: 11:52:00 | M30: 485 | Q30: 10:52:00 | R30: 583 | V30: 10:07:00 | W30: 514 | X30: =SUM(W30:W33) -> 2144 | Y30: =X30/$X$68 -> 0.1039515152 | AA30: 09:37:00 | AB30: 488 | AF30: 09:52:00 | AG30: 501 | AK30: 10:22:00 | AL30: 537 | AP30: 11:22:00 | AQ30: 501 | AU30: 12:22:00 | AV30: 379 | AZ30: 13:07:00 | BA30: 205 | BB30: =SUM(BA30:BA33) -> 782 | BC30: =BB30/$BB$44 -> 0.1614701631 | BE30: 13:37:00 | BF30: 149
B31: 13:37:00 | C31: 168 | G31: 12:52:00 | H31: 299 | L31: 12:07:00 | M31: 487 | N31: =SUM(M31:M34) -> 1939 | O31: =N31/$N$54 -> 0.1402125967 | Q31: 11:07:00 | R31: 595 | S31: =SUM(R31:R34) -> 2431 | T31: 0.1217204086 | V31: 10:22:00 | W31: 530 | AA31: 09:52:00 | AB31: 506 | AF31: 10:07:00 | AG31: 518 | AH31: =+SUM(AG31:AG34) -> 2157 | AI31: =AH31/$AH$70 -> 0.1022905107 | AK31: 10:37:00 | AL31: 553 | AP31: 11:37:00 | AQ31: 508 | AU31: 12:37:00 | AV31: 377 | AZ31: 13:22:00 | BA31: 199 | BE31: 13:52:00 | BF31: 142
B32: 13:52:00 | C32: 161 | G32: 13:07:00 | H32: 294 | I32: =SUM(H32:H35) -> 1128 | J32: 0.1512875536 | L32: 12:22:00 | M32: 487 | Q32: 11:22:00 | R32: 605 | V32: 10:37:00 | W32: 544 | AA32: 10:07:00 | AB32: 523 | AC32: =SUM(AB32:AB35) -> 2176 | AD32: =AC32/$AC$72 -> 0.1008387784 | AF32: 10:22:00 | AG32: 533 | AK32: 10:52:00 | AL32: 568 | AP32: 11:52:00 | AQ32: 512 | AU32: 12:52:00 | AV32: 373 | AZ32: 13:37:00 | BA32: 193 | BE32: 14:07:00 | BF32: 134 | BG32: =SUM(BF32:BF35) -> 472 | BH32: =BG32/$BG$40 -> 0.1361407557
B33: 14:07:00 | C33: 152 | D33: =SUM(C33:C36) -> 540 | E33: =D33/$D$42 -> 0.1310679612 | G33: 13:22:00 | H33: 287 | L33: 12:37:00 | M33: 485 | Q33: 11:37:00 | R33: 613 | V33: 10:52:00 | W33: 556 | AA33: 10:22:00 | AB33: 538 | AF33: 10:37:00 | AG33: 547 | AK33: 11:07:00 | AL33: 580 | AM33: =SUM(AL33:AL36) -> 2368 | AN33: =AM33/$AM$66 -> 0.1199959461 | AP33: 12:07:00 | AQ33: 515 | AR33: 2050 | AS33: =AR33/$AR$58 -> 0.1337160003 | AU33: 13:07:00 | AV33: 367 | AW33: =SUM(AV33:AV36) -> 1409 | AX33: =AW33/$AW$50 -> 0.1438929739 | AZ33: 13:52:00 | BA33: 185 | BE33: 14:22:00 | BF33: 124
B34: 14:22:00 | C34: 141 | G34: 13:37:00 | H34: 279 | L34: 12:52:00 | M34: 480 | Q34: 11:52:00 | R34: 618 | V34: 11:07:00 | W34: 566 | X34: =SUM(W34:W37) -> 2305 | Y34: =X34/$X$68 -> 0.1117575758 | AA34: 10:37:00 | AB34: 552 | AF34: 10:52:00 | AG34: 559 | AK34: 11:22:00 | AL34: 589 | AP34: 12:22:00 | AQ34: 515 | AU34: 13:22:00 | AV34: 358 | AZ34: 14:07:00 | BA34: 176 | BB34: =SUM(BA34:BA37) -> 634 | BC34: =BB34/$BB$44 -> 0.1309105926 | BE34: 14:37:00 | BF34: 113
B35: 14:37:00 | C35: 130 | G35: 13:52:00 | H35: 268 | L35: 13:07:00 | M35: 473 | N35: =SUM(M35:M38) -> 1829 | O35: =N35/$N$54 -> 0.1322582978 | Q35: 12:07:00 | R35: 621 | S35: =SUM(R35:R38) -> 2476 | T35: 0.123973563 | V35: 11:22:00 | W35: 574 | AA35: 10:52:00 | AB35: 563 | AF35: 11:07:00 | AG35: 569 | AH35: =+SUM(AG35:AG38) -> 2317 | AI35: =AH35/$AH$70 -> 0.109878124 | AK35: 11:37:00 | AL35: 597 | AP35: 12:37:00 | AQ35: 512 | AU35: 13:37:00 | AV35: 348 | AZ35: 14:22:00 | BA35: 165 | BE35: 14:52:00 | BF35: 101
B36: 14:52:00 | C36: 117 | G36: 14:07:00 | H36: 257 | I36: =SUM(H36:H39) -> 939 | J36: 0.1259388412 | L36: 13:22:00 | M36: 464 | Q36: 12:22:00 | R36: 621 | V36: 11:37:00 | W36: 580 | AA36: 11:07:00 | AB36: 573 | AC36: =SUM(AB36:AB39) -> 2333 | AD36: =AC36/$AC$72 -> 0.1081143705 | AF36: 11:22:00 | AG36: 577 | AK36: 11:52:00 | AL36: 602 | AP36: 12:52:00 | AQ36: 508 | AU36: 13:52:00 | AV36: 336 | AZ36: 14:37:00 | BA36: 153 | BE36: 15:07:00 | BF36: 88 | BG36: =SUM(BF36:BF39) -> 231 | BH36: =BG36/$BG$40 -> 0.06662820883
B37: 15:07:00 | C37: 103 | D37: =SUM(C37:C40) -> 309 | E37: =D37/$D$42 -> 0.075 | G37: 14:22:00 | H37: 243 | L37: 13:37:00 | M37: 453 | Q37: 12:37:00 | R37: 619 | V37: 11:52:00 | W37: 585 | AA37: 11:22:00 | AB37: 581 | AF37: 11:37:00 | AG37: 583 | AK37: 12:07:00 | AL37: 605 | AM37: =SUM(AL37:AL40) -> 2412 | AN37: =AM37/$AM$66 -> 0.1222256005 | AP37: 13:07:00 | AQ37: 501 | AR37: 1941 | AS37: =AR37/$AR$58 -> 0.1266062227 | AU37: 14:07:00 | AV37: 321 | AW37: =SUM(AV37:AV40) -> 1180 | AX37: =AW37/$AW$50 -> 0.1205065359 | AZ37: 14:52:00 | BA37: 140 | BE37: 15:22:00 | BF37: 71
B38: 15:22:00 | C38: 88 | G38: 14:37:00 | H38: 228 | L38: 13:52:00 | M38: 439 | Q38: 12:52:00 | R38: 615 | V38: 12:07:00 | W38: 587 | X38: =SUM(W38:W41) -> 2344 | Y38: =X38/$X$68 -> 0.1136484848 | AA38: 11:37:00 | AB38: 587 | AF38: 11:52:00 | AG38: 588 | AK38: 12:22:00 | AL38: 605 | AP38: 13:22:00 | AQ38: 492 | AU38: 14:22:00 | AV38: 305 | AZ38: 15:07:00 | BA38: 126 | BB38: =SUM(BA38:BA41) -> 401 | BC38: =BB38/$BB$44 -> 0.08279991741 | BE38: 15:37:00 | BF38: 54
B39: 15:37:00 | C39: 68 | G39: 14:52:00 | H39: 211 | L39: 14:07:00 | M39: 423 | N39: =SUM(M39:M42) -> 1574 | O39: =N39/$N$54 -> 0.1138187866 | Q39: 13:07:00 | R39: 608 | S39: =SUM(R39:R42) -> 2366 | T39: 0.1184658522 | V39: 12:22:00 | W39: 588 | AA39: 11:52:00 | AB39: 592 | AF39: 12:07:00 | AG39: 590 | AH39: =+SUM(AG39:AG42) -> 2356 | AI39: =AH39/$AH$70 -> 0.1117276047 | AK39: 12:37:00 | AL39: 603 | AP39: 13:37:00 | AQ39: 481 | AU39: 14:37:00 | AV39: 287 | AZ39: 15:22:00 | BA39: 110 | BE39: 15:52:00 | BF39: 18
B40: 15:52:00 | C40: 50 | G40: 15:07:00 | H40: 193 | I40: =SUM(H40:H43) -> 647 | J40: 0.08677575107 | L40: 14:22:00 | M40: 405 | Q40: 13:22:00 | R40: 599 | V40: 12:37:00 | W40: 586 | AA40: 12:07:00 | AB40: 594 | AC40: =SUM(AB40:AB43) -> 2372 | AD40: =AC40/$AC$72 -> 0.1099216831 | AF40: 12:22:00 | AG40: 591 | AK40: 12:52:00 | AL40: 599 | AP40: 13:52:00 | AQ40: 467 | AU40: 14:52:00 | AV40: 267 | AZ40: 15:37:00 | BA40: 93 | BE40: Celkem | BF40: =SUM(BF9:BF39) -> 3467 | BG40: =SUM(BG9:BG39) -> 3467 | BH40: 1
B41: 16:07:00 | C41: 17 | D41: =C41 -> 17 | E41: =D41/$D$42 -> 0.004126213592 | G41: 15:22:00 | H41: 173 | L41: 14:37:00 | M41: 384 | Q41: 13:37:00 | R41: 587 | V41: 12:52:00 | W41: 583 | AA41: 12:22:00 | AB41: 595 | AF41: 12:37:00 | AG41: 589 | AK41: 13:07:00 | AL41: 592 | AM41: =SUM(AL41:AL44) -> 2303 | AN41: =AM41/$AM$66 -> 0.1167021384 | AP41: 14:07:00 | AQ41: 451 | AR41: 1687 | AS41: =AR41/$AR$58 -> 0.1100384841 | AU41: 15:07:00 | AV41: 245 | AW41: =SUM(AV41:AV44) -> 835 | AX41: =AW41/$AW$50 -> 0.08527369281 | AZ41: 15:52:00 | BA41: 72
B42: celkem | C42: =SUM(C9:C41) -> 4120 | D42: =SUM(D9:D41) -> 4120 | E42: =SUM(E9:E41) -> 1 | G42: 15:37:00 | H42: 152 | L42: 14:52:00 | M42: 362 | Q42: 13:52:00 | R42: 572 | V42: 13:07:00 | W42: 577 | X42: =SUM(W42:W45) -> 2256 | Y42: =X42/$X$68 -> 0.1093818182 | AA42: 12:37:00 | AB42: 593 | AF42: 12:52:00 | AG42: 586 | AK42: 13:22:00 | AL42: 583 | AP42: 14:22:00 | AQ42: 433 | AU42: 15:22:00 | AV42: 222 | AZ42: 16:07:00 | BA42: 52 | BB42: =SUM(BA42:BA43) -> 70 | BC42: =BB42/BB44 -> 0.01445385092
G43: 15:52:00 | H43: 129 | L43: 15:07:00 | M43: 338 | N43: =SUM(M43:M46) -> 1189 | O43: =N43/$N$54 -> 0.08597874033 | Q43: 14:07:00 | R43: 556 | S43: =SUM(R43:R46) -> 2100 | T43: 0.1051472061 | V43: 13:22:00 | W43: 570 | AA43: 12:52:00 | AB43: 590 | AF43: 13:07:00 | AG43: 580 | AH43: =+SUM(AG43:AG46) -> 2269 | AI43: =AH43/$AH$70 -> 0.10760184 | AK43: 13:37:00 | AL43: 571 | AP43: 14:37:00 | AQ43: 413 | AU43: 15:37:00 | AV43: 197 | AZ43: 16:22:00 | BA43: 18
G44: 16:07:00 | H44: 106 | I44: =SUM(H44:H47) -> 256 | J44: 0.03433476395 | L44: 15:22:00 | M44: 312 | Q44: 14:22:00 | R44: 537 | V44: 13:37:00 | W44: 560 | AA44: 13:07:00 | AB44: 584 | AC44: =SUM(AB44:AB47) -> 2286 | AD44: =AC44/$AC$72 -> 0.105936327 | AF44: 13:22:00 | AG44: 573 | AK44: 13:52:00 | AL44: 557 | AP44: 14:52:00 | AQ44: 390 | AU44: 15:52:00 | AV44: 171 | AZ44: Celkem | BA44: =SUM(BA9:BA43) -> 4843 | BB44: =SUM(BB9:BB43) -> 4843 | BC44: =SUM(BC9:BC43) -> 1
G45: 16:22:00 | H45: 78 | L45: 15:37:00 | M45: 284 | Q45: 14:37:00 | R45: 515 | V45: 13:52:00 | W45: 549 | AA45: 13:22:00 | AB45: 577 | AF45: 13:37:00 | AG45: 564 | AK45: 14:07:00 | AL45: 541 | AM45: =SUM(AL45:AL48) -> 2044 | AN45: =AM45/$AM$66 -> 0.1035775818 | AP45: 15:07:00 | AQ45: 366 | AR45: 1303 | AS45: =AR45/$AR$58 -> 0.08499119431 | AU45: 16:07:00 | AV45: 144 | AW45: =SUM(AV45:AV48) -> 406 | AX45: =AW45/$AW$50 -> 0.0414624183
G46: 16:37:00 | H46: 53 | L46: 15:52:00 | M46: 255 | Q46: 14:52:00 | R46: 492 | V46: 14:07:00 | W46: 536 | X46: =SUM(W46:W49) -> 2043 | Y46: =X46/$X$68 -> 0.09905454545 | AA46: 13:37:00 | AB46: 568 | AF46: 13:52:00 | AG46: 552 | AK46: 14:22:00 | AL46: 522 | AP46: 15:22:00 | AQ46: 340 | AU46: 16:22:00 | AV46: 116
G47: 16:52:00 | H47: 19 | L47: 16:07:00 | M47: 224 | N47: =SUM(M47:M50) -> 705 | O47: =N47/$N$54 -> 0.05097982501 | Q47: 15:07:00 | R47: 466 | S47: =SUM(R47:R50) -> 1689 | T47: 0.08456839575 | V47: 14:22:00 | W47: 520 | AA47: 13:52:00 | AB47: 557 | AF47: 14:07:00 | AG47: 539 | AH47: =+SUM(AG47:AG50) -> 2058 | AI47: =AH47/$AH$70 -> 0.09759567506 | AK47: 14:37:00 | AL47: 502 | AP47: 15:37:00 | AQ47: 313 | AU47: 16:37:00 | AV47: 88
G48: Celkem | H48: =SUM(H9:H47) -> 7456 | I48: =SUM(I9:I47) -> 7456 | J48: =SUM(J9:J47) -> 1 | L48: 16:22:00 | M48: 193 | Q48: 15:22:00 | R48: 438 | V48: 14:37:00 | W48: 503 | AA48: 14:07:00 | AB48: 544 | AC48: =SUM(AB48:AB51) -> 2079 | AD48: =AC48/$AC$72 -> 0.09634366745 | AF48: 14:22:00 | AG48: 524 | AK48: 14:52:00 | AL48: 479 | AP48: 15:52:00 | AQ48: 284 | AU48: 16:52:00 | AV48: 58
L49: 16:37:00 | M49: 160 | Q49: 15:37:00 | R49: 408 | V49: 14:52:00 | W49: 484 | AA49: 14:22:00 | AB49: 529 | AF49: 14:37:00 | AG49: 507 | AK49: 15:07:00 | AL49: 454 | AM49: =SUM(AL49:AL52) -> 1649 | AN49: =AM49/$AM$66 -> 0.08356136617 | AP49: 16:07:00 | AQ49: 253 | AR49: 824 | AS49: =AR49/$AR$58 -> 0.05374730937 | AU49: 17:07:00 | AV49: 33 | AW49: =AV49 -> 33 | AX49: =AW49/AW50 -> 0.003370098039
L50: 16:52:00 | M50: 128 | Q50: 15:52:00 | R50: 377 | V50: 15:07:00 | W50: 463 | X50: =SUM(W50:W53) -> 1709 | Y50: =X50/$X$68 -> 0.08286060606 | AA50: 14:37:00 | AB50: 512 | AF50: 14:52:00 | AG50: 488 | AK50: 15:22:00 | AL50: 427 | AP50: 16:22:00 | AQ50: 222 | AU50: Celkem | AV50: =SUM(AV9:AV49) -> 9792 | AW50: =SUM(AW9:AW49) -> 9792 | AX50: 1
L51: 17:07:00 | M51: 96 | N51: =SUM(M51:M53) -> 196 | O51: =N51/$N$54 -> 0.01417311447 | Q51: 16:07:00 | R51: 344 | S51: =SUM(R51:R54) -> 1168 | T51: 0.05848187462 | V51: 15:22:00 | W51: 440 | AA51: 14:52:00 | AB51: 494 | AF51: 15:07:00 | AG51: 468 | AH51: =+SUM(AG51:AG54) -> 1733 | AI51: =AH51/$AH$70 -> 0.0821833357 | AK51: 15:37:00 | AL51: 399 | AP51: 16:37:00 | AQ51: 190
L52: 17:22:00 | M52: 63 | Q52: 16:22:00 | R52: 310 | V52: 15:37:00 | W52: 416 | AA52: 15:07:00 | AB52: 474 | AC52: =SUM(AB52:AB55) -> 1757 | AD52: =AC52/$AC$72 -> 0.08142175263 | AF52: 15:22:00 | AG52: 446 | AK52: 15:52:00 | AL52: 369 | AP52: 16:52:00 | AQ52: 159
L53: 17:37:00 | M53: 37 | Q53: 16:37:00 | R53: 275 | V53: 15:52:00 | W53: 390 | AA53: 15:22:00 | AB53: 452 | AF53: 15:37:00 | AG53: 422 | AK53: 16:07:00 | AL53: 338 | AM53: =SUM(AL53:AL56) -> 1157 | AN53: =AM53/$AM$66 -> 0.05862977602 | AP53: 17:07:00 | AQ53: 127 | AR53: =SUM(AQ53:AQ56) -> 328 | AS53: =AR53/$AR$58 -> 0.02139456004
L54: Celkem | M54: =SUM(M9:M53) -> 13829 | N54: =SUM(N9:N53) -> 13829 | O54: =SUM(O9:O53) -> 1 | Q54: 16:52:00 | R54: 239 | V54: 16:07:00 | W54: 363 | X54: =SUM(W54:W57) -> 1278 | Y54: =X54/$X$68 -> 0.06196363636 | AA54: 15:37:00 | AB54: 428 | AF54: 15:52:00 | AG54: 397 | AK54: 16:22:00 | AL54: 306 | AP54: 17:22:00 | AQ54: 96
Q55: 17:07:00 | R55: 204 | S55: =SUM(R55:R58) -> 608 | T55: =S55/$S$62 -> 0.03044261967 | V55: 16:22:00 | W55: 335 | AA55: 15:52:00 | AB55: 403 | AF55: 16:07:00 | AG55: 370 | AH55: =+SUM(AG55:AG58) -> 1310 | AI55: =AH55/$AH$70 -> 0.06212358325 | AK55: 16:37:00 | AL55: 273 | AP55: 17:37:00 | AQ55: 65
Q56: 17:22:00 | R56: 168 | V56: 16:37:00 | W56: 305 | AA56: 16:07:00 | AB56: 377 | AC56: =SUM(AB56:AB59) -> 1342 | AD56: =AC56/$AC$72 -> 0.06219009222 | AF56: 16:22:00 | AG56: 342 | AK56: 16:52:00 | AL56: 240 | AP56: 17:52:00 | AQ56: 40
A57: Nominální výkon FVE: 1.0 kW (crystalline silicon) | Q57: 17:37:00 | R57: 134 | V57: 16:52:00 | W57: 275 | AA57: 16:22:00 | AB57: 350 | AF57: 16:37:00 | AG57: 314 | AK57: 17:07:00 | AL57: 207 | AM57: =SUM(AL57:AL60) -> 636 | AN57: =AM57/$AM$66 -> 0.03222864092 | AP57: 18:07:00 | AQ57: 17 | AR57: =AQ57 -> 17 | AS57: =AR57/AR58 -> 0.001108864392
A58: Odhadované ztráty důsledkem teploty a slabého ozáření: 8.4% (pomocí místní okolní teplotu) | Q58: 17:52:00 | R58: 102 | V58: 17:07:00 | W58: 245 | X58: =SUM(W58:W61) -> 797 | Y58: =X58/$X$68 -> 0.03864242424 | AA58: 16:37:00 | AB58: 322 | AF58: 16:52:00 | AG58: 284 | AK58: 17:22:00 | AL58: 174 | AQ58: =SUM(AQ9:AQ57) -> 15331 | AR58: =SUM(AR9:AR57) -> 15331 | AS58: 1
A59: Odhadované ztráty způsobené odrazem: 3.0% | Q59: 18:07:00 | R59: 72 | S59: =SUM(R59:R61) -> 141 | T59: =S59/$S$62 -> 0.007059883837 | V59: 17:22:00 | W59: 214 | AA59: 16:52:00 | AB59: 293 | AF59: 17:07:00 | AG59: 254 | AH59: =+SUM(AG59:AG62) -> 837 | AI59: =AH59/$AH$70 -> 0.03969270166 | AK59: 17:37:00 | AL59: 143
A60: Jiné ztráty(kabely, měniče): 14.0% | Q60: 18:22:00 | R60: 44 | V60: 17:37:00 | W60: 184 | AA60: 17:07:00 | AB60: 263 | AC60: =SUM(AB60:AB63) -> 877 | AD60: =AC60/$AC$72 -> 0.04064136429 | AF60: 17:22:00 | AG60: 224 | AK60: 17:52:00 | AL60: 112
A61: Kombinované ztráty FVE : 23.6% | Q61: 18:37:00 | R61: 25 | V61: 17:52:00 | W61: 154 | AA61: 17:22:00 | AB61: 234 | AF61: 17:37:00 | AG61: 194 | AK61: 18:07:00 | AL61: 84 | AM61: =SUM(AL61:AL64) -> 205 | AN61: =AM61/$AM$66 -> 0.01038816256
Q62: Celkem | R62: =SUM(R9:R61) -> 19972 | S62: =SUM(S9:S61) -> 19972 | T62: =SUM(T9:T61) -> 1 | V62: 18:07:00 | W62: 125 | X62: =SUM(W62:W65) -> 352 | Y62: =X62/$X$68 -> 0.01706666667 | AA62: 17:37:00 | AB62: 204 | AF62: 17:52:00 | AG62: 165 | AK62: 18:22:00 | AL62: 60
A63: Fixed system: inclination=33°, orientation=10° (optimum) | V63: 18:22:00 | W63: 98 | AA63: 17:52:00 | AB63: 176 | AF63: 18:07:00 | AG63: 137 | AH63: =+SUM(AG63:AG66) -> 397 | AI63: =AH63/$AH$70 -> 0.01882676531 | AK63: 18:37:00 | AL63: 37
A64: Měsíc | B64: Ed | C64: Em | D64: Hd | E64: Hm | V64: 18:37:00 | W64: 74 | AA64: 18:07:00 | AB64: 147 | AC64: =SUM(AB64:AB67) -> 437 | AD64: =AC64/$AC$72 -> 0.02025117012 | AF64: 18:22:00 | AG64: 110 | AK64: 18:52:00 | AL64: 24
A65: leden | B65: 0.85 | C65: 26.4 | D65: 1.04 | E65: 32.3 | V65: 18:52:00 | W65: 55 | AA65: 18:22:00 | AB65: 121 | AF65: 18:37:00 | AG65: 85 | AK65: 19:07:00 | AL65: 10 | AM65: =AL65 -> 10 | AN65: =AM65/AM66 -> 0.0005067396372
A66: únor | B66: 1.52 | C66: 42.6 | D66: 1.88 | E66: 52.6 | V66: 19:07:00 | W66: 42 | X66: =SUM(W66:W67) -> 70 | Y66: =X66/X68 -> 0.003393939394 | AA66: 18:37:00 | AB66: 96 | AF66: 18:52:00 | AG66: 65 | AK66: Celkem | AL66: =SUM(AL9:AL65) -> 19734 | AM66: =SUM(AM9:AM65) -> 19734 | AN66: 1
A67: březen | B67: 2.78 | C67: 86.3 | D67: 3.47 | E67: 108 | V67: 19:22:00 | W67: 28 | AA67: 18:52:00 | AB67: 73 | AF67: 19:07:00 | AG67: 52 | AH67: =SUM(AG67:AG69) -> 116 | AI67: =AH67/AH70 -> 0.005501019586
A68: duben | B68: 3.86 | C68: 116 | D68: 5.01 | E68: 150 | W68: =SUM(W9:W67) -> 20625 | X68: =SUM(X9:X67) -> 20625 | Y68: =SUM(Y9:Y67) -> 1 | AA68: 19:07:00 | AB68: 62 | AC68: =SUM(AB68:AB71) -> 167 | AD68: =AC68/$AC$72 -> 0.007739005515 | AF68: 19:22:00 | AG68: 39
A69: květen | B69: 3.9 | C69: 121 | D69: 5.2 | E69: 161 | AA69: 19:22:00 | AB69: 48 | AF69: 19:37:00 | AG69: 25
A70: červen | B70: 4.02 | C70: 121 | D70: 5.44 | E70: 163 | AA70: 19:37:00 | AB70: 35 | AF70: Cellkem | AG70: =SUM(AG9:AG69) -> 21087 | AH70: =SUM(AH9:AH69) -> 21087 | AI70: 1
A71: červenec | B71: 3.89 | C71: 121 | D71: 5.31 | E71: 165 | AA71: 19:52:00 | AB71: 22
A72: srpen | B72: 3.66 | C72: 113 | D72: 4.94 | E72: 153 | AA72: Celkem | AB72: =SUM(AB9:AB71) -> 21579 | AC72: =SUM(AC9:AC71) -> 21579 | AD72: =AC72/$AC$72 -> 1
A73: září | B73: 2.93 | C73: 87.9 | D73: 3.84 | E73: 115 | I73: Poměrná doba výroby v hodinách
A74: říjen | B74: 1.92 | C74: 59.7 | D74: 2.46 | E74: 76.1
A75: listopad | B75: 0.97 | C75: 29.1 | D75: 1.22 | E75: 36.7 | J75: 1 | K75: 2 | L75: 3 | M75: 4 | N75: 5 | O75: 6 | P75: 7 | Q75: 8 | R75: 9 | S75: 10 | T75: 11 | U75: 12 | V75: 13 | W75: 14 | X75: 15 | Y75: 16 | Z75: 17 | AA75: 18 | AB75: 19 | AC75: 20 | AD75: 21 | AE75: 22 | AF75: 23 | AG75: 24
A76: prosinec | B76: 0.71 | C76: 22 | D76: 0.88 | E76: 27.2 | I76: leden | J76: 0 | K76: 0 | L76: 0 | M76: 0 | N76: 0 | O76: 0 | P76: 0 | Q76: 0 | R76: =E9 -> 0.03373786408 | S76: =E13 -> 0.07305825243 | T76: =E17 -> 0.157038835 | U76: =E21 -> 0.1783980583 | V76: =E25 -> 0.1815533981 | W76: =E29 -> 0.1660194175 | X76: =E33 -> 0.1310679612 | Y76: =E37 -> 0.075 | Z76: =E41 -> 0.004126213592 | AA76: 0 | AB76: 0 | AC76: 0 | AD76: 0 | AE76: 0 | AF76: 0 | AG76: 0 | AH76: =SUM(J76:AG76) -> 1
I77: únor | J77: 0 | K77: 0 | L77: 0 | M77: 0 | N77: 0 | O77: 0 | P77: 0 | Q77: =J9 -> 0.01555793991 | R77: =J12 -> 0.03634656652 | S77: =J16 -> 0.08449570815 | T77: =J20 -> 0.1431062232 | U77: =J24 -> 0.1596030043 | V77: =J28 -> 0.1625536481 | W77: =J32 -> 0.1512875536 | X77: =J36 -> 0.1259388412 | Y77: =J40 -> 0.08677575107 | Z77: =J44 -> 0.03433476395 | AA77: 0 | AB77: 0 | AC77: 0 | AD77: 0 | AE77: 0 | AF77: 0 | AG77: 0 | AH77: 1
A78: Roční průměr | B78: 2.59 | C78: 78.8 | D78: 3.4 | E78: 103 | I78: březen | J78: 0 | K78: 0 | L78: 0 | M78: 0 | N78: 0 | O78: 0 | P78: =O9 -> 0.006941933618 | Q78: =O11 -> 0.02429676766 | R78: =O15 -> 0.06594836937 | S78: =O19 -> 0.1028997035 | T78: =O23 -> 0.1248824933 | U78: =O27 -> 0.1376093716 | V78: =O31 -> 0.1402125967 | W78: =O35 -> 0.1322582978 | X78: =O39 -> 0.1138187866 | Y78: =O43 -> 0.08597874033 | Z78: =O47 -> 0.05097982501 | AA78: =O51 -> 0.01417311447 | AB78: 0 | AC78: 0 | AD78: 0 | AE78: 0 | AF78: 0 | AG78: 0 | AH78: 1
A79: Celkově ročně | B79: 945 | D79: 1240 | I79: duben | J79: 0 | K79: 0 | L79: 0 | M79: 0 | N79: 0 | O79: =T9 -> 0.004706589225 | P79: =T11 -> 0.02052874024 | Q79: =T15 -> 0.04596435009 | R79: =T19 -> 0.07220108151 | S79: =T23 -> 0.09488283597 | T79: =T27 -> 0.1118565992 | U79: =T31 -> 0.1217204086 | V79: =T35 -> 0.123973563 | W79: =T39 -> 0.1184658522 | X79: =T43 -> 0.1051472061 | Y79: =T47 -> 0.08456839575 | Z79: =T51 -> 0.05848187462 | AA79: =T55 -> 0.03044261967 | AB79: =T59 -> 0.007059883837 | AC79: 0 | AD79: 0 | AE79: 0 | AF79: 0 | AG79: 0 | AH79: 1
I80: květen | J80: 0 | K80: 0 | L80: 0 | M80: 0 | N80: =Y9 -> 0.002036363636 | O80: =Y10 -> 0.01454545455 | P80: =Y14 -> 0.02783030303 | Q80: =Y18 -> 0.05090909091 | R80: =Y22 -> 0.07243636364 | S80: =Y26 -> 0.09052121212 | T80: =Y30 -> 0.1039515152 | U80: =Y34 -> 0.1117575758 | V80: =Y38 -> 0.1136484848 | W80: =Y42 -> 0.1093818182 | X80: =Y46 -> 0.09905454545 | Y80: =Y50 -> 0.08286060606 | Z80: =Y54 -> 0.06196363636 | AA80: =Y58 -> 0.03864242424 | AB80: =Y62 -> 0.01706666667 | AC80: =Y66 -> 0.003393939394 | AD80: 0 | AE80: 0 | AF80: 0 | AG80: 0 | AH80: 1
A81: Ed:Průměrná denní produkce elektřiny z daného systému (kWh) | I81: červen | J81: 0 | K81: 0 | L81: 0 | M81: 0 | N81: =AD9 -> 0.006719495806 | O81: =AD12 -> 0.01723898234 | P81: =AD16 -> 0.03086333936 | Q81: =AD20 -> 0.05171694703 | R81: =AD24 -> 0.0716437277 | S81: =AD28 -> 0.08841929654 | T81: =AD32 -> 0.1008387784 | U81: =AD36 -> 0.1081143705 | V81: =AD40 -> 0.1099216831 | W81: =AD44 -> 0.105936327 | X81: =AD48 -> 0.09634366745 | Y81: =AD52 -> 0.08142175263 | Z81: =AD56 -> 0.06219009222 | AA81: =AD60 -> 0.04064136429 | AB81: =AD64 -> 0.02025117012 | AC81: =AD68 -> 0.007739005515 | AD81: 0 | AE81: 0 | AF81: 0 | AG81: 0 | AH81: 1
A82: Em: Průměrná měsíční výroba elektřiny z daného systému (kWh) | I82: červenec | J82: 0 | K82: 0 | L82: 0 | M82: 0 | N82: =AI9 -> 0.00431545502 | O82: =AI11 -> 0.01588656518 | P82: =AI15 -> 0.02973395931 | Q82: =AI19 -> 0.05131123441 | R82: =AI23 -> 0.07194005786 | S82: =AI27 -> 0.08939156826 | T82: =AI31 -> 0.1022905107 | U82: =AI35 -> 0.109878124 | V82: =AI39 -> 0.1117276047 | W82: =AI43 -> 0.10760184 | X82: =AI47 -> 0.09759567506 | Y82: =AI51 -> 0.0821833357 | Z82: =AI55 -> 0.06212358325 | AA82: =AI59 -> 0.03969270166 | AB82: =AI63 -> 0.01882676531 | AC82: =AI67 -> 0.005501019586 | AD82: 0 | AE82: 0 | AF82: 0 | AG82: 0 | AH82: 1
A83: Hd: Průměrný denní součet záření na metr čtvereční obdržené z moduly daného systému (kWh/m2) | I83: srpen | J83: 0 | K83: 0 | L83: 0 | M83: 0 | N83: 0 | O83: =AN9 -> 0.008817269687 | P83: =AN13 -> 0.02072565116 | Q83: =AN17 -> 0.04677206851 | R83: =AN21 -> 0.07180500659 | S83: =AN25 -> 0.09379750684 | T83: =AN29 -> 0.110266545 | U83: =AN33 -> 0.1199959461 | V83: =AN37 -> 0.1222256005 | W83: =AN41 -> 0.1167021384 | X83: =AN45 -> 0.1035775818 | Y83: =AN49 -> 0.08356136617 | Z83: =AN53 -> 0.05862977602 | AA83: =AN57 -> 0.03222864092 | AB83: =AN61 -> 0.01038816256 | AC83: =AN65 -> 0.0005067396372 | AD83: 0 | AE83: 0 | AF83: 0 | AG83: 0 | AH83: 1
I84: září | J84: 0 | K84: 0 | L84: 0 | M84: 0 | N84: 0 | O84: 0 | P84: =AS9 -> 0.01337160003 | Q84: =AS13 -> 0.03163524884 | R84: =AS17 -> 0.07292414063 | S84: =AS21 -> 0.09960211337 | T84: =AS25 -> 0.1195616724 | U84: =AS29 -> 0.1313025895 | V84: =AS33 -> 0.1337160003 | W84: =AS37 -> 0.1266062227 | X84: =AS41 -> 0.1100384841 | Y84: =AS45 -> 0.08499119431 | Z84: =AS49 -> 0.05374730937 | AA84: =AS53 -> 0.02139456004 | AB84: =AS57 -> 0.001108864392 | AC84: 0 | AD84: 0 | AE84: 0 | AF84: 0 | AG84: 0 | AH84: 1
A85: Hm: Průměrný součet záření na metr čtvereční obdržené moduly daného systému (kWh/m2) | I85: říjen | J85: 0 | K85: 0 | L85: 0 | M85: 0 | N85: 0 | O85: 0 | P85: 0 | Q85: =AX9 -> 0.0204248366 | R85: =AX13 -> 0.03513071895 | S85: =AX17 -> 0.1087622549 | T85: =AX21 -> 0.1358251634 | U85: =AX25 -> 0.151245915 | V85: =AX29 -> 0.1541053922 | W85: =AX33 -> 0.1438929739 | X85: =AX37 -> 0.1205065359 | Y85: =AX41 -> 0.08527369281 | Z85: =AX45 -> 0.0414624183 | AA85: =AX49 -> 0.003370098039 | AB85: 0 | AC85: 0 | AD85: 0 | AE85: 0 | AF85: 0 | AG85: 0 | AH85: 1
I86: listopad | J86: 0 | K86: 0 | L86: 0 | M86: 0 | N86: 0 | O86: 0 | P86: 0 | Q86: =BC9 -> 0.005368573198 | R86: =BC10 -> 0.03530869296 | S86: =BC14 -> 0.07103035309 | T86: =BC18 -> 0.1523848854 | U86: =BC22 -> 0.1715878588 | V86: =BC26 -> 0.1746851125 | W86: =BC30 -> 0.1614701631 | X86: =BC34 -> 0.1309105926 | Y86: =BC38 -> 0.08279991741 | Z86: =BC42 -> 0.01445385092 | AA86: 0 | AB86: 0 | AC86: 0 | AD86: 0 | AE86: 0 | AF86: 0 | AG86: 0 | AH86: 1
I87: prosinec | J87: 0 | K87: 0 | L87: 0 | M87: 0 | N87: 0 | O87: 0 | P87: 0 | Q87: 0 | R87: =BH9 -> 0.0256706086 | S87: =BH12 -> 0.05278338621 | T87: =BH16 -> 0.1646957023 | U87: =BH20 -> 0.1880588405 | V87: =BH24 -> 0.1912316123 | W87: =BH28 -> 0.1747908855 | X87: =BH32 -> 0.1361407557 | Y87: =BH36 -> 0.06662820883 | Z87: 0 | AA87: 0 | AB87: 0 | AC87: 0 | AD87: 0 | AE87: 0 | AF87: 0 | AG87: 0 | AH87: =SUM(J87:AG87) -> 1
A94: Systém instalovaný na střeše RD, sklon střechy 33°, orientace 10° JZ
A95: Měsíc | B95: Ed | C95: Em | D95: Hd | E95: Hm | G95: Ed - průměrná denní produkce elektrické energie (kWh)
A96: leden | B96: =2.5*B65 -> 2.125 | C96: =2.5*C65 -> 66 | D96: 1.04 | E96: 32.3
A97: únor | B97: =2.5*B66 -> 3.8 | C97: 106.5 | D97: 1.88 | E97: 52.6
A98: březen | B98: =2.5*B67 -> 6.95 | C98: 215.75 | D98: 3.47 | E98: 108 | G98: Hd – množství vyrobené elektrické energie za jeden den ze slunečního záření dopadajícího na 1 m² FV panelů (kWh/m²)
A99: duben | B99: =2.5*B68 -> 9.65 | C99: 290 | D99: 5.01 | E99: 150
A100: květen | B100: =2.5*B69 -> 9.75 | C100: 302.5 | D100: 5.2 | E100: 161
A101: červen | B101: =2.5*B70 -> 10.05 | C101: 302.5 | D101: 5.44 | E101: 163
A102: červenec | B102: =2.5*B71 -> 9.725 | C102: 302.5 | D102: 5.31 | E102: 165 | G102: Em - průměrná měsiční produkce elektrické energie (kWh)
A103: srpen | B103: =2.5*B72 -> 9.15 | C103: 282.5 | D103: 4.94 | E103: 153
A104: září | B104: =2.5*B73 -> 7.325 | C104: 219.75 | D104: 3.84 | E104: 115
A105: říjen | B105: =2.5*B74 -> 4.8 | C105: 149.25 | D105: 2.46 | E105: 76.1 | G105: Hm - množství vyrobené elektrické energie za jeden měsíc ze slunečního záření dopadajícího na 1 m² FV panelů (kWh/m²)
A106: listopad | B106: =2.5*B75 -> 2.425 | C106: 72.75 | D106: 1.22 | E106: 36.7
A107: prosinec | B107: =2.5*B76 -> 1.775 | C107: 55 | D107: 0.88 | E107: 27.2
A109: Roční průměr | B109: =AVERAGE(B96:B107) -> 6.460416667 | C109: =AVERAGE(C96:C107) -> 197.0833333 | D109: 3.4 | E109: 103
A110: Celkově ročně | B110: =SUM(C96:C107) -> 2365 | C110: =SUM(C96:C107) -> 2365 | E110: 1240
A113: Obr.č. 3 Tabulka teoretické roční produkce elektrické energie, vytvořená na základě dat z [4]

Sheet vyroba & spotřeba-Grafy

Sheet TDD-spotřeba
A2: Normalizované TDD - 2017
G3: TDD celkem: | H3: =SUM(D7:D8766) -> 3919.62809
G4: počet hodin v roce | H4: =MAX(C:C) -> 8760
A5: Den | B5: Hodina | C5: Poř. č. hod. v roce | D5: TDD4 ČR | E5: hodinová spotřeba [kWh] | G5: počet dní v roce | H5: =H4/24 -> 365 | J5: poř. č. dne v roce | K5: den | L5: denní spotřeba [kWh] | R5: MAXIMUM
O6: hodnota | P6: den
A7: 42736 | B7: 1 | C7: 1 | D7: 0.47816 | E7: =$H$7*(D7/$H$3) -> 0.3049779144 | G7: celková roční spotřeba z faktur [kWh] | H7: 2500 | J7: 1 | K7: 2017-01-01 | L7: 8.25639557 | N7: maximální spotřeba | O7: =MAX(L7:L371) -> 16.4716903 | P7: 2017-12-31
A8: 42736 | B8: 2 | C8: 2 | D8: 0.42856 | E8: 0.2733422599 | G8: kontrola | H8: =SUM(E7:E8766) -> 2500 | J8: 2 | K8: 2017-01-02 | L8: 7.852390404 | N8: minimální spotřeba | O8: =MIN(L7:L371) -> 5.661889213 | P8: 2017-06-23
A9: 42736 | B9: 3 | C9: 3 | D9: 0.34875 | E9: 0.2224381957 | J9: 3 | K9: 2017-01-03 | L9: 7.75312716
A10: 42736 | B10: 4 | C10: 4 | D10: 0.3143 | E10: 0.2004654477 | J10: 4 | K10: 2017-01-04 | L10: 7.85174621
A11: 42736 | B11: 5 | C11: 5 | D11: 0.29346 | E11: 0.1871733703 | J11: 5 | K11: 2017-01-05 | L11: 8.029046195 | O11: Spotřeba v hodinách dne [kWh]
A12: 42736 | B12: 6 | C12: 6 | D12: 0.27754 | E12: 0.1770193457 | J12: 6 | K12: 2017-01-06 | L12: 7.951781211 | N12: hodina | O12: Maxima | P12: Minima
A13: 42736 | B13: 7 | C13: 7 | D13: 0.29509 | E13: 0.1882130098 | J13: 7 | K13: 2017-01-07 | L13: 8.857020157 | N13: 1 | O13: 0.2122522803 | P13: 0.1534265461
A14: 42736 | B14: 8 | C14: 8 | D14: 0.33054 | E14: 0.2108235733 | J14: 8 | K14: 2017-01-08 | L14: 8.960626925 | N14: 2 | O14: 0.1794047761 | P14: 0.1338774975
A15: 42736 | B15: 9 | C15: 9 | D15: 0.40968 | E15: 0.2613003011 | J15: 9 | K15: 2017-01-09 | L15: 7.83033474 | N15: 3 | O15: 0.1507158298 | P15: 0.135408255
A16: 42736 | B16: 10 | C16: 10 | D16: 0.54015 | E16: 0.3445161043 | J16: 10 | K16: 2017-01-10 | L16: 7.708135646 | N16: 4 | O16: 0.1595240634 | P16: 0.1338583631
A17: 42736 | B17: 11 | C17: 11 | D17: 0.69766 | E17: 0.4449784418 | J17: 11 | K17: 2017-01-11 | L17: 7.645100329 | N17: 5 | O17: 0.1580889783 | P17: 0.146640188
A18: 42736 | B18: 12 | C18: 12 | D18: 0.72913 | E18: 0.4650504992 | J18: 12 | K18: 2017-01-12 | L18: 7.845087415 | N18: 6 | O18: 0.1682621373 | P18: 0.1457217335
A19: 42736 | B19: 13 | C19: 13 | D19: 0.68777 | E19: 0.4386704454 | J19: 13 | K19: 2017-01-13 | L19: 7.719067806 | N19: 7 | O19: 0.1963834278 | P19: 0.1787605824
A20: 42736 | B20: 14 | C20: 14 | D20: 0.62892 | E20: 0.4011349965 | J20: 14 | K20: 2017-01-14 | L20: 8.873909514 | N20: 8 | O20: 0.2411772184 | P20: 0.2467070798
A21: 42736 | B21: 15 | C21: 15 | D21: 0.61955 | E21: 0.3951586641 | J21: 15 | K21: 2017-01-15 | L21: 8.813533888 | N21: 9 | O21: 0.3245460974 | P21: 0.2260546102
A22: 42736 | B22: 16 | C22: 16 | D22: 0.6068 | E22: 0.3870265151 | J22: 16 | K22: 2017-01-16 | L22: 7.753497093 | N22: 10 | O22: 0.4334084666 | P22: 0.244264246
A23: 42736 | B23: 17 | C23: 17 | D23: 0.72163 | E23: 0.4602668821 | J23: 17 | K23: 2017-01-17 | L23: 7.666754169 | N23: 11 | O23: 0.4839107069 | P23: 0.2861049503
A24: 42736 | B24: 18 | C24: 18 | D24: 0.75004 | E24: 0.4783872237 | J24: 18 | K24: 2017-01-18 | L24: 7.449252666 | N24: 12 | O24: 0.5007362829 | P24: 0.2935610149
A25: 42736 | B25: 19 | C25: 19 | D25: 0.7716 | E25: 0.4921385284 | J25: 19 | K25: 2017-01-19 | L25: 7.502414598 | N25: 13 | O25: 0.5026688642 | P25: 0.2772839604
A26: 42736 | B26: 20 | C26: 20 | D26: 0.76981 | E26: 0.4909968384 | J26: 20 | K26: 2017-01-20 | L26: 7.740753537 | N26: 14 | O26: 0.4844464721 | P26: 0.2617021249
A27: 42736 | B27: 21 | C27: 21 | D27: 0.73669 | E27: 0.4698723853 | J27: 21 | K27: 2017-01-21 | L27: 8.672104654 | N27: 15 | O27: 0.4160279911 | P27: 0.2750834965
A28: 42736 | B28: 22 | C28: 22 | D28: 0.61291 | E28: 0.3909235685 | J28: 22 | K28: 2017-01-22 | L28: 8.84604335 | N28: 16 | O28: 0.4090630446 | P28: 0.2665431454
A29: 42736 | B29: 23 | C29: 23 | D29: 0.51417 | E29: 0.3279456547 | J29: 23 | K29: 2017-01-23 | L29: 7.491533463 | N29: 17 | O29: 0.4606559496 | P29: 0.2745477314
A30: 42736 | B30: 24 | C30: 24 | D30: 0.38189 | E30: 0.2435754051 | J30: 24 | K30: 2017-01-24 | L30: 7.410990107 | N30: 18 | O30: 0.4879799706 | P30: 0.2768693802
A31: 42737 | B31: 1 | C31: 25 | D31: 0.32449 | E31: 0.2069647888 | J31: 25 | K31: 2017-01-25 | L31: 7.414517228 | N31: 19 | O31: 0.4633156407 | P31: 0.2980257242
A32: 42737 | B32: 2 | C32: 26 | D32: 0.26461 | E32: 0.1687723898 | J32: 26 | K32: 2017-01-26 | L32: 7.42620201 | N32: 20 | O32: 0.424274947 | P32: 0.3199283124
A33: 42737 | B33: 3 | C33: 27 | D33: 0.24905 | E33: 0.1588479789 | J33: 27 | K33: 2017-01-27 | L33: 7.752431941 | N33: 21 | O33: 0.3753927582 | P33: 0.3153296618
A34: 42737 | B34: 4 | C34: 28 | D34: 0.24188 | E34: 0.1542748409 | J34: 28 | K34: 2017-01-28 | L34: 8.688120204 | N34: 22 | O34: 0.3577188876 | P34: 0.3128613154
A35: 42737 | B35: 5 | C35: 29 | D35: 0.2682 | E35: 0.1710621479 | J35: 29 | K35: 2017-01-29 | L35: 8.564626344 | N35: 23 | O35: 0.325509199 | P35: 0.2605987039 | R35: MINIMUM
A36: 42737 | B36: 6 | C36: 30 | D36: 0.30688 | E36: 0.1957328559 | J36: 30 | K36: 2017-01-30 | L36: 7.174137279 | N36: 24 | O36: 0.3203811615 | P36: 0.1987305893
A37: 42737 | B37: 7 | C37: 31 | D37: 0.40916 | E37: 0.260968637 | J37: 31 | K37: 2017-01-31 | L37: 7.393769086
A38: 42737 | B38: 8 | C38: 32 | D38: 0.48273 | E38: 0.3078927317 | J38: 32 | K38: 2017-02-01 | L38: 7.180623864
A39: 42737 | B39: 9 | C39: 33 | D39: 0.45666 | E39: 0.2912648787 | J39: 33 | K39: 2017-02-02 | L39: 7.302880361
A40: 42737 | B40: 10 | C40: 34 | D40: 0.46592 | E40: 0.2971710512 | J40: 34 | K40: 2017-02-03 | L40: 7.517026953
A41: 42737 | B41: 11 | C41: 35 | D41: 0.46406 | E41: 0.2959847142 | J41: 35 | K41: 2017-02-04 | L41: 8.54931877
A42: 42737 | B42: 12 | C42: 36 | D42: 0.52373 | E42: 0.3340431719 | J42: 36 | K42: 2017-02-05 | L42: 8.622508111
A43: 42737 | B43: 13 | C43: 37 | D43: 0.50333 | E43: 0.3210317334 | J43: 37 | K43: 2017-02-06 | L43: 7.442989317
A44: 42737 | B44: 14 | C44: 38 | D44: 0.507 | E44: 0.3233725167 | J44: 38 | K44: 2017-02-07 | L44: 7.177842988
A45: 42737 | B45: 15 | C45: 39 | D45: 0.50509 | E45: 0.3221542889 | J45: 39 | K45: 2017-02-08 | L45: 7.23079444
A46: 42737 | B46: 16 | C46: 40 | D46: 0.567 | E46: 0.3616414536 | J46: 40 | K46: 2017-02-09 | L46: 7.383296153
A47: 42737 | B47: 17 | C47: 41 | D47: 0.70828 | E47: 0.4517520436 | J47: 41 | K47: 2017-02-10 | L47: 7.645310808
A48: 42737 | B48: 18 | C48: 42 | D48: 0.84566 | E48: 0.5393751528 | J48: 42 | K48: 2017-02-11 | L48: 8.54174152
A49: 42737 | B49: 19 | C49: 43 | D49: 0.9176 | E49: 0.5852596081 | J49: 43 | K49: 2017-02-12 | L49: 8.683693763
A50: 42737 | B50: 20 | C50: 44 | D50: 0.87896 | E50: 0.5606144128 | J50: 44 | K50: 2017-02-13 | L50: 7.469930648
A51: 42737 | B51: 21 | C51: 45 | D51: 0.82926 | E51: 0.5289149767 | J51: 45 | K51: 2017-02-14 | L51: 7.362031381
A52: 42737 | B52: 22 | C52: 46 | D52: 0.68475 | E52: 0.4367442422 | J52: 46 | K52: 2017-02-15 | L52: 7.482189465
A53: 42737 | B53: 23 | C53: 47 | D53: 0.51296 | E53: 0.3271738978 | J53: 47 | K53: 2017-02-16 | L53: 7.498434628
A54: 42737 | B54: 24 | C54: 48 | D54: 0.39412 | E54: 0.2513758901 | J54: 48 | K54: 2017-02-17 | L54: 7.469292833
A55: 42738 | B55: 1 | C55: 49 | D55: 0.31538 | E55: 0.2011542886 | J55: 49 | K55: 2017-02-18 | L55: 8.355901184
A56: 42738 | B56: 2 | C56: 50 | D56: 0.27925 | E56: 0.1781100104 | J56: 50 | K56: 2017-02-19 | L56: 8.407124157
A57: 42738 | B57: 3 | C57: 51 | D57: 0.25511 | E57: 0.1627131415 | J57: 51 | K57: 2017-02-20 | L57: 7.351265053
A58: 42738 | B58: 4 | C58: 52 | D58: 0.24012 | E58: 0.1531522854 | J58: 52 | K58: 2017-02-21 | L58: 7.241152566
A59: 42738 | B59: 5 | C59: 53 | D59: 0.26698 | E59: 0.1702840128 | J59: 53 | K59: 2017-02-22 | L59: 7.273457926
A60: 42738 | B60: 6 | C60: 54 | D60: 0.31276 | E60: 0.1994832117 | J60: 54 | K60: 2017-02-23 | L60: 7.280359091
A61: 42738 | B61: 7 | C61: 55 | D61: 0.40037 | E61: 0.2553622377 | J61: 55 | K61: 2017-02-24 | L61: 7.43045624
A62: 42738 | B62: 8 | C62: 56 | D62: 0.44706 | E62: 0.2851418488 | J62: 56 | K62: 2017-02-25 | L62: 8.120260206
A63: 42738 | B63: 9 | C63: 57 | D63: 0.50224 | E63: 0.3203365144 | J63: 57 | K63: 2017-02-26 | L63: 8.317721542
A64: 42738 | B64: 10 | C64: 58 | D64: 0.49249 | E64: 0.3141178121 | J64: 58 | K64: 2017-02-27 | L64: 7.09419347
A65: 42738 | B65: 11 | C65: 59 | D65: 0.48796 | E65: 0.3112285074 | J65: 59 | K65: 2017-02-28 | L65: 6.928138174
A66: 42738 | B66: 12 | C66: 60 | D66: 0.52918 | E66: 0.337519267 | J66: 60 | K66: 2017-03-01 | L66: 6.948165585
A67: 42738 | B67: 13 | C67: 61 | D67: 0.51667 | E67: 0.3295401937 | J67: 61 | K67: 2017-03-02 | L67: 7.029997328
A68: 42738 | B68: 14 | C68: 62 | D68: 0.46673 | E68: 0.2976876819 | J68: 62 | K68: 2017-03-03 | L68: 7.039558184
A69: 42738 | B69: 15 | C69: 63 | D69: 0.4841 | E69: 0.3087665391 | J69: 63 | K69: 2017-03-04 | L69: 8.06980899
A70: 42738 | B70: 16 | C70: 64 | D70: 0.55194 | E70: 0.3520359504 | J70: 64 | K70: 2017-03-05 | L70: 8.070937924
A71: 42738 | B71: 17 | C71: 65 | D71: 0.66768 | E71: =$H$7*(D71/$H$3) -> 0.4258567297 | J71: 65 | K71: 2017-03-06 | L71: 6.930389664
A72: 42738 | B72: 18 | C72: 66 | D72: 0.81478 | E72: 0.5196794066 | J72: 66 | K72: 2017-03-07 | L72: 6.80106617
A73: 42738 | B73: 19 | C73: 67 | D73: 0.86225 | E73: 0.5499565139 | J73: 67 | K73: 2017-03-08 | L73: 6.837217559
A74: 42738 | B74: 20 | C74: 68 | D74: 0.89551 | E74: 0.5711702612 | J74: 68 | K74: 2017-03-09 | L74: 6.892267424
A75: 42738 | B75: 21 | C75: 69 | D75: 0.81874 | E75: 0.5222051565 | J75: 69 | K75: 2017-03-10 | L75: 6.935052096
A76: 42738 | B76: 22 | C76: 70 | D76: 0.65159 | E76: 0.4155942764 | J76: 70 | K76: 2017-03-11 | L76: 8.124284822
A77: 42738 | B77: 23 | C77: 71 | D77: 0.51481 | E77: 0.3283538567 | J77: 71 | K77: 2017-03-12 | L77: 8.180521025
A78: 42738 | B78: 24 | C78: 72 | D78: 0.38205 | E78: 0.2436774556 | J78: 72 | K78: 2017-03-13 | L78: 6.891974029
A79: 42739 | B79: 1 | C79: 73 | D79: 0.29697 | E79: 0.1894121031 | J79: 73 | K79: 2017-03-14 | L79: 6.802858431
A80: 42739 | B80: 2 | C80: 74 | D80: 0.26516 | E80: 0.1691231884 | J80: 74 | K80: 2017-03-15 | L80: 6.804153197
A81: 42739 | B81: 3 | C81: 75 | D81: 0.27308 | E81: 0.1741746881 | J81: 75 | K81: 2017-03-16 | L81: 6.821431622
A82: 42739 | B82: 4 | C82: 76 | D82: 0.24423 | E82: 0.1557737076 | J82: 76 | K82: 2017-03-17 | L82: 6.868087834
A83: 42739 | B83: 5 | C83: 77 | D83: 0.26274 | E83: 0.1675796746 | J83: 77 | K83: 2017-03-18 | L83: 7.941231741
A84: 42739 | B84: 6 | C84: 78 | D84: 0.297 | E84: 0.1894312376 | J84: 78 | K84: 2017-03-19 | L84: 8.087368054
A85: 42739 | B85: 7 | C85: 79 | D85: 0.42469 | E85: 0.2708739134 | J85: 79 | K85: 2017-03-20 | L85: 6.661601407
A86: 42739 | B86: 8 | C86: 80 | D86: 0.46155 | E86: 0.294383797 | J86: 80 | K86: 2017-03-21 | L86: 6.602947883
A87: 42739 | B87: 9 | C87: 81 | D87: 0.51195 | E87: 0.326529704 | J87: 81 | K87: 2017-03-22 | L87: 6.528846465
A88: 42739 | B88: 10 | C88: 82 | D88: 0.49523 | E88: 0.3158654269 | J88: 82 | K88: 2017-03-23 | L88: 6.748491028
A89: 42739 | B89: 11 | C89: 83 | D89: 0.55194 | E89: 0.3520359504 | J89: 83 | K89: 2017-03-24 | L89: 6.863361621
A90: 42739 | B90: 12 | C90: 84 | D90: 0.53072 | E90: 0.3385015031 | J90: 84 | K90: 2017-03-25 | L90: 7.94306865
A91: 42739 | B91: 13 | C91: 85 | D91: 0.50946 | E91: 0.3249415431 | J91: 85 | K91: 2017-03-26 | L91: 7.715196265
A92: 42739 | B92: 14 | C92: 86 | D92: 0.52804 | E92: 0.3367921572 | J92: 86 | K92: 2017-03-27 | L92: 6.549046086
A93: 42739 | B93: 15 | C93: 87 | D93: 0.48952 | E93: 0.3122234998 | J93: 87 | K93: 2017-03-28 | L93: 6.575961905
A94: 42739 | B94: 16 | C94: 88 | D94: 0.56455 | E94: 0.3600788053 | J94: 88 | K94: 2017-03-29 | L94: 6.577964646
A95: 42739 | B95: 17 | C95: 89 | D95: 0.68176 | E95: 0.4348371735 | J95: 89 | K95: 2017-03-30 | L95: 6.577543687
A96: 42739 | B96: 18 | C96: 90 | D96: 0.8162 | E96: 0.5205851048 | J96: 90 | K96: 2017-03-31 | L96: 6.549588229
A97: 42739 | B97: 19 | C97: 91 | D97: 0.87215 | E97: 0.5562708884 | J97: 91 | K97: 2017-04-01 | L97: 7.347814471
A98: 42739 | B98: 20 | C98: 92 | D98: 0.87252 | E98: 0.5565068802 | J98: 92 | K98: 2017-04-02 | L98: 7.610524344
A99: 42739 | B99: 21 | C99: 93 | D99: 0.78977 | E99: 0.5037276381 | J99: 93 | K99: 2017-04-03 | L99: 6.284282446
A100: 42739 | B100: 22 | C100: 94 | D100: 0.676 | E100: 0.4311633556 | J100: 94 | K100: 2017-04-04 | L100: 6.370789378
A101: 42739 | B101: 23 | C101: 95 | D101: 0.50776 | E101: 0.3238572566 | J101: 95 | K101: 2017-04-05 | L101: 6.485054045
A102: 42739 | B102: 24 | C102: 96 | D102: 0.38738 | E102: 0.2470770129 | J102: 96 | K102: 2017-04-06 | L102: 6.497752954
A103: 42740 | B103: 1 | C103: 97 | D103: 0.30463 | E103: 0.1942977707 | J103: 97 | K103: 2017-04-07 | L103: 6.404791328
A104: 42740 | B104: 2 | C104: 98 | D104: 0.27089 | E104: 0.1727778719 | J104: 98 | K104: 2017-04-08 | L104: 7.502261522
A105: 42740 | B105: 3 | C105: 99 | D105: 0.26781 | E105: 0.1708133998 | J105: 99 | K105: 2017-04-09 | L105: 7.618637359
A106: 42740 | B106: 4 | C106: 100 | D106: 0.26305 | E106: 0.1677773975 | J106: 100 | K106: 2017-04-10 | L106: 6.307626497
A107: 42740 | B107: 5 | C107: 101 | D107: 0.26684 | E107: 0.1701947187 | J107: 101 | K107: 2017-04-11 | L107: 6.210557339
A108: 42740 | B108: 6 | C108: 102 | D108: 0.31077 | E108: 0.1982139586 | J108: 102 | K108: 2017-04-12 | L108: 6.221668087
A109: 42740 | B109: 7 | C109: 103 | D109: 0.39715 | E109: 0.2533084714 | J109: 103 | K109: 2017-04-13 | L109: 6.475882256
A110: 42740 | B110: 8 | C110: 104 | D110: 0.49817 | E110: 0.3177406048 | J110: 104 | K110: 2017-04-14 | L110: 7.457270008
A111: 42740 | B111: 9 | C111: 105 | D111: 0.55357 | E111: 0.3530755899 | J111: 105 | K111: 2017-04-15 | L111: 7.302893117
A112: 42740 | B112: 10 | C112: 106 | D112: 0.5478 | E112: 0.3493953938 | J112: 106 | K112: 2017-04-16 | L112: 7.299659392
A113: 42740 | B113: 11 | C113: 107 | D113: 0.53289 | E113: 0.339885563 | J113: 107 | K113: 2017-04-17 | L113: 6.814396516
A114: 42740 | B114: 12 | C114: 108 | D114: 0.58523 | E114: 0.3732688322 | J114: 108 | K114: 2017-04-18 | L114: 6.181645157
A115: 42740 | B115: 13 | C115: 109 | D115: 0.52151 | E115: 0.3326272213 | J115: 109 | K115: 2017-04-19 | L115: 6.026611316
A116: 42740 | B116: 14 | C116: 110 | D116: 0.47796 | E116: 0.3048503512 | J116: 110 | K116: 2017-04-20 | L116: 6.210506314
A117: 42740 | B117: 15 | C117: 111 | D117: 0.50916 | E117: 0.3247501984 | J117: 111 | K117: 2017-04-21 | L117: 6.23372918
A118: 42740 | B118: 16 | C118: 112 | D118: 0.56877 | E118: 0.3627703872 | J118: 112 | K118: 2017-04-22 | L118: 6.973652697
A119: 42740 | B119: 17 | C119: 113 | D119: 0.69824 | E119: 0.4453483749 | J119: 113 | K119: 2017-04-23 | L119: 7.262353557
A120: 42740 | B120: 18 | C120: 114 | D120: 0.8573 | E120: 0.5467993266 | J120: 114 | K120: 2017-04-24 | L120: 5.993687274
A121: 42740 | B121: 19 | C121: 115 | D121: 0.87725 | E121: 0.5595237481 | J121: 115 | K121: 2017-04-25 | L121: 6.231426666
A122: 42740 | B122: 20 | C122: 116 | D122: 0.87454 | E122: 0.5577952678 | J122: 116 | K122: 2017-04-26 | L122: 6.122755641
A123: 42740 | B123: 21 | C123: 117 | D123: 0.81639 | E123: 0.5207062898 | J123: 117 | K123: 2017-04-27 | L123: 6.2780765
A124: 42740 | B124: 22 | C124: 118 | D124: 0.68508 | E124: 0.4369547214 | J124: 118 | K124: 2017-04-28 | L124: 6.371752479
A125: 42740 | B125: 23 | C125: 119 | D125: 0.52676 | E125: 0.3359757533 | J125: 119 | K125: 2017-04-29 | L125: 7.116025898
A126: 42740 | B126: 24 | C126: 120 | D126: 0.37659 | E126: 0.2401949824 | J126: 120 | K126: 2017-04-30 | L126: 7.039845201
A127: 42741 | B127: 1 | C127: 121 | D127: 0.29368 | E127: 0.1873136898 | J127: 121 | K127: 2017-05-01 | L127: 7.199369265
A128: 42741 | B128: 2 | C128: 122 | D128: 0.27947 | E128: 0.1782503299 | J128: 122 | K128: 2017-05-02 | L128: 6.133228574
A129: 42741 | B129: 3 | C129: 123 | D129: 0.26885 | E129: 0.171476728 | J129: 123 | K129: 2017-05-03 | L129: 6.074938605
A130: 42741 | B130: 4 | C130: 124 | D130: 0.24433 | E130: 0.1558374892 | J130: 124 | K130: 2017-05-04 | L130: 6.004172962
A131: 42741 | B131: 5 | C131: 125 | D131: 0.27008 | E131: 0.1722612412 | J131: 125 | K131: 2017-05-05 | L131: 6.116128737
A132: 42741 | B132: 6 | C132: 126 | D132: 0.32412 | E132: 0.2067287971 | J132: 126 | K132: 2017-05-06 | L132: 6.502753428
A133: 42741 | B133: 7 | C133: 127 | D133: 0.41074 | E133: 0.2619763856 | J133: 127 | K133: 2017-05-07 | L133: 6.964461774
A134: 42741 | B134: 8 | C134: 128 | D134: 0.4848 | E134: 0.3092130101 | J134: 128 | K134: 2017-05-08 | L134: 6.787487075
A135: 42741 | B135: 9 | C135: 129 | D135: 0.52187 | E135: =$H$7*(D135/$H$3) -> 0.3328568349 | J135: 129 | K135: 2017-05-09 | L135: 5.985491343
A136: 42741 | B136: 10 | C136: 130 | D136: 0.50686 | E136: 0.3232832225 | J136: 130 | K136: 2017-05-10 | L136: 5.962364149
A137: 42741 | B137: 11 | C137: 131 | D137: 0.52052 | E137: 0.3319957838 | J137: 131 | K137: 2017-05-11 | L137: 6.017598981
A138: 42741 | B138: 12 | C138: 132 | D138: 0.5484 | E138: 0.3497780832 | J138: 132 | K138: 2017-05-12 | L138: 5.93105378
A139: 42741 | B139: 13 | C139: 133 | D139: 0.51104 | E139: 0.3259492918 | J139: 133 | K139: 2017-05-13 | L139: 6.533795914
A140: 42741 | B140: 14 | C140: 134 | D140: 0.50478 | E140: 0.321956566 | J140: 134 | K140: 2017-05-14 | L140: 6.931046614
A141: 42741 | B141: 15 | C141: 135 | D141: 0.54249 | E141: 0.3460085929 | J141: 135 | K141: 2017-05-15 | L141: 5.830266157
A142: 42741 | B142: 16 | C142: 136 | D142: 0.58315 | E142: 0.3719421758 | J142: 136 | K142: 2017-05-16 | L142: 5.965572361
A143: 42741 | B143: 17 | C143: 137 | D143: 0.72988 | E143: 0.4655288609 | J143: 137 | K143: 2017-05-17 | L143: 5.873242173
A144: 42741 | B144: 18 | C144: 138 | D144: 0.87886 | E144: 0.5605506312 | J144: 138 | K144: 2017-05-18 | L144: 5.947471154
A145: 42741 | B145: 19 | C145: 139 | D145: 0.8958 | E145: 0.5713552277 | J145: 139 | K145: 2017-05-19 | L145: 5.945876615
A146: 42741 | B146: 20 | C146: 140 | D146: 0.8191 | E146: 0.5224347701 | J146: 140 | K146: 2017-05-20 | L146: 6.790701666
A147: 42741 | B147: 21 | C147: 141 | D147: 0.75443 | E147: 0.4811872343 | J147: 141 | K147: 2017-05-21 | L147: 6.839284081
A148: 42741 | B148: 22 | C148: 142 | D148: 0.6461 | E148: 0.4120926687 | J148: 142 | K148: 2017-05-22 | L148: 6.034112027
A149: 42741 | B149: 23 | C149: 143 | D149: 0.52441 | E149: 0.3344768866 | J149: 143 | K149: 2017-05-23 | L149: 6.002948356
A150: 42741 | B150: 24 | C150: 144 | D150: 0.40345 | E150: 0.2573267098 | J150: 144 | K150: 2017-05-24 | L150: 5.918667401
A151: 42742 | B151: 1 | C151: 145 | D151: 0.31675 | E151: 0.202028096 | J151: 145 | K151: 2017-05-25 | L151: 5.911970337
A152: 42742 | B152: 2 | C152: 146 | D152: 0.28643 | E152: 0.1826895265 | J152: 146 | K152: 2017-05-26 | L152: 5.977850312
A153: 42742 | B153: 3 | C153: 147 | D153: 0.25596 | E153: 0.1632552848 | J153: 147 | K153: 2017-05-27 | L153: 6.495609893
A154: 42742 | B154: 4 | C154: 148 | D154: 0.2427 | E154: 0.1547978497 | J154: 148 | K154: 2017-05-28 | L154: 6.676347704
A155: 42742 | B155: 5 | C155: 149 | D155: 0.25973 | E155: 0.1656598496 | J155: 149 | K155: 2017-05-29 | L155: 5.910681949
A156: 42742 | B156: 6 | C156: 150 | D156: 0.26218 | E156: 0.1672224979 | J156: 150 | K156: 2017-05-30 | L156: 5.932272008
A157: 42742 | B157: 7 | C157: 151 | D157: 0.30314 | E157: 0.1933474255 | J157: 151 | K157: 2017-05-31 | L157: 5.750992054
A158: 42742 | B158: 8 | C158: 152 | D158: 0.40892 | E158: 0.2608155612 | J158: 152 | K158: 2017-06-01 | L158: 5.847117245
A159: 42742 | B159: 9 | C159: 153 | D159: 0.65698 | E159: 0.4190321026 | J159: 153 | K159: 2017-06-02 | L159: 5.791161681
A160: 42742 | B160: 10 | C160: 154 | D160: 0.75725 | E160: 0.4829858743 | J160: 154 | K160: 2017-06-03 | L160: 6.341940977
A161: 42742 | B161: 11 | C161: 155 | D161: 0.88071 | E161: 0.5617305901 | J161: 155 | K161: 2017-06-04 | L161: 6.746877355
A162: 42742 | B162: 12 | C162: 156 | D162: 0.98433 | E162: 0.6278210441 | J162: 156 | K162: 2017-06-05 | L162: 5.924337582
A163: 42742 | B163: 13 | C163: 157 | D163: 0.80235 | E163: 0.5117513585 | J163: 157 | K163: 2017-06-06 | L163: 5.915886525
A164: 42742 | B164: 14 | C164: 158 | D164: 0.7473 | E164: 0.4766396089 | J164: 158 | K164: 2017-06-07 | L164: 5.928196366
A165: 42742 | B165: 15 | C165: 159 | D165: 0.65702 | E165: 0.4190576152 | J165: 159 | K165: 2017-06-08 | L165: 5.884856795
A166: 42742 | B166: 16 | C166: 160 | D166: 0.65678 | E166: 0.4189045395 | J166: 160 | K166: 2017-06-09 | L166: 5.915025474
A167: 42742 | B167: 17 | C167: 161 | D167: 0.68897 | E167: 0.4394358241 | J167: 161 | K167: 2017-06-10 | L167: 6.409224147
A168: 42742 | B168: 18 | C168: 162 | D168: 0.80642 | E168: 0.5143472681 | J168: 162 | K168: 2017-06-11 | L168: 6.623842723
A169: 42742 | B169: 19 | C169: 163 | D169: 0.79763 | E169: 0.5087408688 | J169: 163 | K169: 2017-06-12 | L169: 5.895540207
A170: 42742 | B170: 20 | C170: 164 | D170: 0.78408 | E170: 0.5000984673 | J170: 164 | K170: 2017-06-13 | L170: 5.87550004
A171: 42742 | B171: 21 | C171: 165 | D171: 0.74338 | E171: 0.4741393717 | J171: 165 | K171: 2017-06-14 | L171: 5.853699502
A172: 42742 | B172: 22 | C172: 166 | D172: 0.65019 | E172: 0.4147013346 | J172: 166 | K172: 2017-06-15 | L172: 5.978532775
A173: 42742 | B173: 23 | C173: 167 | D173: 0.51695 | E173: 0.3297187821 | J173: 167 | K173: 2017-06-16 | L173: 5.91739177
A174: 42742 | B174: 24 | C174: 168 | D174: 0.42034 | E174: 0.2680994155 | J174: 168 | K174: 2017-06-17 | L174: 6.349269479
A175: 42743 | B175: 1 | C175: 169 | D175: 0.33194 | E175: 0.2117165152 | J175: 169 | K175: 2017-06-18 | L175: 6.56947532
A176: 42743 | B176: 2 | C176: 170 | D176: 0.28339 | E176: 0.1807505671 | J176: 170 | K176: 2017-06-19 | L176: 5.941628763
A177: 42743 | B177: 3 | C177: 171 | D177: 0.25441 | E177: 0.1622666706 | J177: 171 | K177: 2017-06-20 | L177: 5.752140122
A178: 42743 | B178: 4 | C178: 172 | D178: 0.26208 | E178: 0.1671587163 | J178: 172 | K178: 2017-06-21 | L178: 5.816648793
A179: 42743 | B179: 5 | C179: 173 | D179: 0.27881 | E179: 0.1778293716 | J179: 173 | K179: 2017-06-22 | L179: 5.774100114
A180: 42743 | B180: 6 | C180: 174 | D180: 0.2682 | E180: 0.1710621479 | J180: 174 | K180: 2017-06-23 | L180: 5.661889213
A181: 42743 | B181: 7 | C181: 175 | D181: 0.31206 | E181: 0.1990367408 | J181: 175 | K181: 2017-06-24 | L181: 6.19318962
A182: 42743 | B182: 8 | C182: 176 | D182: 0.39574 | E182: 0.2524091514 | J182: 176 | K182: 2017-06-25 | L182: 6.456007922
A183: 42743 | B183: 9 | C183: 177 | D183: 0.60068 | E183: 0.3831230835 | J183: 177 | K183: 2017-06-26 | L183: 5.73222114
A184: 42743 | B184: 10 | C184: 178 | D184: 0.76594 | E184: 0.488528492 | J184: 178 | K184: 2017-06-27 | L184: 5.874001173
A185: 42743 | B185: 11 | C185: 179 | D185: 0.90894 | E185: 0.5797361249 | J185: 179 | K185: 2017-06-28 | L185: 5.690941714
A186: 42743 | B186: 12 | C186: 180 | D186: 0.97872 | E186: 0.6242428985 | J186: 180 | K186: 2017-06-29 | L186: 5.819225568
A187: 42743 | B187: 13 | C187: 181 | D187: 0.85315 | E187: 0.5441523918 | J187: 181 | K187: 2017-06-30 | L187: 5.963575998
A188: 42743 | B188: 14 | C188: 182 | D188: 0.76492 | E188: 0.4878779201 | J188: 182 | K188: 2017-07-01 | L188: 6.015449542
A189: 42743 | B189: 15 | C189: 183 | D189: 0.66157 | E189: 0.4219596763 | J189: 183 | K189: 2017-07-02 | L189: 6.429391876
A190: 42743 | B190: 16 | C190: 184 | D190: 0.6848 | E190: 0.436776133 | J190: 184 | K190: 2017-07-03 | L190: 5.757421235
A191: 42743 | B191: 17 | C191: 185 | D191: 0.71187 | E191: 0.4540418017 | J191: 185 | K191: 2017-07-04 | L191: 5.672885154
A192: 42743 | B192: 18 | C192: 186 | D192: 0.81729 | E192: 0.5212803238 | J192: 186 | K192: 2017-07-05 | L192: 6.107167428
A193: 42743 | B193: 19 | C193: 187 | D193: 0.82388 | E193: 0.5254835287 | J193: 187 | K193: 2017-07-06 | L193: 6.049795913
A194: 42743 | B194: 20 | C194: 188 | D194: 0.82224 | E194: 0.5244375111 | J194: 188 | K194: 2017-07-07 | L194: 5.974450755
A195: 42743 | B195: 21 | C195: 189 | D195: 0.73926 | E195: 0.4715115714 | J195: 189 | K195: 2017-07-08 | L195: 6.101146448
A196: 42743 | B196: 22 | C196: 190 | D196: 0.64948 | E196: 0.4142484855 | J196: 190 | K196: 2017-07-09 | L196: 6.426011454
A197: 42743 | B197: 23 | C197: 191 | D197: 0.48428 | E197: 0.3088813459 | J197: 191 | K197: 2017-07-10 | L197: 5.831407847
A198: 42743 | B198: 24 | C198: 192 | D198: 0.39528 | E198: 0.2521157562 | J198: 192 | K198: 2017-07-11 | L198: 5.871781575
A199: 42744 | B199: 1 | C199: 193 | D199: 0.30795 | E199: =$H$7*(D199/$H$3) -> 0.1964153186 | J199: 193 | K199: 2017-07-12 | L199: 5.773162525
A200: 42744 | B200: 2 | C200: 194 | D200: 0.27287 | E200: 0.1740407468 | J200: 194 | K200: 2017-07-13 | L200: 5.812426454
A201: 42744 | B201: 3 | C201: 195 | D201: 0.26085 | E201: 0.1663742031 | J201: 195 | K201: 2017-07-14 | L201: 5.858725489
... 8565 more rows

Sheet Tabulka Dotace
A1: Sledovaný parametr | B1: [jednotky] | C1: C.3.5 | D1: C.3.6
A2: Celkový využitelný zisk v budově | B2: [kWh/rok] | C2: >=1700 | D2: >=3000
A3: Minimální míra využití vyrobené elektřiny pro krytí spotřeby v místě výroby | B3: [%] | C3: 0.7 | D3: 0.7
A4: Akumulace přebytků energie do elektrických akumulátorů | B4: [-] | C4: povinná | D4: povinná
A5: Minimální měrná kapacita akumulátorů | B5: [kWp/kWh] | C5: 1.75 (1.25) | D5: 1.75 (1.25)
A6: Výše podpory | B6: [Kč/dům] | C6: 70000 | D6: 100000

Sheet Porovnanibaterii
A1: Název | B1: Typ | C1: Napětí [V] | D1: Kapacita [Ah] | E1: kwh | F1: Cena [Kč] | G1: kč/kwh | H1: Počet cyklů DOD 80% | I1: DOD | J1: Náklady na 1 kwh [Kč] | K1: Zdroj
A3: Victron 60 Ah | B3: PB-Gel | C3: 12 | D3: 60 | E3: =C3*D3/1000 -> 0.72 | F3: 5098 | G3: =F3/E3 -> 7080.555556 | H3: 1800 | I3: 0.5 | J3: =F3/(D3*C3*(H3/10^3)*I3) -> 7.867283951 | M3: https://www.obchodsolar.cz/solarni-baterie
A4: Victron 110 Ah | B4: PB-Gel | C4: 12 | D4: 110 | E4: =C4*D4/1000 -> 1.32 | F4: 8485 | G4: =F4/E4 -> 6428.030303 | H4: 1800 | I4: 0.5 | J4: =F4/(D4*C4*(H4/10^3)*I4) -> 7.142255892 | M4: https://www.obchodsolar.cz/solarni-baterie
A5: Victron 130 Ah | B5: PB-Gel | C5: 12 | D5: 130 | E5: 1.56 | F5: 9960 | G5: 6384.615385 | H5: 1800 | I5: 0.5 | J5: 7.094017094 | M5: https://www.obchodsolar.cz/solarni-baterie
A6: Victron 165 Ah | B6: PB-Gel | C6: 12 | D6: 165 | E6: 1.98 | F6: 12798 | G6: 6463.636364 | H6: 1800 | I6: 0.5 | J6: 7.181818182 | M6: https://www.obchodsolar.cz/solarni-baterie
A7: Hoppecke 100 Ah | B7: Pb-AGM | C7: 12 | D7: 100 | E7: 1.2 | F7: 9293 | G7: 7744.166667 | H7: 2500 | I7: 0.5 | J7: 6.195333333 | M7: https://www.obchodsolar.cz/solarni-baterie
A8: Hoppecke 150 Ah | B8: Pb-AGM | C8: 12 | D8: 150 | E8: 1.8 | F8: 12098 | G8: 6721.111111 | H8: 2500 | I8: 0.5 | J8: 5.376888889 | M8: https://eshop.neosolar.cz/
A9: Hoppecke 200 Ah | B9: Pb-AGM | C9: 12 | D9: 200 | E9: 2.4 | F9: 14558 | G9: 6065.833333 | H9: 2500 | I9: 0.5 | J9: 4.852666667 | M9: https://eshop.neosolar.cz/
A10: Hoppecke 250 Ah | B10: Pb-AGM | C10: 12 | D10: 250 | E10: 3 | F10: 18818 | G10: 6272.666667 | H10: 2500 | I10: 0.5 | J10: 5.018133333 | M10: https://eshop.neosolar.cz/
A11: Banner 80 Ah | B11: Pb-trakční | C11: 12 | D11: 80 | E11: 0.96 | F11: 2889 | G11: 3009.375 | H11: 300 | I11: 0.5 | J11: 20.0625 | M11: https://www.obchodsolar.cz/solarni-baterie
A12: Banner 100 Ah | B12: Pb-trakční | C12: 12 | D12: 100 | E12: 1.2 | F12: 3632 | G12: 3026.666667 | H12: 300 | I12: 0.5 | J12: 20.17777778 | M12: https://www.obchodsolar.cz/solarni-baterie
A13: Banner 130 Ah | B13: Pb-trakční | C13: 12 | D13: 130 | E13: 1.56 | F13: 4639 | G13: 2973.717949 | H13: 300 | I13: 0.5 | J13: 19.82478632 | M13: https://www.obchodsolar.cz/solarni-baterie
A14: Banner 180 Ah | B14: Pb-trakční | C14: 12 | D14: 180 | E14: 2.16 | F14: 5925 | G14: 2743.055556 | H14: 300 | I14: 0.5 | J14: 18.28703704 | M14: https://www.obchodsolar.cz/solarni-baterie
A15: Banner 230 Ah | B15: Pb-trakční | C15: 12 | D15: 230 | E15: 2.76 | F15: 7705 | G15: 2791.666667 | H15: 300 | I15: 0.5 | J15: 18.61111111 | M15: https://www.obchodsolar.cz/solarni-baterie
A17: Název | B17: Typ | C17: Napětí [V] | D17: Kapacita [Ah] | E17: kwh | F17: Cena [Kč] | G17: kč/kwh | H17: Počet cyklů DOD 80% | I17: DOD | J17: Náklady na 1 kwh [Kč] | K17: Zdroj
A19: Victron 60 Ah | B19: LiFePO4 | C19: 12.8 | D19: 60 | E19: =C19*D19/1000 -> 0.768 | F19: 19100 | G19: =F19/E19 -> 24869.79167 | H19: 7000 | I19: 0.5 | J19: =F19/(D19*C19*(H19/10^3)*I19) -> 7.105654762 | M19: http://eshop.terms.eu/cz/e-shop/c68835/lithium.html
A20: Victron 90 Ah | B20: LiFePO4 | C20: 12.8 | D20: 90 | E20: 1.152 | F20: 27000 | G20: 23437.5 | H20: 7000 | I20: 0.5 | J20: =F20/(D20*C20*(H20/10^3)*I20) -> 6.696428571 | M20: http://eshop.terms.eu/cz/e-shop/c68835/lithium.html
A21: Victron 160 Ah | B21: LiFePO4 | C21: 12.8 | D21: 160 | E21: 2.048 | F21: 44150 | G21: 21557.61719 | H21: 7000 | I21: 0.5 | J21: 6.159319196 | M21: http://eshop.terms.eu/cz/e-shop/c68835/lithium.html
A22: Victron 200 Ah | B22: LiFePO4 | C22: 12.8 | D22: 200 | E22: 2.56 | F22: 59500 | G22: 23242.1875 | H22: 7000 | I22: 0.5 | J22: 6.640625 | M22: http://eshop.terms.eu/cz/e-shop/c68835/lithium.html
A23: Victron 300 Ah | B23: LiFePO4 | C23: 12.8 | D23: 300 | E23: 3.84 | F23: 86400 | G23: 22500 | H23: 7000 | I23: 0.5 | J23: 6.428571429 | M23: http://eshop.terms.eu/cz/e-shop/c68835/lithium.html
A24: Winston 40 Ah | B24: LiFePO4 | C24: 12 | D24: 40 | E24: 0.48 | F24: 7529 | G24: 15685.41667 | H24: 7000 | I24: 0.5 | J24: 4.481547619 | M24: https://www.battery-import.cz/baterie-6-12v/
A25: Winston 60 Ah | B25: LiFePO5 | C25: 12 | D25: 60 | E25: 0.72 | F25: 11279 | G25: 15665.27778 | H25: 7000 | I25: 0.5 | J25: 4.475793651 | M25: https://www.battery-import.cz/baterie-6-12v/
A26: Winston 90 Ah | B26: LiFePO4 | C26: 12 | D26: 90 | E26: 1.08 | F26: 16899 | G26: 15647.22222 | H26: 7000 | I26: 0.5 | J26: 4.470634921 | M26: https://www.battery-import.cz/baterie-6-12v/
A29: Název | B29: Typ | C29: Napětí [V] | D29: Kapacita [Ah] | E29: kwh | F29: Cena [Kč] | G29: kč/kwh | H29: Počet cyklů DOD 80% | I29: DOD | J29: Náklady na 1 kwh [Kč] | K29: Zdroj
A31: Victron 60 Ah | B31: PB-Gel | C31: 12 | D31: 60 | E31: =C31*D31/1000 -> 0.72 | F31: 5098 | G31: =F31/E31 -> 7080.555556 | H31: 500 | I31: 0.8 | J31: =F31/(D31*C31*(H31/10^3)*I31) -> 17.70138889 | M31: https://www.obchodsolar.cz/Victron-energy/VRLA-GEL-60Ah
A32: Victron 110 Ah | B32: PB-Gel | C32: 12 | D32: 110 | E32: 1.32 | F32: 8485 | G32: 6428.030303 | H32: 500 | I32: 0.8 | J32: =F32/(D32*C32*(H32/10^3)*I32) -> 16.07007576 | M32: https://www.obchodsolar.cz/Victron-energy/VRLA-GEL-60Ah
A33: Victron 130 Ah | B33: PB-Gel | C33: 12 | D33: 130 | E33: 1.56 | F33: 9960 | G33: 6384.615385 | H33: 500 | I33: 0.8 | J33: 15.96153846 | M33: https://www.obchodsolar.cz/Victron-energy/VRLA-GEL-60Ah
A34: Victron 165 Ah | B34: PB-Gel | C34: 12 | D34: 165 | E34: 1.98 | F34: 12798 | G34: 6463.636364 | H34: 500 | I34: 0.8 | J34: 16.15909091 | M34: https://www.obchodsolar.cz/Victron-energy/VRLA-GEL-60Ah
A35: Hoppecke 100 Ah | B35: Pb-AGM | C35: 12 | D35: 100 | E35: 1.2 | F35: 9293 | G35: 7744.166667 | H35: 1000 | I35: 0.8 | J35: 9.680208333 | M35: https://eshop.neosolar.cz/
A36: Hoppecke 150 Ah | B36: Pb-AGM | C36: 12 | D36: 150 | E36: 1.8 | F36: 12098 | G36: 6721.111111 | H36: 1000 | I36: 0.8 | J36: 8.401388889 | M36: https://eshop.neosolar.cz/
A37: Hoppecke 200 Ah | B37: Pb-AGM | C37: 12 | D37: 200 | E37: 2.4 | F37: 14558 | G37: 6065.833333 | H37: 1000 | I37: 0.8 | J37: 7.582291667 | M37: https://eshop.neosolar.cz/
A38: Hoppecke 250 Ah | B38: Pb-AGM | C38: 12 | D38: 250 | E38: 3 | F38: 18818 | G38: 6272.666667 | H38: 1000 | I38: 0.8 | J38: 7.840833333 | M38: https://eshop.neosolar.cz/
A39: Banner 80 Ah | B39: Pb-trakční | C39: 12 | D39: 80 | E39: 0.96 | F39: 2889 | G39: 3009.375 | H39: 150 | I39: 0.8 | J39: 25.078125 | M39: https://www.obchodsolar.cz/solarni-baterie
A40: Banner 100 Ah | B40: Pb-trakční | C40: 12 | D40: 100 | E40: 1.2 | F40: 3632 | G40: 3026.666667 | H40: 150 | I40: 0.8 | J40: 25.22222222 | M40: https://www.obchodsolar.cz/solarni-baterie
A41: Banner 130 Ah | B41: Pb-trakční | C41: 12 | D41: 130 | E41: 1.56 | F41: 4639 | G41: 2973.717949 | H41: 150 | I41: 0.8 | J41: 24.78098291 | M41: https://www.obchodsolar.cz/solarni-baterie
A42: Banner 180 Ah | B42: Pb-trakční | C42: 12 | D42: 180 | E42: 2.16 | F42: 5925 | G42: 2743.055556 | H42: 150 | I42: 0.8 | J42: 22.8587963 | M42: https://www.obchodsolar.cz/solarni-baterie
A43: Banner 230 Ah | B43: Pb-trakční | C43: 12 | D43: 230 | E43: 2.76 | F43: 7705 | G43: 2791.666667 | H43: 150 | I43: 0.8 | J43: 23.26388889 | M43: https://www.obchodsolar.cz/solarni-baterie
A45: Název | B45: Typ | C45: Napětí [V] | D45: Kapacita [Ah] | E45: kwh | F45: Cena [Kč] | G45: kč/kwh | H45: Počet cyklů DOD 80% | I45: DOD | J45: Náklady na 1 kwh [Kč] | K45: Zdroj
A47: Victron 60 Ah | B47: LiFePO4 | C47: 12.8 | D47: 60 | E47: =C47*D47/1000 -> 0.768 | F47: 19100 | G47: =F47/E47 -> 24869.79167 | H47: 5000 | I47: 0.8 | J47: =F47/(D47*C47*(H47/10^3)*I47) -> 6.217447917 | M47: http://eshop.terms.eu/cz/e-shop/c68835/lithium.html
A48: Victron 90 Ah | B48: LiFePO4 | C48: 12.8 | D48: 90 | E48: 1.152 | F48: 25800 | G48: 22395.83333 | H48: 5000 | I48: 0.8 | J48: =F48/(D48*C48*(H48/10^3)*I48) -> 5.598958333 | M48: http://eshop.terms.eu/cz/e-shop/c68835/lithium.html
A49: Victron 160 Ah | B49: LiFePO4 | C49: 12.8 | D49: 160 | E49: 2.048 | F49: 44150 | G49: 21557.61719 | H49: 5000 | I49: 0.8 | J49: 5.389404297 | M49: http://eshop.terms.eu/cz/e-shop/c68835/lithium.html
A50: Victron 200 Ah | B50: LiFePO4 | C50: 12.8 | D50: 200 | E50: 2.56 | F50: 59500 | G50: 23242.1875 | H50: 5000 | I50: 0.8 | J50: 5.810546875 | M50: http://eshop.terms.eu/cz/e-shop/c68835/lithium.html
A51: Victron 300 Ah | B51: LiFePO4 | C51: 12.8 | D51: 300 | E51: 3.84 | F51: 86400 | G51: 22500 | H51: 5000 | I51: 0.8 | J51: 5.625 | M51: http://eshop.terms.eu/cz/e-shop/c68835/lithium.html
A52: Winston 40 Ah | B52: LiFePO4 | C52: 12 | D52: 40 | E52: 0.48 | F52: 7529 | G52: 15685.41667 | H52: 5000 | I52: 0.8 | J52: 3.921354167 | M52: https://www.battery-import.cz/baterie-6-12v/
A53: Winston 60 Ah | B53: LiFePO5 | C53: 12 | D53: 60 | E53: 0.72 | F53: 11279 | G53: 15665.27778 | H53: 5000 | I53: 0.8 | J53: 3.916319444 | M53: https://www.battery-import.cz/baterie-6-12v/
A54: Winston 90 Ah | B54: LiFePO4 | C54: 12 | D54: 90 | E54: 1.08 | F54: 16899 | G54: 15647.22222 | H54: 5000 | I54: 0.8 | J54: 3.911805556 | M54: https://www.battery-import.cz/baterie-6-12v/
